Workbook

Sheet 겉표지 (hidden)
A1: =표지!A1 -> 見 積 書 | Z1: 견적가로형식-1
C18: 件 名: | D18: =표지!C13 -> 교육시설(서일관) 승강기 증축공사 및 리모델링 전기공사
C20: 提 出 處: | D20: =표지!C4 -> 貴下
C22: 提 出 日: | D22: =표지!C6 -> 2025년 10월 29일
D36: =표지!I3 -> 대 한 민 국 주 식 회 사
D37: =표지!I4 -> 
D38: =표지!I5 -> ㅇ ㅇ 시 ㅇ ㅇ 구 ㅇ ㅇ 동
D39: =표지!I6 -> 
D40: =표지!I7 -> 대표이사 홍 길 동
D41: =표지!I8 -> 
D42: =표지!I9 -> 대표전화 (02) 0 0 0 - 0 0 0 0
D43: =표지!I10 -> 
D44: =표지!I11 -> 팩 스 (02) 0 0 0 - 0 0 0 0
D45: =표지!I12 -> 
D46: =표지!I13 -> 

Sheet 표지 (hidden)
A1: 見 積 書
I3: 대 한 민 국 주 식 회 사
B4: 제 출 처: | C4: 貴下
I5: ㅇ ㅇ 시 ㅇ ㅇ 구 ㅇ ㅇ 동
B6: 제 출 일: | C6: 2025년 10월 29일
I7: 대표이사 홍 길 동
B8: 아래와 같이 見積書를 제출합니다.
I9: 대표전화 (02) 0 0 0 - 0 0 0 0
I11: 팩 스 (02) 0 0 0 - 0 0 0 0
B13: 공 사 명: | C13: 교육시설(서일관) 승강기 증축공사 및 리모델링 전기공사
B15: 공사금액: | C15: ="一金"&NUMBERSTRING(F40,2)&"원整("&DOLLAR(F40,0)&")" -> 一金零원整(₩0)
B17: 내 용 | D17: 단위 | E17: 수량 | F17: 금 액 | H17: 비 고 | M17: 요율 | N17: 금액 | O17: 이윤 | P17: 끝자리맞추기
B18: 재 료 비 | D18: 식 | E18: 1 | F18: =옵션!$B$2 -> 0 | N18: =E18*F18 -> 0
B19: 노 무 비 | D19: 식 | E19: 1 | F19: =옵션!$C$2 -> 0 | N19: 0
B20: 간 접 노 무 비 | D20: 식 | E20: 1 | F20: =TRUNC((F19)*M20/100) -> 0 | H20: (직접 노무비) * 15.2 % | M20: 15.2 | N20: 0
B21: ( 소 계 ) | F21: =SUM(F18:F20) -> 0 | N21: 0
B22: 기 계 경 비 | D22: 식 | E22: 1 | F22: =옵션!$D$2 -> 0 | N22: 0
B23: 산 재 보 험 료 | D23: 식 | E23: 1 | F23: =TRUNC((F19+F20)*M23/100) -> 0 | H23: (노무비) * 3.56 % | M23: 3.56 | N23: 0
B24: 고 용 보 험 료 | D24: 식 | E24: 1 | F24: =TRUNC((F19+F20)*M24/100) -> 0 | H24: (노무비) * 1.01 % | M24: 1.01 | N24: 0
B25: 건 강 보 험 료 | D25: 식 | E25: 1 | F25: =TRUNC((F19)*M25/100) -> 0 | H25: (직접 노무비) * 3.545 % | M25: 3.545 | N25: 0
B26: 연 금 보 험 료 | D26: 식 | E26: 1 | F26: =TRUNC((F19)*M26/100) -> 0 | H26: (직접 노무비) * 4.5 % | M26: 4.5 | N26: 0
B27: 퇴 직 금 공 제 | D27: 식 | E27: 1 | F27: =TRUNC((F19)*M27/100) -> 0 | H27: (직접 노무비) * 2.3 % | M27: 2.3 | N27: 0
B28: 안 전 관 리 비 | D28: 식 | E28: 1 | F28: =TRUNC((F18+F19+0/1.1)*M28/100) -> 0 | H28: (재료+직노+관급재/1.1) * 3.11 % | M28: 3.11 | N28: 0
B29: 기 타 경 비 | D29: 식 | E29: 1 | F29: =TRUNC((F21)*M29/100) -> 0 | H29: (재료+노무) * 4.7 % | M29: 4.7 | N29: 0
B30: 노인장기요양보험 | D30: 식 | E30: 1 | F30: =TRUNC((F25)*M30/100) -> 0 | H30: (건강 보험료) * 12.95 % | M30: 12.95 | N30: 0
B31: ( 소 계 ) | F31: =SUM(F22:F30) -> 0 | N31: 0
B32: 일 반 관 리 비 | D32: 식 | E32: 1 | F32: =TRUNC((F21+F31)*M32/100) -> 0 | H32: (재료+노무+경비) * 8 % | M32: 8 | N32: 0
B33: 이 윤 | D33: 식 | E33: 1 | F33: =O33-((SUM(N18:N32)+O33-TRUNC((SUM(N18:N32)+O33)/P33)*P33)) -> 0 | H33: (노무+경비+일반관리비) * 15 % | M33: 15 | N33: 0 | O33: =TRUNC((F19+F20+F31+F32)*M33/100) -> 0 | P33: 100000
B34: ( 총 원 가 ) | F34: =SUM(N18:N33) -> 0 | N34: 0
B35: 부 가 가 치 세 | D35: 식 | E35: 1 | F35: =TRUNC((F34)*M35/100) -> 0 | M35: 10 | N35: 0
N36: 0
N37: 0
N38: 0
N39: 0
B40: ( 총 계 ) | F40: =N40 -> 0 | N40: =SUM(N18:N39) -> 0
B41: 1. 부가가치세 별도
B42: 2. 한전불입금 별도

Sheet 원가
A1: 원 가 계 산 서
A3: 공사명: | C3: 교육시설(서일관) 승강기 증축공사 및 리모델링 전기공사 | E3: 공사기간: 2.5개월
A4: 비 목 | C4: 구 분 | D4: 금 액 | E4: 구 성 비 | I4: 요율 | J4: 수량 | K4: 금액 | L4: 이윤 | M4: 끝자리 맞추기
B5: 재 료 비 | C5: 직 접 재 료 비 | D5: =옵션!$B$2 -> 0 | J5: 1 | K5: =D5*J5 -> 0
C6: 간 접 재 료 비 | K6: =D6*J6 -> 0
C7: ( 소 계 ) | D7: =SUM(D5:D6) -> 0 | K7: 0
A8: 순 | B8: 노 무 비 | C8: 직 접 노 무 비 | D8: =옵션!$C$2 -> 0 | J8: 1 | K8: 0
C9: 간 접 노 무 비 | D9: =TRUNC(D8*I9/100) -> 0 | E9: (직접 노무비) * | J9: 1 | K9: 0
C10: ( 소 계 ) | D10: =SUM(D8:D9) -> 0 | K10: 0
C11: 기 계 경 비 | D11: =옵션!$D$2 -> 0 | J11: 1 | K11: 0
C12: 산 재 보 험 료 | D12: =TRUNC(D10*I12/100) -> 0 | E12: (노무비) * | J12: 1 | K12: 0
A13: 공 | C13: 고 용 보 험 료 | D13: =TRUNC(D10*I13/100) -> 0 | E13: (노무비) * | J13: 1 | K13: 0
B14: 경 | C14: 산업안전보건관리비 | D14: =TRUNC((D7+D8)*I14/100) -> 0 | E14: (재료+직노) * | J14: 1 | K14: 0
C15: 기 타 경 비 | D15: =TRUNC((D7+D10)*I15/100) -> 0 | E15: (재료+노무) * | J15: 1 | K15: 0
C16: 건 강 보 험 료 | D16: =TRUNC(D8*I16/100) -> 0 | E16: (직접 노무비) * | J16: 1 | K16: 0
C17: 연 금 보 험 료 | D17: =TRUNC(D8*I17/100) -> 0 | E17: (직접 노무비) * | J17: 1 | K17: 0
A18: 사 | C18: 노인장기요양보험 | D18: =TRUNC(D16*I18/100) -> 0 | E18: (건강 보험료) * | J18: 1 | K18: 0
K19: 0
K20: 0
K21: 0
B22: 비 | K22: 0
A23: 비 | K23: 0
K24: 0
C25: ( 소 계 ) | D25: =SUM(D11:D24) -> 0 | K25: 0
B26: ( 순 공 사 비 계 ) | D26: =D7+D10+D25 -> 0 | K26: 0
A27: 일 반 관 리 비 | D27: =TRUNC((D7+D10+D25)*I27/100) -> 0 | E27: (재료+노무+경비) * | J27: 1 | K27: 0
A28: 이 윤 | D28: =L28-((SUM(K5:K27)+L28-TRUNC((SUM(K5:K27)+L28)/M28)*M28)) -> 0 | E28: (노무+경비+일반관리비) * | J28: 1 | K28: 0 | L28: =TRUNC((D10+D25+D27)*I28/100) -> 0 | M28: 100000
A29: ( 총 원 가 ) | D29: =SUM(K5:K28) -> 0 | K29: 0
A30: 부 가 가 치 세 | D30: =TRUNC(D29*I30/100) -> 0 | J30: 1 | K30: 0
A31: 도 급 금 액 | D31: =D29+D30 -> 0 | K31: 0
K32: 0
K33: 0
K34: 0
A35: ( 총 계 ) | D35: =K35 -> 0 | K35: =SUM(K5:K34) -> 0

Sheet 총괄표
A1: 총줄수-> | B1: 81 | C1: 2.0 | D1: [ 교육시설(서일관) 승강기 증축공사 및 리모델링 전기공사 ] | AA1: 연속견적가로형식
A2: 번호 | B2: 공종코드 | C2: … | D2: 공 종 명 | E2: 규격 | F2: 단위 | G2: 수량 | H2: 재료비 | J2: 노무비 | M2: 경비 | P2: 계 | Q2: 비고
H3: 단가 | I3: 금액 | J3: 수량 | K3: 단가 | L3: 금액 | M3: 단가 | N3: 금액 | O3: 단가
B4: 공종줄 | D4: [교육시설(서일관) 승강기 증축공사 및 리모델링 전기공사]
B5: 001 | D5: 1.엘리베이터 | F5: 식 | G5: 1 | H5: =총괄표!I55 -> 0 | I5: =G5*H5 -> 0 | K5: =총괄표!L55 -> 0 | L5: =G5*K5 -> 0 | M5: =총괄표!N55 -> 0 | N5: =G5*M5 -> 0 | P5: =SUM(I5,L5,N5) -> 0
B6: 002 | D6: 2.화장실 | F6: 식 | G6: 1 | H6: =총괄표!I81 -> 0 | I6: 0 | K6: =총괄표!L81 -> 0 | L6: 0 | M6: =총괄표!N81 -> 0 | N6: 0 | P6: 0
I7: 0 | L7: 0 | N7: 0 | P7: 0
I8: 0 | L8: 0 | N8: 0 | P8: 0
I9: 0 | L9: 0 | N9: 0 | P9: 0
I10: 0 | L10: 0 | N10: 0 | P10: 0
I11: 0 | L11: 0 | N11: 0 | P11: 0
I12: 0 | L12: 0 | N12: 0 | P12: 0
I13: 0 | L13: 0 | N13: 0 | P13: 0
I14: 0 | L14: 0 | N14: 0 | P14: 0
I15: 0 | L15: 0 | N15: 0 | P15: 0
I16: 0 | L16: 0 | N16: 0 | P16: 0
I17: 0 | L17: 0 | N17: 0 | P17: 0
I18: 0 | L18: 0 | N18: 0 | P18: 0
I19: 0 | L19: 0 | N19: 0 | P19: 0
I20: 0 | L20: 0 | N20: 0 | P20: 0
I21: 0 | L21: 0 | N21: 0 | P21: 0
I22: 0 | L22: 0 | N22: 0 | P22: 0
I23: 0 | L23: 0 | N23: 0 | P23: 0
I24: 0 | L24: 0 | N24: 0 | P24: 0
I25: 0 | L25: 0 | N25: 0 | P25: 0
I26: 0 | L26: 0 | N26: 0 | P26: 0
I27: 0 | L27: 0 | N27: 0 | P27: 0
I28: 0 | L28: 0 | N28: 0 | P28: 0
C29: Total | D29: ( 합 계 ) | I29: =TRUNC(SUM(I4:I28)) -> 0 | L29: =TRUNC(SUM(L4:L28)) -> 0 | N29: =TRUNC(SUM(N4:N28)) -> 0 | P29: =TRUNC(SUM(P4:P28)) -> 0
B30: 공종줄 | D30: 1.엘리베이터
B31: 00101 | D31: 1-1.철거공사 | F31: 식 | G31: 1 | H31: =내역서!I29 -> 0 | I31: =G31*H31 -> 0 | K31: =내역서!L29 -> 0 | L31: =G31*K31 -> 0 | M31: =내역서!N29 -> 0 | N31: =G31*M31 -> 0 | P31: =SUM(I31,L31,N31) -> 0
B32: 00102 | D32: 1-2.전력간선공사 | F32: 식 | G32: 1 | H32: =내역서!I55 -> 0 | I32: 0 | K32: =내역서!L55 -> 0 | L32: 0 | M32: =내역서!N55 -> 0 | N32: 0 | P32: 0
B33: 00103 | D33: 1-3.전등설비공사 | F33: 식 | G33: 1 | H33: =내역서!I81 -> 0 | I33: 0 | K33: =내역서!L81 -> 0 | L33: 0 | M33: =내역서!N81 -> 0 | N33: 0 | P33: 0
B34: 00104 | D34: 1-4.전열설비공사 | F34: 식 | G34: 1 | H34: =내역서!I107 -> 0 | I34: 0 | K34: =내역서!L107 -> 0 | L34: 0 | M34: =내역서!N107 -> 0 | N34: 0 | P34: 0
I35: 0 | L35: 0 | N35: 0 | P35: 0
I36: 0 | L36: 0 | N36: 0 | P36: 0
I37: 0 | L37: 0 | N37: 0 | P37: 0
I38: 0 | L38: 0 | N38: 0 | P38: 0
I39: 0 | L39: 0 | N39: 0 | P39: 0
I40: 0 | L40: 0 | N40: 0 | P40: 0
I41: 0 | L41: 0 | N41: 0 | P41: 0
I42: 0 | L42: 0 | N42: 0 | P42: 0
I43: 0 | L43: 0 | N43: 0 | P43: 0
I44: 0 | L44: 0 | N44: 0 | P44: 0
I45: 0 | L45: 0 | N45: 0 | P45: 0
I46: 0 | L46: 0 | N46: 0 | P46: 0
I47: 0 | L47: 0 | N47: 0 | P47: 0
I48: 0 | L48: 0 | N48: 0 | P48: 0
I49: 0 | L49: 0 | N49: 0 | P49: 0
I50: 0 | L50: 0 | N50: 0 | P50: 0
I51: 0 | L51: 0 | N51: 0 | P51: 0
I52: 0 | L52: 0 | N52: 0 | P52: 0
I53: 0 | L53: 0 | N53: 0 | P53: 0
I54: 0 | L54: 0 | N54: 0 | P54: 0
B55: 001 | C55: Total | D55: ( 합 계 ) | I55: =TRUNC(SUM(I30:I54)) -> 0 | L55: =TRUNC(SUM(L30:L54)) -> 0 | N55: =TRUNC(SUM(N30:N54)) -> 0 | P55: =TRUNC(SUM(P30:P54)) -> 0
B56: 공종줄 | D56: 2.화장실
B57: 00201 | D57: 2-1.철거공사 | F57: 식 | G57: 1 | H57: =내역서!I133 -> 0 | I57: =G57*H57 -> 0 | K57: =내역서!L133 -> 0 | L57: =G57*K57 -> 0 | M57: =내역서!N133 -> 0 | N57: =G57*M57 -> 0 | P57: =SUM(I57,L57,N57) -> 0
B58: 00202 | D58: 2-2.전력간선공사 | F58: 식 | G58: 1 | H58: =내역서!I159 -> 0 | I58: 0 | K58: =내역서!L159 -> 0 | L58: 0 | M58: =내역서!N159 -> 0 | N58: 0 | P58: 0
B59: 00203 | D59: 2-3.전등설비공사 | F59: 식 | G59: 1 | H59: =내역서!I185 -> 0 | I59: 0 | K59: =내역서!L185 -> 0 | L59: 0 | M59: =내역서!N185 -> 0 | N59: 0 | P59: 0
B60: 00204 | D60: 2-4.전열설비공사 | F60: 식 | G60: 1 | H60: =내역서!I211 -> 0 | I60: 0 | K60: =내역서!L211 -> 0 | L60: 0 | M60: =내역서!N211 -> 0 | N60: 0 | P60: 0
I61: 0 | L61: 0 | N61: 0 | P61: 0
I62: 0 | L62: 0 | N62: 0 | P62: 0
I63: 0 | L63: 0 | N63: 0 | P63: 0
I64: 0 | L64: 0 | N64: 0 | P64: 0
I65: 0 | L65: 0 | N65: 0 | P65: 0
I66: 0 | L66: 0 | N66: 0 | P66: 0
I67: 0 | L67: 0 | N67: 0 | P67: 0
I68: 0 | L68: 0 | N68: 0 | P68: 0
I69: 0 | L69: 0 | N69: 0 | P69: 0
I70: 0 | L70: 0 | N70: 0 | P70: 0
I71: 0 | L71: 0 | N71: 0 | P71: 0
I72: 0 | L72: 0 | N72: 0 | P72: 0
I73: 0 | L73: 0 | N73: 0 | P73: 0
I74: 0 | L74: 0 | N74: 0 | P74: 0
I75: 0 | L75: 0 | N75: 0 | P75: 0
I76: 0 | L76: 0 | N76: 0 | P76: 0
I77: 0 | L77: 0 | N77: 0 | P77: 0
I78: 0 | L78: 0 | N78: 0 | P78: 0
I79: 0 | L79: 0 | N79: 0 | P79: 0
I80: 0 | L80: 0 | N80: 0 | P80: 0
B81: 002 | C81: Total | D81: ( 합 계 ) | I81: =TRUNC(SUM(I56:I80)) -> 0 | L81: =TRUNC(SUM(L56:L80)) -> 0 | N81: =TRUNC(SUM(N56:N80)) -> 0 | P81: =TRUNC(SUM(P56:P80)) -> 0

Sheet 내역서
A1: 총줄수-> | B1: 211 | C1: 2.0 | D1: [ 교육시설(서일관) 승강기 증축공사 및 리모델링 전기공사 ] | W1: 노임 계산 정보 | AA1: 부속재 및 손료
A2: 번호 | B2: 공종코드 | C2: 코드 | D2: 명 칭 | E2: 규 격 | F2: 단위 | G2: 수량 | H2: 재료비 | J2: 노무비 | M2: 경비 | P2: 계 | Q2: 비고 | W2: 노임계 | X2: 전체(%) | Y2: 공종별(%) | Z2: 노임 소수 | AA2: CD배관재 | AB2: 일반배관재 | AC2: 소모재 | AD2: 자재계 | AE2: 노임계
H3: 단가 | I3: 금액 | J3: 수량 | K3: 단가 | L3: 금액 | M3: 단가 | N3: 금액 | O3: 단가 | AD3: =IF(옵션!$C$11 =0, "1", 옵션!$C$11) -> 1 | AE3: =IF(옵션!$C$12 =0, "1", 옵션!$C$12) -> 1
B4: 공종줄 | D4: 1.엘리베이터::1-1.철거공사
A5: MM041720642 | B5: 00101 | C5: 391115ZZ701Z0004 | D5: LED 면조명 철거 | F5: 개 | G5: =산출집계!H5 -> 17 | I5: =TRUNC(G5*H5) -> 0 | J5: =산출집계!J5 -> 17 | K5: =합산자재!I56 -> 0 | L5: =TRUNC(G5*K5) -> 0 | M5: =합산자재!J56 -> 0 | N5: =TRUNC(G5*M5) -> 0 | P5: =SUM(I5,L5,N5) -> 0
A6: MM041720653 | B6: 00101 | C6: 391115ZZ701Z0005 | D6: LED 원형직부등 철거 | F6: 개 | G6: =산출집계!H6 -> 1 | I6: 0 | J6: =산출집계!J6 -> 1 | K6: =합산자재!I57 -> 0 | L6: 0 | M6: =합산자재!J57 -> 0 | N6: 0 | P6: 0
A7: MM041720651 | B7: 00101 | C7: 391115ZZ701Z0007 | D7: LED 파이프펜던트 철거 | F7: 개 | G7: =산출집계!H7 -> 2 | I7: 0 | J7: =산출집계!J7 -> 2 | K7: =합산자재!I59 -> 0 | L7: 0 | M7: =합산자재!J59 -> 0 | N7: 0 | P7: 0
A8: MM041720663 | B8: 00101 | C8: 391115ZZ701Z0009 | D8: 기타 전기공사 | E8: 배관, 배선정리 | F8: 식 | G8: =산출집계!H8 -> 7 | I8: 0 | J8: =산출집계!J8 -> 7 | K8: =합산자재!I61 -> 0 | L8: 0 | M8: =합산자재!J61 -> 0 | N8: 0 | P8: 0
A9: MM041720657 | B9: 00101 | C9: 391115ZZ701Z0010 | D9: 전등스위치 철거 | F9: 개 | G9: =산출집계!H9 -> 8 | I9: 0 | J9: =산출집계!J9 -> 8 | K9: =합산자재!I62 -> 0 | L9: 0 | M9: =합산자재!J62 -> 0 | N9: 0 | P9: 0
A10: MM041720659 | B10: 00101 | C10: 391115ZZ701Z0011 | D10: 콘센트 철거 | F10: 개 | G10: =산출집계!H10 -> 4 | I10: 0 | J10: =산출집계!J10 -> 4 | K10: =합산자재!I63 -> 0 | L10: 0 | M10: =합산자재!J63 -> 0 | N10: 0 | P10: 0
A11: 56900017016 | B11: 00101 | C11: L001010101000075 | D11: 노 무 비 | E11: 내선전공 | F11: 인 | G11: =노임근거!G11 -> 4 | H11: =합산자재!H65 -> 0 | I11: 0 | J11: =노임근거!G11 -> 4 | K11: =합산자재!I65 -> 0 | L11: 0 | M11: =합산자재!J65 -> 0 | N11: 0 | P11: 0 | Z11: 노임계 | AE11: =L11 -> 0
A12: A0300000000 | B12: 00101 | C12: RENT000000000006 | D12: [ 공 구 손 료 ] | E12: 노무비의 3 % | F12: 식 | G12: 1 | H12: =IF(TRUNC((AD13+AC13)/$AE$3)*$AE$3-AD13 <0, AC13, TRUNC((AD13+AC13)/$AE$3)*$AE$3-AD13) -> 0 | I12: =H12 -> 0 | J12: 1 | L12: 0 | N12: 0 | P12: 0
I13: =TRUNC(G13*H13) -> 0 | L13: 0 | N13: 0 | P13: 0 | AC13: =TRUNC(AE13*옵션!$B$36/100) -> 0 | AD13: =TRUNC(SUM(L4:L11)) -> 0 | AE13: =TRUNC(SUM(AE4:AE12)) -> 0
I14: 0 | L14: 0 | N14: 0 | P14: 0
I15: 0 | L15: 0 | N15: 0 | P15: 0
I16: 0 | L16: 0 | N16: 0 | P16: 0
I17: 0 | L17: 0 | N17: 0 | P17: 0
I18: 0 | L18: 0 | N18: 0 | P18: 0
I19: 0 | L19: 0 | N19: 0 | P19: 0
I20: 0 | L20: 0 | N20: 0 | P20: 0
I21: 0 | L21: 0 | N21: 0 | P21: 0
I22: 0 | L22: 0 | N22: 0 | P22: 0
I23: 0 | L23: 0 | N23: 0 | P23: 0
I24: 0 | L24: 0 | N24: 0 | P24: 0
I25: 0 | L25: 0 | N25: 0 | P25: 0
I26: 0 | L26: 0 | N26: 0 | P26: 0
I27: 0 | L27: 0 | N27: 0 | P27: 0
I28: 0 | L28: 0 | N28: 0 | P28: 0
B29: 합계줄 | D29: ( 합 계 ) | I29: =TRUNC(SUM(I4:I28)) -> 0 | L29: =TRUNC(SUM(L4:L28)) -> 0 | N29: =TRUNC(SUM(N4:N28)) -> 0 | P29: =TRUNC(SUM(P4:P28)) -> 0
B30: 공종줄 | D30: 1.엘리베이터::1-2.전력간선공사
A31: 59753017007 | B31: 00102 | C31: 3913170620174414 | D31: 1종금속제가요전선관 | E31: 42 mm 일반-비방수 | F31: m | G31: =산출집계!H42 -> 3 | H31: =합산자재!H6 -> 0 | I31: =TRUNC(G31*H31) -> 0 | J31: =산출집계!J42 -> 3 | K31: =합산자재!I6 -> 0 | L31: =TRUNC(G31*K31) -> 0 | M31: =합산자재!J6 -> 0 | N31: =TRUNC(G31*M31) -> 0 | P31: =SUM(I31,L31,N31) -> 0 | AC31: =G31*H31 -> 0
A32: 59753017008 | B32: 00102 | C32: 3913170620174415 | D32: 1종금속제가요전선관 | E32: 54 mm 일반-비방수 | F32: m | G32: =산출집계!H43 -> 55 | H32: =합산자재!H7 -> 0 | I32: 0 | J32: =산출집계!J43 -> 50 | K32: =합산자재!I7 -> 0 | L32: 0 | M32: =합산자재!J7 -> 0 | N32: 0 | P32: 0 | AC32: 0
A33: E1450927204 | B33: 00102 | C33: 2612152420683698 | D33: 접지용비닐절연전선(F-GV) | E33: 10㎟ | F33: m | G33: =산출집계!H44 -> 3 | H33: =합산자재!H23 -> 0 | I33: 0 | J33: =산출집계!J44 -> 3 | K33: =합산자재!I23 -> 0 | L33: 0 | M33: =합산자재!J23 -> 0 | N33: 0 | P33: 0 | AC33: 0
A34: E1450927205 | B34: 00102 | C34: 2612152420683699 | D34: 접지용비닐절연전선(F-GV) | E34: 16㎟ | F34: m | G34: =산출집계!H45 -> 55 | H34: =합산자재!H24 -> 0 | I34: 0 | J34: =산출집계!J45 -> 50 | K34: =합산자재!I24 -> 0 | L34: 0 | M34: =합산자재!J24 -> 0 | N34: 0 | P34: 0 | AC34: 0
A35: E1450287564 | B35: 00102 | C35: 2612162920683946 | D35: 폴리에틸렌 난연케이블 | E35: 0.6/1kv F-CV 4C×10㎟ | F35: m | G35: =산출집계!H46 -> 3 | H35: =합산자재!H26 -> 0 | I35: 0 | J35: =산출집계!J46 -> 3 | K35: =합산자재!I26 -> 0 | L35: 0 | M35: =합산자재!J26 -> 0 | N35: 0 | P35: 0 | AC35: 0
A36: E1450287565 | B36: 00102 | C36: 2612162920683947 | D36: 폴리에틸렌 난연케이블 | E36: 0.6/1kv F-CV 4C×16㎟ | F36: m | G36: =산출집계!H47 -> 52 | H36: =합산자재!H27 -> 0 | I36: 0 | J36: =산출집계!J47 -> 50 | K36: =합산자재!I27 -> 0 | L36: 0 | M36: =합산자재!J27 -> 0 | N36: 0 | P36: 0 | AC36: 0
A37: MM300015105 | B37: 00102 | C37: 3912161620167029 | D37: 배선용차단기(ABS-54) | E37: 4P 50AF 50AT | F37: EA | G37: =산출집계!H48 -> 1 | H37: =합산자재!H45 -> 0 | I37: 0 | J37: =산출집계!J48 -> 1 | K37: =합산자재!I45 -> 0 | L37: 0 | M37: =합산자재!J45 -> 0 | N37: 0 | P37: 0
A38: E9400177001 | B38: 00102 | C38: 3912143210033786 | D38: 러그단자 | E38: 동관단자 1 HOLE 10 ㎟ | F38: 개 | G38: =산출집계!H49 -> 10 | H38: =합산자재!H50 -> 0 | I38: 0 | J38: =산출집계!J49 -> 10 | K38: =합산자재!I50 -> 0 | L38: 0 | M38: =합산자재!J50 -> 0 | N38: 0 | P38: 0
A39: E9400177002 | B39: 00102 | C39: 3912143210033787 | D39: 러그단자 | E39: 동관단자 1 HOLE 16 ㎟ | F39: 개 | G39: =산출집계!H50 -> 10 | H39: =합산자재!H51 -> 0 | I39: 0 | J39: =산출집계!J50 -> 10 | K39: =합산자재!I51 -> 0 | L39: 0 | M39: =합산자재!J51 -> 0 | N39: 0 | P39: 0
A40: 56959100802 | B40: 00102 | C40: EAB110212000 | D40: LP-ELEV 분전반 | E40: 600Wx600Hx150D | F40: 면 | G40: =산출집계!H51 -> 1 | H40: =일대목차!I6 -> 0 | I40: 0 | J40: =산출집계!J51 -> 1 | K40: =일대목차!L6 -> 0 | L40: 0 | M40: =일대목차!N6 -> 0 | N40: 0 | P40: 0 | Z40: 노임계
A41: A0100000000 | B41: 00102 | C41: RENT000000000003 | D41: [ 소모 잡자재 ] | E41: 전선, 전선관의 2 % | F41: 식 | G41: 1 | H41: =IF(TRUNC((AD41+AC41)/$AD$3)*$AD$3-AD41 <0, AC41, TRUNC((AD41+AC41)/$AD$3)*$AD$3-AD41) -> 0 | I41: =H41 -> 0 | J41: 1 | L41: 0 | N41: 0 | P41: 0 | AC41: =TRUNC(TRUNC(SUM(AC30:AC40))*옵션!$B$33/100) -> 0 | AD41: =TRUNC(SUM(I30:I40))+TRUNC(SUM(N30:N40)) -> 0
A42: 56900017016 | B42: 00102 | C42: L001010101000075 | D42: 노 무 비 | E42: 내선전공 | F42: 인 | G42: =노임근거!G40 -> 7 | H42: =합산자재!H65 -> 0 | I42: =TRUNC(G42*H42) -> 0 | J42: =노임근거!G40 -> 7 | K42: =합산자재!I65 -> 0 | L42: 0 | M42: =합산자재!J65 -> 0 | N42: 0 | P42: 0 | AE42: =L42 -> 0
A43: 56900017076 | B43: 00102 | C43: L001010101000078 | D43: 노 무 비 | E43: 저압케이블전공 | F43: 인 | G43: =노임근거!G41 -> 3 | H43: =합산자재!H66 -> 0 | I43: =TRUNC(G43*H43) -> 0 | J43: =노임근거!G41 -> 3 | K43: =합산자재!I66 -> 0 | L43: 0 | M43: =합산자재!J66 -> 0 | N43: 0 | P43: 0 | AE43: =L43 -> 0
A44: A0300000000 | B44: 00102 | C44: RENT000000000006 | D44: [ 공 구 손 료 ] | E44: 노무비의 3 % | F44: 식 | G44: 1 | H44: =IF(TRUNC((AD45+AC45)/$AE$3)*$AE$3-AD45 <0, AC45, TRUNC((AD45+AC45)/$AE$3)*$AE$3-AD45) -> 0 | I44: =H44 -> 0 | J44: 1 | L44: 0 | N44: 0 | P44: 0
I45: =TRUNC(G45*H45) -> 0 | L45: 0 | N45: 0 | P45: 0 | AC45: =TRUNC(AE45*옵션!$B$36/100) -> 0 | AD45: =TRUNC(SUM(L30:L43)) -> 0 | AE45: =TRUNC(SUM(AE30:AE44)) -> 0
I46: 0 | L46: 0 | N46: 0 | P46: 0
I47: 0 | L47: 0 | N47: 0 | P47: 0
I48: 0 | L48: 0 | N48: 0 | P48: 0
I49: 0 | L49: 0 | N49: 0 | P49: 0
I50: 0 | L50: 0 | N50: 0 | P50: 0
I51: 0 | L51: 0 | N51: 0 | P51: 0
I52: 0 | L52: 0 | N52: 0 | P52: 0
I53: 0 | L53: 0 | N53: 0 | P53: 0
I54: 0 | L54: 0 | N54: 0 | P54: 0
B55: 합계줄 | D55: ( 합 계 ) | I55: =TRUNC(SUM(I30:I54)) -> 0 | L55: =TRUNC(SUM(L30:L54)) -> 0 | N55: =TRUNC(SUM(N30:N54)) -> 0 | P55: =TRUNC(SUM(P30:P54)) -> 0
B56: 공종줄 | D56: 1.엘리베이터::1-3.전등설비공사
A57: 59753017003 | B57: 00103 | C57: 3913170620174410 | D57: 1종금속제가요전선관 | E57: 16 mm 일반-비방수 | F57: m | G57: =산출집계!H79 -> 159 | H57: =합산자재!H5 -> 0 | I57: =TRUNC(G57*H57) -> 0 | J57: =산출집계!J79 -> 145 | K57: =합산자재!I5 -> 0 | L57: =TRUNC(G57*K57) -> 0 | M57: =합산자재!J5 -> 0 | N57: =TRUNC(G57*M57) -> 0 | P57: =SUM(I57,L57,N57) -> 0 | AC57: =G57*H57 -> 0
A58: 59753777102 | B58: 00103 | C58: 3912130610035778 | D58: 스위치박스 | E58: 1 개용 54 mm | F58: 개 | G58: =산출집계!H80 -> 5 | H58: =합산자재!H14 -> 0 | I58: 0 | J58: =산출집계!J80 -> 5 | K58: =합산자재!I14 -> 0 | L58: 0 | M58: =합산자재!J14 -> 0 | N58: 0 | P58: 0
A59: 59753777111 | B59: 00103 | C59: 3912130610035781 | D59: 스위치박스 | E59: 2 개용 54 mm | F59: 개 | G59: =산출집계!H81 -> 2 | H59: =합산자재!H15 -> 0 | I59: 0 | J59: =산출집계!J81 -> 2 | K59: =합산자재!I15 -> 0 | L59: 0 | M59: =합산자재!J15 -> 0 | N59: 0 | P59: 0
A60: MM481669624 | B60: 00103 | C60: 2612162922076727 | D60: 450/750V 내열비닐절연전선 | E60: HFIX 1.78mm(2.5㎟) | F60: m | G60: =산출집계!H82 -> 478 | H60: =합산자재!H20 -> 0 | I60: 0 | J60: =산출집계!J82 -> 435 | K60: =합산자재!I20 -> 0 | L60: 0 | M60: =합산자재!J20 -> 0 | N60: 0 | P60: 0 | AC60: =G60*H60 -> 0
A61: 59301517001 | B61: 00103 | C61: 3912998720170517 | D61: 매입스위치 | E61: 250V 1로1구 | F61: 개 | G61: =산출집계!H83 -> 1 | H61: =합산자재!H28 -> 0 | I61: 0 | J61: =산출집계!J83 -> 1 | K61: =합산자재!I28 -> 0 | L61: 0 | M61: =합산자재!J28 -> 0 | N61: 0 | P61: 0
A62: 59301517002 | B62: 00103 | C62: 3912998720170518 | D62: 매입스위치 | E62: 250V 1로2구 | F62: 개 | G62: =산출집계!H84 -> 1 | H62: =합산자재!H29 -> 0 | I62: 0 | J62: =산출집계!J84 -> 1 | K62: =합산자재!I29 -> 0 | L62: 0 | M62: =합산자재!J29 -> 0 | N62: 0 | P62: 0
A63: 59301517003 | B63: 00103 | C63: 3912998720170519 | D63: 매입스위치 | E63: 250V 1로3구 | F63: 개 | G63: =산출집계!H85 -> 3 | H63: =합산자재!H30 -> 0 | I63: 0 | J63: =산출집계!J85 -> 3 | K63: =합산자재!I30 -> 0 | L63: 0 | M63: =합산자재!J30 -> 0 | N63: 0 | P63: 0
A64: 59301517004 | B64: 00103 | C64: 3912998720170520 | D64: 매입스위치 | E64: 250V 1로4구 | F64: 개 | G64: =산출집계!H86 -> 2 | H64: =합산자재!H31 -> 0 | I64: 0 | J64: =산출집계!J86 -> 2 | K64: =합산자재!I31 -> 0 | L64: 0 | M64: =합산자재!J31 -> 0 | N64: 0 | P64: 0
A65: MM041720685 | B65: 00103 | C65: 391115ZZ701Z0003 | D65: LED 면조명 | E65: 기존 | F65: 개 | G65: =산출집계!H87 -> 13 | H65: =합산자재!H55 -> 0 | I65: 0 | J65: =산출집계!J87 -> 13 | K65: =합산자재!I55 -> 0 | L65: 0 | M65: =합산자재!J55 -> 0 | N65: 0 | P65: 0
A66: MM041720674 | B66: 00103 | C66: 391115ZZ701Z0006 | D66: LED 파이프펜던트 | E66: 기존 | F66: 개 | G66: =산출집계!H88 -> 2 | H66: =합산자재!H58 -> 0 | I66: 0 | J66: =산출집계!J88 -> 2 | K66: =합산자재!I58 -> 0 | L66: 0 | M66: =합산자재!J58 -> 0 | N66: 0 | P66: 0
A67: A0100000000 | B67: 00103 | C67: RENT000000000003 | D67: [ 소모 잡자재 ] | E67: 전선, 전선관의 2 % | F67: 식 | G67: 1 | H67: =IF(TRUNC((AD67+AC67)/$AD$3)*$AD$3-AD67 <0, AC67, TRUNC((AD67+AC67)/$AD$3)*$AD$3-AD67) -> 0 | I67: =H67 -> 0 | J67: 1 | L67: 0 | N67: 0 | P67: 0 | Z67: 노임계 | AC67: =TRUNC(TRUNC(SUM(AC56:AC66))*옵션!$B$33/100) -> 0 | AD67: =TRUNC(SUM(I56:I66))+TRUNC(SUM(N56:N66)) -> 0
A68: 56900017016 | B68: 00103 | C68: L001010101000075 | D68: 노 무 비 | E68: 내선전공 | F68: 인 | G68: =노임근거!G67 -> 13 | H68: =합산자재!H65 -> 0 | I68: =TRUNC(G68*H68) -> 0 | J68: =노임근거!G67 -> 13 | K68: =합산자재!I65 -> 0 | L68: 0 | M68: =합산자재!J65 -> 0 | N68: 0 | P68: 0 | AE68: =L68 -> 0
A69: A0300000000 | B69: 00103 | C69: RENT000000000006 | D69: [ 공 구 손 료 ] | E69: 노무비의 3 % | F69: 식 | G69: 1 | H69: =IF(TRUNC((AD70+AC70)/$AE$3)*$AE$3-AD70 <0, AC70, TRUNC((AD70+AC70)/$AE$3)*$AE$3-AD70) -> 0 | I69: =H69 -> 0 | J69: 1 | L69: 0 | N69: 0 | P69: 0
I70: =TRUNC(G70*H70) -> 0 | L70: 0 | N70: 0 | P70: 0 | AC70: =TRUNC(AE70*옵션!$B$36/100) -> 0 | AD70: =TRUNC(SUM(L56:L68)) -> 0 | AE70: =TRUNC(SUM(AE56:AE69)) -> 0
I71: 0 | L71: 0 | N71: 0 | P71: 0
I72: 0 | L72: 0 | N72: 0 | P72: 0
I73: 0 | L73: 0 | N73: 0 | P73: 0
I74: 0 | L74: 0 | N74: 0 | P74: 0
I75: 0 | L75: 0 | N75: 0 | P75: 0
I76: 0 | L76: 0 | N76: 0 | P76: 0
I77: 0 | L77: 0 | N77: 0 | P77: 0
I78: 0 | L78: 0 | N78: 0 | P78: 0
I79: 0 | L79: 0 | N79: 0 | P79: 0
I80: 0 | L80: 0 | N80: 0 | P80: 0
B81: 합계줄 | D81: ( 합 계 ) | I81: =TRUNC(SUM(I56:I80)) -> 0 | L81: =TRUNC(SUM(L56:L80)) -> 0 | N81: =TRUNC(SUM(N56:N80)) -> 0 | P81: =TRUNC(SUM(P56:P80)) -> 0
B82: 공종줄 | D82: 1.엘리베이터::1-4.전열설비공사
A83: 59753097002 | B83: 00104 | C83: 3913170610035664 | D83: 합성수지제 가요전선관 | E83: CD-난연성 16㎜ | F83: m | G83: =산출집계!H116 -> 40 | H83: =합산자재!H4 -> 0 | I83: =TRUNC(G83*H83) -> 0 | J83: =산출집계!J116 -> 37 | K83: =합산자재!I4 -> 0 | L83: =TRUNC(G83*K83) -> 0 | M83: =합산자재!J4 -> 0 | N83: =TRUNC(G83*M83) -> 0 | P83: =SUM(I83,L83,N83) -> 0 | AA83: =G83*H83 -> 0 | AC83: =G83*H83 -> 0
A84: A0600000000 | B84: 00104 | C84: RENT000000000001 | D84: [ 배관 부속재 ] | E84: CD 전선관의 40 % | F84: 식 | G84: 1 | H84: =TRUNC(AA84*옵션!$B$32/100) -> 0 | I84: 0 | J84: 1 | L84: 0 | N84: 0 | P84: 0 | AA84: =TRUNC(SUM(AA82:AA83)) -> 0
A85: 59753017003 | B85: 00104 | C85: 3913170620174410 | D85: 1종금속제가요전선관 | E85: 16 mm 일반-비방수 | F85: m | G85: =산출집계!H117 -> 170 | H85: =합산자재!H5 -> 0 | I85: 0 | J85: =산출집계!J117 -> 155 | K85: =합산자재!I5 -> 0 | L85: 0 | M85: =합산자재!J5 -> 0 | N85: 0 | P85: 0 | AC85: =G85*H85 -> 0
A86: 59753017043 | B86: 00104 | C86: 3913170620174434 | D86: 1종금속제가요전선관 | E86: 커넥터, 16 mm 일반-비방수 | F86: 개 | G86: =산출집계!H118 -> 30 | H86: =합산자재!H10 -> 0 | I86: 0 | J86: =산출집계!J118 -> 30 | K86: =합산자재!I10 -> 0 | L86: 0 | M86: =합산자재!J10 -> 0 | N86: 0 | P86: 0
A87: 59753767011 | B87: 00104 | C87: 3912130810035750 | D87: 아우트렛박스 | E87: 8각 54㎜ | F87: 개 | G87: =산출집계!H119 -> 15 | H87: =합산자재!H12 -> 0 | I87: 0 | J87: =산출집계!J119 -> 15 | K87: =합산자재!I12 -> 0 | L87: 0 | M87: =합산자재!J12 -> 0 | N87: 0 | P87: 0
A88: 59753777102 | B88: 00104 | C88: 3912130610035778 | D88: 스위치박스 | E88: 1 개용 54 mm | F88: 개 | G88: =산출집계!H120 -> 15 | H88: =합산자재!H14 -> 0 | I88: 0 | J88: =산출집계!J120 -> 15 | K88: =합산자재!I14 -> 0 | L88: 0 | M88: =합산자재!J14 -> 0 | N88: 0 | P88: 0
A89: 59753767201 | B89: 00104 | C89: 3912130820174710 | D89: 아우트렛박스 커버 | E89: 커버, 8각, 평형 | F89: 개 | G89: =산출집계!H121 -> 15 | H89: =합산자재!H17 -> 0 | I89: 0 | J89: =산출집계!J121 -> 15 | K89: =합산자재!I17 -> 0 | L89: 0 | M89: =합산자재!J17 -> 0 | N89: 0 | P89: 0
A90: E1450667003 | B90: 00104 | C90: 2612162922076728 | D90: 450/750V 내열비닐절연전선 | E90: HFIX 2.25mm(4㎟) | F90: m | G90: =산출집계!H122 -> 634 | H90: =합산자재!H21 -> 0 | I90: 0 | J90: =산출집계!J122 -> 577 | K90: =합산자재!I21 -> 0 | L90: 0 | M90: =합산자재!J21 -> 0 | N90: 0 | P90: 0 | Z90: 노임계 | AC90: =G90*H90 -> 0
A91: 59350317206 | B91: 00104 | C91: 3912140620170850 | D91: 콘센트 | E91: 매입-접지형, 250V 2구 | F91: 개 | G91: =산출집계!H123 -> 15 | H91: =합산자재!H32 -> 0 | I91: 0 | J91: =산출집계!J123 -> 15 | K91: =합산자재!I32 -> 0 | L91: 0 | M91: =합산자재!J32 -> 0 | N91: 0 | P91: 0
A92: MM300020604 | B92: 00104 | C92: 3912161420167114 | D92: 누전차단기(32KGRc) | E92: 2P 30AF 20AT | F92: EA | G92: =산출집계!H124 -> 5 | H92: =합산자재!H46 -> 0 | I92: 0 | J92: =산출집계!J124 -> 5 | K92: =합산자재!I46 -> 0 | L92: 0 | M92: =합산자재!J46 -> 0 | N92: 0 | P92: 0
A93: 56959100801 | B93: 00104 | C93: EAB110211000 | D93: 배관용 홈파기 | E93: Φ22이하 | F93: m | G93: =산출집계!H125 -> 37 | H93: =일대목차!I5 -> 0 | I93: 0 | J93: =산출집계!J125 -> 37 | K93: =일대목차!L5 -> 0 | L93: 0 | M93: =일대목차!N5 -> 0 | N93: 0 | P93: 0
A94: 56953100908 | B94: 00104 | C94: EAB110220000 | D94: 벽관통 구멍(코어드릴) | E94: Φ50-벽두께 25cm | F94: 개소 | G94: =산출집계!H126 -> 5 | H94: =일대목차!I4 -> 0 | I94: 0 | J94: =산출집계!J126 -> 5 | K94: =일대목차!L4 -> 0 | L94: 0 | M94: =일대목차!N4 -> 0 | N94: 0 | P94: 0
A95: A0100000000 | B95: 00104 | C95: RENT000000000003 | D95: [ 소모 잡자재 ] | E95: 전선, 전선관의 2 % | F95: 식 | G95: 1 | H95: =IF(TRUNC((AD95+AC95)/$AD$3)*$AD$3-AD95 <0, AC95, TRUNC((AD95+AC95)/$AD$3)*$AD$3-AD95) -> 0 | I95: =H95 -> 0 | J95: 1 | L95: 0 | N95: 0 | P95: 0 | AC95: =TRUNC(TRUNC(SUM(AC82:AC94))*옵션!$B$33/100) -> 0 | AD95: =TRUNC(SUM(I82:I94))+TRUNC(SUM(N82:N94)) -> 0
A96: 56900017016 | B96: 00104 | C96: L001010101000075 | D96: 노 무 비 | E96: 내선전공 | F96: 인 | G96: =노임근거!G90 -> 17 | H96: =합산자재!H65 -> 0 | I96: =TRUNC(G96*H96) -> 0 | J96: =노임근거!G90 -> 17 | K96: =합산자재!I65 -> 0 | L96: 0 | M96: =합산자재!J65 -> 0 | N96: 0 | P96: 0 | AE96: =L96 -> 0
A97: A0300000000 | B97: 00104 | C97: RENT000000000006 | D97: [ 공 구 손 료 ] | E97: 노무비의 3 % | F97: 식 | G97: 1 | H97: =IF(TRUNC((AD98+AC98)/$AE$3)*$AE$3-AD98 <0, AC98, TRUNC((AD98+AC98)/$AE$3)*$AE$3-AD98) -> 0 | I97: =H97 -> 0 | J97: 1 | L97: 0 | N97: 0 | P97: 0
I98: =TRUNC(G98*H98) -> 0 | L98: 0 | N98: 0 | P98: 0 | AC98: =TRUNC(AE98*옵션!$B$36/100) -> 0 | AD98: =TRUNC(SUM(L82:L96)) -> 0 | AE98: =TRUNC(SUM(AE82:AE97)) -> 0
I99: 0 | L99: 0 | N99: 0 | P99: 0
I100: 0 | L100: 0 | N100: 0 | P100: 0
I101: 0 | L101: 0 | N101: 0 | P101: 0
I102: 0 | L102: 0 | N102: 0 | P102: 0
I103: 0 | L103: 0 | N103: 0 | P103: 0
I104: 0 | L104: 0 | N104: 0 | P104: 0
I105: 0 | L105: 0 | N105: 0 | P105: 0
I106: 0 | L106: 0 | N106: 0 | P106: 0
B107: 합계줄 | D107: ( 합 계 ) | I107: =TRUNC(SUM(I82:I106)) -> 0 | L107: =TRUNC(SUM(L82:L106)) -> 0 | N107: =TRUNC(SUM(N82:N106)) -> 0 | P107: =TRUNC(SUM(P82:P106)) -> 0
B108: 공종줄 | D108: 2.화장실::2-1.철거공사
A109: MM041720655 | B109: 00201 | C109: 391115ZZ701Z0002 | D109: LED 다운라이트 철거 | F109: 개 | G109: =산출집계!H153 -> 85 | I109: =TRUNC(G109*H109) -> 0 | J109: =산출집계!J153 -> 85 | K109: =합산자재!I54 -> 0 | L109: =TRUNC(G109*K109) -> 0 | M109: =합산자재!J54 -> 0 | N109: =TRUNC(G109*M109) -> 0 | P109: =SUM(I109,L109,N109) -> 0
A110: MM041720661 | B110: 00201 | C110: 391115ZZ701Z0008 | D110: PVC함 철거 | F110: 면 | G110: =산출집계!H154 -> 5 | I110: =TRUNC(G110*H110) -> 0 | J110: =산출집계!J154 -> 5 | K110: =합산자재!I60 -> 0 | L110: 0 | M110: =합산자재!J60 -> 0 | N110: 0 | P110: 0
A111: MM041720657 | B111: 00201 | C111: 391115ZZ701Z0010 | D111: 전등스위치 철거 | F111: 개 | G111: =산출집계!H155 -> 7 | I111: =TRUNC(G111*H111) -> 0 | J111: =산출집계!J155 -> 7 | K111: =합산자재!I62 -> 0 | L111: 0 | M111: =합산자재!J62 -> 0 | N111: 0 | P111: 0
A112: MM041720659 | B112: 00201 | C112: 391115ZZ701Z0011 | D112: 콘센트 철거 | F112: 개 | G112: =산출집계!H156 -> 15 | I112: =TRUNC(G112*H112) -> 0 | J112: =산출집계!J156 -> 15 | K112: =합산자재!I63 -> 0 | L112: 0 | M112: =합산자재!J63 -> 0 | N112: 0 | P112: 0
A113: 56900017016 | B113: 00201 | C113: L001010101000075 | D113: 노 무 비 | E113: 내선전공 | F113: 인 | G113: =노임근거!G113 -> 4 | H113: =합산자재!H65 -> 0 | I113: =TRUNC(G113*H113) -> 0 | J113: =노임근거!G113 -> 4 | K113: =합산자재!I65 -> 0 | L113: 0 | M113: =합산자재!J65 -> 0 | N113: 0 | P113: 0 | Z113: 노임계 | AE113: =L113 -> 0
A114: A0300000000 | B114: 00201 | C114: RENT000000000006 | D114: [ 공 구 손 료 ] | E114: 노무비의 3 % | F114: 식 | G114: 1 | H114: =IF(TRUNC((AD115+AC115)/$AE$3)*$AE$3-AD115 <0, AC115, TRUNC((AD115+AC115)/$AE$3)*$AE$3-AD115) -> 0 | I114: =H114 -> 0 | J114: 1 | L114: 0 | N114: 0 | P114: 0
I115: =TRUNC(G115*H115) -> 0 | L115: 0 | N115: 0 | P115: 0 | AC115: =TRUNC(AE115*옵션!$B$36/100) -> 0 | AD115: =TRUNC(SUM(L108:L113)) -> 0 | AE115: =TRUNC(SUM(AE108:AE114)) -> 0
I116: 0 | L116: 0 | N116: 0 | P116: 0
I117: 0 | L117: 0 | N117: 0 | P117: 0
I118: 0 | L118: 0 | N118: 0 | P118: 0
I119: 0 | L119: 0 | N119: 0 | P119: 0
I120: 0 | L120: 0 | N120: 0 | P120: 0
I121: 0 | L121: 0 | N121: 0 | P121: 0
I122: 0 | L122: 0 | N122: 0 | P122: 0
I123: 0 | L123: 0 | N123: 0 | P123: 0
I124: 0 | L124: 0 | N124: 0 | P124: 0
I125: 0 | L125: 0 | N125: 0 | P125: 0
I126: 0 | L126: 0 | N126: 0 | P126: 0
I127: 0 | L127: 0 | N127: 0 | P127: 0
I128: 0 | L128: 0 | N128: 0 | P128: 0
I129: 0 | L129: 0 | N129: 0 | P129: 0
I130: 0 | L130: 0 | N130: 0 | P130: 0
I131: 0 | L131: 0 | N131: 0 | P131: 0
I132: 0 | L132: 0 | N132: 0 | P132: 0
B133: 합계줄 | D133: ( 합 계 ) | I133: =TRUNC(SUM(I108:I132)) -> 0 | L133: =TRUNC(SUM(L108:L132)) -> 0 | N133: =TRUNC(SUM(N108:N132)) -> 0 | P133: =TRUNC(SUM(P108:P132)) -> 0
B134: 공종줄 | D134: 2.화장실::2-2.전력간선공사
A135: 59753017008 | B135: 00202 | C135: 3913170620174415 | D135: 1종금속제가요전선관 | E135: 54 mm 일반-비방수 | F135: m | G135: =산출집계!H190 -> 66 | H135: =합산자재!H7 -> 0 | I135: =TRUNC(G135*H135) -> 0 | J135: =산출집계!J190 -> 60 | K135: =합산자재!I7 -> 0 | L135: =TRUNC(G135*K135) -> 0 | M135: =합산자재!J7 -> 0 | N135: =TRUNC(G135*M135) -> 0 | P135: =SUM(I135,L135,N135) -> 0 | AC135: =G135*H135 -> 0
A136: MM300040379 | B136: 00202 | C136: 3913171221650789 | D136: 전선덕트 | E136: 알루미늄 150x100mm | F136: m | G136: =산출집계!H191 -> 2 | H136: =합산자재!H19 -> 0 | I136: 0 | J136: =산출집계!J191 -> 2 | K136: =합산자재!I19 -> 0 | L136: 0 | M136: =합산자재!J19 -> 0 | N136: 0 | P136: 0
A137: E1450927205 | B137: 00202 | C137: 2612152420683699 | D137: 접지용비닐절연전선(F-GV) | E137: 16㎟ | F137: m | G137: =산출집계!H192 -> 99 | H137: =합산자재!H24 -> 0 | I137: 0 | J137: =산출집계!J192 -> 90 | K137: =합산자재!I24 -> 0 | L137: 0 | M137: =합산자재!J24 -> 0 | N137: 0 | P137: 0 | AC137: =G137*H137 -> 0
A138: E1450287565 | B138: 00202 | C138: 2612162920683947 | D138: 폴리에틸렌 난연케이블 | E138: 0.6/1kv F-CV 4C×16㎟ | F138: m | G138: =산출집계!H193 -> 94 | H138: =합산자재!H27 -> 0 | I138: 0 | J138: =산출집계!J193 -> 90 | K138: =합산자재!I27 -> 0 | L138: 0 | M138: =합산자재!J27 -> 0 | N138: 0 | P138: 0 | AC138: =G138*H138 -> 0
A139: MM300015105 | B139: 00202 | C139: 3912161620167029 | D139: 배선용차단기(ABS-54) | E139: 4P 50AF 50AT | F139: EA | G139: =산출집계!H194 -> 1 | H139: =합산자재!H45 -> 0 | I139: 0 | J139: =산출집계!J194 -> 1 | K139: =합산자재!I45 -> 0 | L139: 0 | M139: =합산자재!J45 -> 0 | N139: 0 | P139: 0
A140: E9400177002 | B140: 00202 | C140: 3912143210033787 | D140: 러그단자 | E140: 동관단자 1 HOLE 16 ㎟ | F140: 개 | G140: =산출집계!H195 -> 10 | H140: =합산자재!H51 -> 0 | I140: 0 | J140: =산출집계!J195 -> 10 | K140: =합산자재!I51 -> 0 | L140: 0 | M140: =합산자재!J51 -> 0 | N140: 0 | P140: 0
A141: 56953100908 | B141: 00202 | C141: EAB110220000 | D141: 벽관통 구멍(코어드릴) | E141: Φ50-벽두께 25cm | F141: 개소 | G141: =산출집계!H196 -> 1 | H141: =일대목차!I4 -> 0 | I141: 0 | J141: =산출집계!J196 -> 1 | K141: =일대목차!L4 -> 0 | L141: 0 | M141: =일대목차!N4 -> 0 | N141: 0 | P141: 0
A142: 56959100803 | B142: 00202 | C142: EAB110213000 | D142: LP-화장실 분전반 | E142: 600Wx700Hx150D | F142: 면 | G142: =산출집계!H197 -> 1 | H142: =일대목차!I7 -> 0 | I142: 0 | J142: =산출집계!J197 -> 1 | K142: =일대목차!L7 -> 0 | L142: 0 | M142: =일대목차!N7 -> 0 | N142: 0 | P142: 0 | Z142: 노임계
A143: A0100000000 | B143: 00202 | C143: RENT000000000003 | D143: [ 소모 잡자재 ] | E143: 전선, 전선관의 2 % | F143: 식 | G143: 1 | H143: =IF(TRUNC((AD143+AC143)/$AD$3)*$AD$3-AD143 <0, AC143, TRUNC((AD143+AC143)/$AD$3)*$AD$3-AD143) -> 0 | I143: =H143 -> 0 | J143: 1 | L143: 0 | N143: 0 | P143: 0 | AC143: =TRUNC(TRUNC(SUM(AC134:AC142))*옵션!$B$33/100) -> 0 | AD143: =TRUNC(SUM(I134:I142))+TRUNC(SUM(N134:N142)) -> 0
A144: 56900017016 | B144: 00202 | C144: L001010101000075 | D144: 노 무 비 | E144: 내선전공 | F144: 인 | G144: =노임근거!G142 -> 9 | H144: =합산자재!H65 -> 0 | I144: =TRUNC(G144*H144) -> 0 | J144: =노임근거!G142 -> 9 | K144: =합산자재!I65 -> 0 | L144: 0 | M144: =합산자재!J65 -> 0 | N144: 0 | P144: 0 | AE144: =L144 -> 0
A145: 56900017076 | B145: 00202 | C145: L001010101000078 | D145: 노 무 비 | E145: 저압케이블전공 | F145: 인 | G145: =노임근거!G143 -> 5 | H145: =합산자재!H66 -> 0 | I145: =TRUNC(G145*H145) -> 0 | J145: =노임근거!G143 -> 5 | K145: =합산자재!I66 -> 0 | L145: 0 | M145: =합산자재!J66 -> 0 | N145: 0 | P145: 0 | AE145: =L145 -> 0
A146: A0300000000 | B146: 00202 | C146: RENT000000000006 | D146: [ 공 구 손 료 ] | E146: 노무비의 3 % | F146: 식 | G146: 1 | H146: =IF(TRUNC((AD147+AC147)/$AE$3)*$AE$3-AD147 <0, AC147, TRUNC((AD147+AC147)/$AE$3)*$AE$3-AD147) -> 0 | I146: =H146 -> 0 | J146: 1 | L146: 0 | N146: 0 | P146: 0
I147: =TRUNC(G147*H147) -> 0 | L147: 0 | N147: 0 | P147: 0 | AC147: =TRUNC(AE147*옵션!$B$36/100) -> 0 | AD147: =TRUNC(SUM(L134:L145)) -> 0 | AE147: =TRUNC(SUM(AE134:AE146)) -> 0
I148: 0 | L148: 0 | N148: 0 | P148: 0
I149: 0 | L149: 0 | N149: 0 | P149: 0
I150: 0 | L150: 0 | N150: 0 | P150: 0
I151: 0 | L151: 0 | N151: 0 | P151: 0
I152: 0 | L152: 0 | N152: 0 | P152: 0
I153: 0 | L153: 0 | N153: 0 | P153: 0
I154: 0 | L154: 0 | N154: 0 | P154: 0
I155: 0 | L155: 0 | N155: 0 | P155: 0
I156: 0 | L156: 0 | N156: 0 | P156: 0
I157: 0 | L157: 0 | N157: 0 | P157: 0
I158: 0 | L158: 0 | N158: 0 | P158: 0
B159: 합계줄 | D159: ( 합 계 ) | I159: =TRUNC(SUM(I134:I158)) -> 0 | L159: =TRUNC(SUM(L134:L158)) -> 0 | N159: =TRUNC(SUM(N134:N158)) -> 0 | P159: =TRUNC(SUM(P134:P158)) -> 0
B160: 공종줄 | D160: 2.화장실::2-3.전등설비공사
A161: 59753097002 | B161: 00203 | C161: 3913170610035664 | D161: 합성수지제 가요전선관 | E161: CD-난연성 16㎜ | F161: m | G161: =산출집계!H227 -> 14 | H161: =합산자재!H4 -> 0 | I161: =TRUNC(G161*H161) -> 0 | J161: =산출집계!J227 -> 13 | K161: =합산자재!I4 -> 0 | L161: =TRUNC(G161*K161) -> 0 | M161: =합산자재!J4 -> 0 | N161: =TRUNC(G161*M161) -> 0 | P161: =SUM(I161,L161,N161) -> 0 | AA161: =G161*H161 -> 0 | AC161: =G161*H161 -> 0
A162: A0600000000 | B162: 00203 | C162: RENT000000000001 | D162: [ 배관 부속재 ] | E162: CD 전선관의 40 % | F162: 식 | G162: 1 | H162: =TRUNC(AA162*옵션!$B$32/100) -> 0 | I162: 0 | J162: 1 | L162: 0 | N162: 0 | P162: 0 | AA162: =TRUNC(SUM(AA160:AA161)) -> 0
A163: 59753017023 | B163: 00203 | C163: 3913170620174422 | D163: 1종금속제가요전선관 | E163: 16 mm 일반-방수 | F163: m | G163: =산출집계!H228 -> 240 | H163: =합산자재!H8 -> 0 | I163: 0 | J163: =산출집계!J228 -> 219 | K163: =합산자재!I8 -> 0 | L163: 0 | M163: =합산자재!J8 -> 0 | N163: 0 | P163: 0 | AC163: =G163*H163 -> 0
A164: 59753017063 | B164: 00203 | C164: 3913170620174446 | D164: 1종금속제가요전선관 | E164: 커넥터, 16 mm 일반-방수 | F164: 개 | G164: =산출집계!H229 -> 150 | H164: =합산자재!H11 -> 0 | I164: 0 | J164: =산출집계!J229 -> 150 | K164: =합산자재!I11 -> 0 | L164: 0 | M164: =합산자재!J11 -> 0 | N164: 0 | P164: 0
A165: 59753767041 | B165: 00203 | C165: 3912130810035753 | D165: 아우트렛박스 | E165: 중형4각 54㎜ | F165: 개 | G165: =산출집계!H230 -> 75 | H165: =합산자재!H13 -> 0 | I165: 0 | J165: =산출집계!J230 -> 75 | K165: =합산자재!I13 -> 0 | L165: 0 | M165: =합산자재!J13 -> 0 | N165: 0 | P165: 0
A166: 59753777102 | B166: 00203 | C166: 3912130610035778 | D166: 스위치박스 | E166: 1 개용 54 mm | F166: 개 | G166: =산출집계!H231 -> 7 | H166: =합산자재!H14 -> 0 | I166: 0 | J166: =산출집계!J231 -> 7 | K166: =합산자재!I14 -> 0 | L166: 0 | M166: =합산자재!J14 -> 0 | N166: 0 | P166: 0
A167: 59753767231 | B167: 00203 | C167: 3912130820174713 | D167: 아우트렛박스 커버 | E167: 커버, 4각, 평형 | F167: 개 | G167: =산출집계!H232 -> 75 | H167: =합산자재!H18 -> 0 | I167: 0 | J167: =산출집계!J232 -> 75 | K167: =합산자재!I18 -> 0 | L167: 0 | M167: =합산자재!J18 -> 0 | N167: 0 | P167: 0
A168: MM481669624 | B168: 00203 | C168: 2612162922076727 | D168: 450/750V 내열비닐절연전선 | E168: HFIX 1.78mm(2.5㎟) | F168: m | G168: =산출집계!H233 -> 784 | H168: =합산자재!H20 -> 0 | I168: 0 | J168: =산출집계!J233 -> 713 | K168: =합산자재!I20 -> 0 | L168: 0 | M168: =합산자재!J20 -> 0 | N168: 0 | P168: 0 | Z168: 노임계 | AC168: =G168*H168 -> 0
A169: 59301517001 | B169: 00203 | C169: 3912998720170517 | D169: 매입스위치 | E169: 250V 1로1구 | F169: 개 | G169: =산출집계!H234 -> 7 | H169: =합산자재!H28 -> 0 | I169: 0 | J169: =산출집계!J234 -> 7 | K169: =합산자재!I28 -> 0 | L169: 0 | M169: =합산자재!J28 -> 0 | N169: 0 | P169: 0
A170: 56959100801 | B170: 00203 | C170: EAB110211000 | D170: 배관용 홈파기 | E170: Φ22이하 | F170: m | G170: =산출집계!H235 -> 9 | H170: =일대목차!I5 -> 0 | I170: 0 | J170: =산출집계!J235 -> 9 | K170: =일대목차!L5 -> 0 | L170: 0 | M170: =일대목차!N5 -> 0 | N170: 0 | P170: 0
A171: MM041720729 | B171: 00203 | C171: 391115ZZ701Z0001 | D171: LED 다운라이트 | E171: 12W | F171: 개 | G171: =산출집계!H236 -> 75 | H171: =합산자재!H53 -> 0 | I171: 0 | J171: =산출집계!J236 -> 75 | K171: =합산자재!I53 -> 0 | L171: 0 | M171: =합산자재!J53 -> 0 | N171: 0 | P171: 0
A172: A0100000000 | B172: 00203 | C172: RENT000000000003 | D172: [ 소모 잡자재 ] | E172: 전선, 전선관의 2 % | F172: 식 | G172: 1 | H172: =IF(TRUNC((AD172+AC172)/$AD$3)*$AD$3-AD172 <0, AC172, TRUNC((AD172+AC172)/$AD$3)*$AD$3-AD172) -> 0 | I172: =H172 -> 0 | J172: 1 | L172: 0 | N172: 0 | P172: 0 | AC172: =TRUNC(TRUNC(SUM(AC160:AC171))*옵션!$B$33/100) -> 0 | AD172: =TRUNC(SUM(I160:I171))+TRUNC(SUM(N160:N171)) -> 0
A173: 56900017016 | B173: 00203 | C173: L001010101000075 | D173: 노 무 비 | E173: 내선전공 | F173: 인 | G173: =노임근거!G168 -> 32 | H173: =합산자재!H65 -> 0 | I173: =TRUNC(G173*H173) -> 0 | J173: =노임근거!G168 -> 32 | K173: =합산자재!I65 -> 0 | L173: 0 | M173: =합산자재!J65 -> 0 | N173: 0 | P173: 0 | AE173: =L173 -> 0
A174: A0300000000 | B174: 00203 | C174: RENT000000000006 | D174: [ 공 구 손 료 ] | E174: 노무비의 3 % | F174: 식 | G174: 1 | H174: =IF(TRUNC((AD175+AC175)/$AE$3)*$AE$3-AD175 <0, AC175, TRUNC((AD175+AC175)/$AE$3)*$AE$3-AD175) -> 0 | I174: =H174 -> 0 | J174: 1 | L174: 0 | N174: 0 | P174: 0
I175: =TRUNC(G175*H175) -> 0 | L175: 0 | N175: 0 | P175: 0 | AC175: =TRUNC(AE175*옵션!$B$36/100) -> 0 | AD175: =TRUNC(SUM(L160:L173)) -> 0 | AE175: =TRUNC(SUM(AE160:AE174)) -> 0
I176: 0 | L176: 0 | N176: 0 | P176: 0
I177: 0 | L177: 0 | N177: 0 | P177: 0
I178: 0 | L178: 0 | N178: 0 | P178: 0
I179: 0 | L179: 0 | N179: 0 | P179: 0
I180: 0 | L180: 0 | N180: 0 | P180: 0
I181: 0 | L181: 0 | N181: 0 | P181: 0
I182: 0 | L182: 0 | N182: 0 | P182: 0
I183: 0 | L183: 0 | N183: 0 | P183: 0
I184: 0 | L184: 0 | N184: 0 | P184: 0
B185: 합계줄 | D185: ( 합 계 ) | I185: =TRUNC(SUM(I160:I184)) -> 0 | L185: =TRUNC(SUM(L160:L184)) -> 0 | N185: =TRUNC(SUM(N160:N184)) -> 0 | P185: =TRUNC(SUM(P160:P184)) -> 0
B186: 공종줄 | D186: 2.화장실::2-4.전열설비공사
A187: 59753097002 | B187: 00204 | C187: 3913170610035664 | D187: 합성수지제 가요전선관 | E187: CD-난연성 16㎜ | F187: m | G187: =산출집계!H264 -> 22 | H187: =합산자재!H4 -> 0 | I187: =TRUNC(G187*H187) -> 0 | J187: =산출집계!J264 -> 20 | K187: =합산자재!I4 -> 0 | L187: =TRUNC(G187*K187) -> 0 | M187: =합산자재!J4 -> 0 | N187: =TRUNC(G187*M187) -> 0 | P187: =SUM(I187,L187,N187) -> 0 | AA187: =G187*H187 -> 0 | AC187: =G187*H187 -> 0
A188: A0600000000 | B188: 00204 | C188: RENT000000000001 | D188: [ 배관 부속재 ] | E188: CD 전선관의 40 % | F188: 식 | G188: 1 | H188: =TRUNC(AA188*옵션!$B$32/100) -> 0 | I188: 0 | J188: 1 | L188: 0 | N188: 0 | P188: 0 | AA188: =TRUNC(SUM(AA186:AA187)) -> 0
A189: 59753017023 | B189: 00204 | C189: 3913170620174422 | D189: 1종금속제가요전선관 | E189: 16 mm 일반-방수 | F189: m | G189: =산출집계!H265 -> 236 | H189: =합산자재!H8 -> 0 | I189: 0 | J189: =산출집계!J265 -> 215 | K189: =합산자재!I8 -> 0 | L189: 0 | M189: =합산자재!J8 -> 0 | N189: 0 | P189: 0 | AC189: =G189*H189 -> 0
A190: 59753017025 | B190: 00204 | C190: 3913170620174424 | D190: 1종금속제가요전선관 | E190: 28 mm 일반-방수 | F190: m | G190: =산출집계!H266 -> 52 | H190: =합산자재!H9 -> 0 | I190: 0 | J190: =산출집계!J266 -> 48 | K190: =합산자재!I9 -> 0 | L190: 0 | M190: =합산자재!J9 -> 0 | N190: 0 | P190: 0 | AC190: =G190*H190 -> 0
A191: 59753017063 | B191: 00204 | C191: 3913170620174446 | D191: 1종금속제가요전선관 | E191: 커넥터, 16 mm 일반-방수 | F191: 개 | G191: =산출집계!H267 -> 20 | H191: =합산자재!H11 -> 0 | I191: 0 | J191: =산출집계!J267 -> 20 | K191: =합산자재!I11 -> 0 | L191: 0 | M191: =합산자재!J11 -> 0 | N191: 0 | P191: 0
A192: 59753767011 | B192: 00204 | C192: 3912130810035750 | D192: 아우트렛박스 | E192: 8각 54㎜ | F192: 개 | G192: =산출집계!H268 -> 10 | H192: =합산자재!H12 -> 0 | I192: 0 | J192: =산출집계!J268 -> 10 | K192: =합산자재!I12 -> 0 | L192: 0 | M192: =합산자재!J12 -> 0 | N192: 0 | P192: 0
A193: 59753777102 | B193: 00204 | C193: 3912130610035778 | D193: 스위치박스 | E193: 1 개용 54 mm | F193: 개 | G193: =산출집계!H269 -> 10 | H193: =합산자재!H14 -> 0 | I193: 0 | J193: =산출집계!J269 -> 10 | K193: =합산자재!I14 -> 0 | L193: 0 | M193: =합산자재!J14 -> 0 | N193: 0 | P193: 0
A194: MM300003404 | B194: 00204 | C194: 3912130610036792 | D194: PVC BOX 4각 | E194: 4 각 | F194: 개 | G194: =산출집계!H270 -> 1 | H194: =합산자재!H16 -> 0 | I194: 0 | J194: =산출집계!J270 -> 1 | K194: =합산자재!I16 -> 0 | L194: 0 | M194: =합산자재!J16 -> 0 | N194: 0 | P194: 0
A195: 59753767201 | B195: 00204 | C195: 3912130820174710 | D195: 아우트렛박스 커버 | E195: 커버, 8각, 평형 | F195: 개 | G195: =산출집계!H271 -> 10 | H195: =합산자재!H17 -> 0 | I195: 0 | J195: =산출집계!J271 -> 10 | K195: =합산자재!I17 -> 0 | L195: 0 | M195: =합산자재!J17 -> 0 | N195: 0 | P195: 0
A196: E1450667003 | B196: 00204 | C196: 2612162922076728 | D196: 450/750V 내열비닐절연전선 | E196: HFIX 2.25mm(4㎟) | F196: m | G196: =산출집계!H272 -> 775 | H196: =합산자재!H21 -> 0 | I196: 0 | J196: =산출집계!J272 -> 705 | K196: =합산자재!I21 -> 0 | L196: 0 | M196: =합산자재!J21 -> 0 | N196: 0 | P196: 0 | AC196: =G196*H196 -> 0
A197: E1450927201 | B197: 00204 | C197: 2612152420683695 | D197: 접지용비닐절연전선(F-GV) | E197: 2.5㎟ | F197: m | G197: =산출집계!H273 -> 52 | H197: =합산자재!H22 -> 0 | I197: 0 | J197: =산출집계!J273 -> 48 | K197: =합산자재!I22 -> 0 | L197: 0 | M197: =합산자재!J22 -> 0 | N197: 0 | P197: 0 | AC197: =G197*H197 -> 0
A198: E1450287561 | B198: 00204 | C198: 2612162920683943 | D198: 폴리에틸렌 난연케이블 | E198: 0.6/1kv F-CV 4C×2.5㎟ | F198: m | G198: =산출집계!H274 -> 50 | H198: =합산자재!H25 -> 0 | I198: 0 | J198: =산출집계!J274 -> 48 | K198: =합산자재!I25 -> 0 | L198: 0 | M198: =합산자재!J25 -> 0 | N198: 0 | P198: 0 | AC198: =G198*H198 -> 0
A199: 59350317121 | B199: 00204 | C199: 3912140620170834 | D199: 콘센트 | E199: 노출-접지형, 250V 원형 | F199: 개 | G199: =산출집계!H275 -> 10 | H199: =합산자재!H33 -> 0 | I199: 0 | J199: =산출집계!J275 -> 10 | K199: =합산자재!I33 -> 0 | L199: 0 | M199: =합산자재!J33 -> 0 | N199: 0 | P199: 0 | Z199: 노임계
A200: 59350317208 | B200: 00204 | C200: 3912140621030228 | D200: 방우콘센트 | E200: 매입-접지형, 250V 2구 | F200: 개 | G200: =산출집계!H276 -> 10 | H200: =합산자재!H34 -> 0 | I200: 0 | J200: =산출집계!J276 -> 10 | K200: =합산자재!I34 -> 0 | L200: 0 | M200: =합산자재!J34 -> 0 | N200: 0 | P200: 0
... 11 more rows

Sheet 노임근거 (hidden)
A1: 총줄수-> | B1: 211 | D1: [ 교육시설(서일관) 승강기 증축공사 및 리모델링 전기공사 ] - 노임 산출근거(2025년 하반기 노임) | AA1: 내선전공 | AB1: 저압케이블전공
A2: 번호 | B2: 공종코드 | C2: 코드 | D2: 명 칭 | E2: 규 격 | F2: 단위 | G2: 수량 | K2: 코드 | L2: 공량산출 | P2: 단 위 단 가 산 출 | S2: 품셈근거 | T2: 비고
G3: 결정수량 | H3: 할증 | I3: 산출수량 | J3: 재할% | L3: 명칭 | M3: 품셈 | N3: 할증% | O3: 공량 | P3: 단가 | Q3: 단위단가 | R3: 단위계
B4: 공종줄 | D4: 1.엘리베이터::1-1.철거공사
B5: 00101 | C5: 391115ZZ701Z0004 | D5: LED 면조명 철거 | F5: 개 | G5: =내역서!G5 -> 17 | H5: =IF(I5<>0,G5-I5,"") -> 0 | I5: =내역서!J5 -> 17 | K5: 56900017016 | L5: 내선전공 | M5: 0.221 | N5: 30 | O5: =IF(I5*M5=0,"",I5*M5*(N5/100)) -> 1.1271 | S5: 전기5-25-3 | T5: 철거자재 | AA5: =O5 -> 1.1271
B6: 00101 | C6: 391115ZZ701Z0005 | D6: LED 원형직부등 철거 | F6: 개 | G6: =내역서!G6 -> 1 | H6: 0 | I6: =내역서!J6 -> 1 | K6: 56900017016 | L6: 내선전공 | M6: 0.117 | N6: 30 | O6: 0.0351 | S6: 전기5-25-3 | T6: 철거자재 | AA6: 0.0351
B7: 00101 | C7: 391115ZZ701Z0007 | D7: LED 파이프펜던트 철거 | F7: 개 | G7: =내역서!G7 -> 2 | H7: 0 | I7: =내역서!J7 -> 2 | K7: 56900017016 | L7: 내선전공 | M7: 0.249 | N7: 30 | O7: 0.1494 | S7: 전기5-25-3 | T7: 철거자재 | AA7: 0.1494
B8: 00101 | C8: 391115ZZ701Z0009 | D8: 기타 전기공사 | E8: 배관, 배선정리 | F8: 식 | G8: =내역서!G8 -> 7 | H8: 0 | I8: =내역서!J8 -> 7 | K8: 56900017016 | L8: 내선전공 | M8: 0.5 | N8: 100 | O8: 3.5 | T8: 산출계상 | AA8: 3.5
B9: 00101 | C9: 391115ZZ701Z0010 | D9: 전등스위치 철거 | F9: 개 | G9: =내역서!G9 -> 8 | H9: 0 | I9: =내역서!J9 -> 8 | K9: 56900017016 | L9: 내선전공 | M9: 0.085 | N9: 30 | O9: 0.204 | S9: 전기5-23나 | T9: 철거자재 | AA9: 0.204
B10: 00101 | C10: 391115ZZ701Z0011 | D10: 콘센트 철거 | F10: 개 | G10: =내역서!G10 -> 4 | H10: 0 | I10: =내역서!J10 -> 4 | K10: 56900017016 | L10: 내선전공 | M10: 0.08 | N10: 30 | O10: 0.096 | S10: 전기5-23가 | T10: 철거자재 | AA10: 0.096
B11: 00101 | C11: L001010101000075 | D11: 노 무 비 | E11: 내선전공 | F11: 인 | G11: =IF(H11*I11/100+0.5 <1, TRUNC(H11*I11/100, 3), TRUNC(H11*I11/100+0.5, J11)) -> 4 | H11: =(옵션!$B$12*옵션!$B$41)/100 -> 80 | I11: =SUM(AA5:AA10) -> 5.1116 | J11: =옵션!$C$41 -> 0 | AA11: =SUM(AA5:AA10) -> 5.1116
H12: =IF(I12<>0,G12-I12,"") -> 
B30: 공종줄 | D30: 1.엘리베이터::1-2.전력간선공사
B31: 00102 | C31: 3913170620174414 | D31: 1종금속제가요전선관 | E31: 42 mm 일반-비방수 | F31: m | G31: =내역서!G31 -> 3 | H31: =IF(I31<>0,G31-I31,"") -> 0 | I31: =내역서!J31 -> 3 | J31: 10 | K31: 56900017016 | L31: 내선전공 | M31: 0.104 | N31: 100 | O31: =IF(I31*M31=0,"",I31*M31*(N31/100)) -> 0.312 | S31: 전기5-1 | AA31: =O31 -> 0.312
B32: 00102 | C32: 3913170620174415 | D32: 1종금속제가요전선관 | E32: 54 mm 일반-비방수 | F32: m | G32: =내역서!G32 -> 55 | H32: 5 | I32: =내역서!J32 -> 50 | J32: 10 | K32: 56900017016 | L32: 내선전공 | M32: 0.136 | N32: 100 | O32: 6.8 | S32: 전기5-1 | AA32: =O32 -> 6.8
B33: 00102 | C33: 2612152420683698 | D33: 접지용비닐절연전선(F-GV) | E33: 10㎟ | F33: m | G33: =내역서!G33 -> 3 | H33: 0 | I33: =내역서!J33 -> 3 | J33: 10 | K33: 56900017016 | L33: 내선전공 | M33: 0.006 | N33: 150 | O33: 0.027 | S33: 전기3-38 | AA33: =O33 -> 0.027
B34: 00102 | C34: 2612152420683699 | D34: 접지용비닐절연전선(F-GV) | E34: 16㎟ | F34: m | G34: =내역서!G34 -> 55 | H34: 5 | I34: =내역서!J34 -> 50 | J34: 10 | K34: 56900017016 | L34: 내선전공 | M34: 0.007 | N34: 150 | O34: 0.525 | S34: 전기3-38 | AA34: =O34 -> 0.525
B35: 00102 | C35: 2612162920683946 | D35: 폴리에틸렌 난연케이블 | E35: 0.6/1kv F-CV 4C×10㎟ | F35: m | G35: =내역서!G35 -> 3 | H35: 0 | I35: =내역서!J35 -> 3 | J35: 5 | K35: 56900017076 | L35: 저압케이블전공 | M35: 0.049 | N35: 100 | O35: 0.147 | S35: 전기5-13 | AB35: =O35 -> 0.147
B36: 00102 | C36: 2612162920683947 | D36: 폴리에틸렌 난연케이블 | E36: 0.6/1kv F-CV 4C×16㎟ | F36: m | G36: =내역서!G36 -> 52 | H36: 2 | I36: =내역서!J36 -> 50 | J36: 5 | K36: 56900017076 | L36: 저압케이블전공 | M36: 0.0598 | N36: 100 | O36: 2.99 | S36: 전기5-11 | AB36: =O36 -> 2.99
B37: 00102 | C37: 3912161620167029 | D37: 배선용차단기(ABS-54) | E37: 4P 50AF 50AT | F37: EA | G37: =내역서!G37 -> 1 | H37: 0 | I37: =내역서!J37 -> 1 | K37: 56900017016 | L37: 내선전공 | M37: 0.338 | N37: 100 | O37: 0.338 | S37: 전기5-19 | AA37: =O37 -> 0.338
B38: 00102 | C38: 3912143210033787 | D38: 러그단자 | E38: 동관단자 1 HOLE 16 ㎟ | F38: 개 | G38: =내역서!G39 -> 10 | H38: 0 | I38: =내역서!J39 -> 10 | K38: 56900017076 | L38: 저압케이블전공 | M38: 0.081 | N38: 120 | O38: 0.972 | S38: 전기4-37 | AB38: =O38 -> 0.972
B39: 00102 | C39: EAB110212000 | D39: LP-ELEV 분전반 | E39: 600Wx600Hx150D | F39: 면 | G39: 1 | H39: 0 | I39: 1 | K39: 56900017016 | L39: 내선전공 | M39: 0.66 | N39: 100 | O39: 0.66 | S39: 전기5-4 | T39: 제 3호 | AA39: =O39 -> 0.66
B40: 00102 | C40: L001010101000075 | D40: 노 무 비 | E40: 내선전공 | F40: 인 | G40: =IF(H40*I40/100+0.5 <1, TRUNC(H40*I40/100, 3), TRUNC(H40*I40/100+0.5, J40)) -> 7 | H40: =(옵션!$B$12*옵션!$B$42)/100 -> 80 | I40: =SUM(AA31:AA39) -> 8.662 | J40: =옵션!$C$42 -> 0 | AA40: =SUM(AA31:AA39) -> 8.662 | AB40: =SUM(AB31:AB39) -> 4.109
B41: 00102 | C41: L001010101000078 | D41: 노 무 비 | E41: 저압케이블전공 | F41: 인 | G41: =IF(H41*I41/100+0.5 <1, TRUNC(H41*I41/100, 3), TRUNC(H41*I41/100+0.5, J41)) -> 3 | H41: =(옵션!$B$12*옵션!$B$42)/100 -> 80 | I41: =SUM(AB31:AB39) -> 4.109 | J41: =옵션!$C$42 -> 0
H42: =IF(I42<>0,G42-I42,"") -> 
B56: 공종줄 | D56: 1.엘리베이터::1-3.전등설비공사
B57: 00103 | C57: 3913170620174410 | D57: 1종금속제가요전선관 | E57: 16 mm 일반-비방수 | F57: m | G57: =내역서!G57 -> 159 | H57: =IF(I57<>0,G57-I57,"") -> 14 | I57: =내역서!J57 -> 145 | J57: 10 | K57: 56900017016 | L57: 내선전공 | M57: 0.044 | N57: 100 | O57: =IF(I57*M57=0,"",I57*M57*(N57/100)) -> 6.38 | S57: 전기5-1 | AA57: =O57 -> 6.38
B58: 00103 | C58: 3912130610035778 | D58: 스위치박스 | E58: 1 개용 54 mm | F58: 개 | G58: =내역서!G58 -> 5 | H58: 0 | I58: =내역서!J58 -> 5 | K58: 56900017016 | L58: 내선전공 | M58: 0.2 | N58: 100 | O58: 1 | S58: 전기5-3 | AA58: 1
B59: 00103 | C59: 3912130610035781 | D59: 스위치박스 | E59: 2 개용 54 mm | F59: 개 | G59: =내역서!G59 -> 2 | H59: 0 | I59: =내역서!J59 -> 2 | K59: 56900017016 | L59: 내선전공 | M59: 0.2 | N59: 100 | O59: 0.4 | S59: 전기5-3 | AA59: 0.4
B60: 00103 | C60: 2612162922076727 | D60: 450/750V 내열비닐절연전선 | E60: HFIX 1.78mm(2.5㎟) | F60: m | G60: =내역서!G60 -> 478 | H60: 43 | I60: =내역서!J60 -> 435 | J60: 10 | K60: 56900017016 | L60: 내선전공 | M60: 0.01 | N60: 100 | O60: 4.35 | S60: 전기5-10 | AA60: 4.35
B61: 00103 | C61: 3912998720170517 | D61: 매입스위치 | E61: 250V 1로1구 | F61: 개 | G61: =내역서!G61 -> 1 | H61: 0 | I61: =내역서!J61 -> 1 | K61: 56900017016 | L61: 내선전공 | M61: 0.085 | N61: 100 | O61: 0.085 | S61: 전기5-23-2 | AA61: 0.085
B62: 00103 | C62: 3912998720170518 | D62: 매입스위치 | E62: 250V 1로2구 | F62: 개 | G62: =내역서!G62 -> 1 | H62: 0 | I62: =내역서!J62 -> 1 | K62: 56900017016 | L62: 내선전공 | M62: 0.085 | N62: 100 | O62: 0.085 | S62: 전기5-23-2 | AA62: 0.085
B63: 00103 | C63: 3912998720170519 | D63: 매입스위치 | E63: 250V 1로3구 | F63: 개 | G63: =내역서!G63 -> 3 | H63: 0 | I63: =내역서!J63 -> 3 | K63: 56900017016 | L63: 내선전공 | M63: 0.085 | N63: 100 | O63: 0.255 | S63: 전기5-23-2 | AA63: 0.255
B64: 00103 | C64: 3912998720170520 | D64: 매입스위치 | E64: 250V 1로4구 | F64: 개 | G64: =내역서!G64 -> 2 | H64: 0 | I64: =내역서!J64 -> 2 | K64: 56900017016 | L64: 내선전공 | M64: 0.085 | N64: 100 | O64: 0.17 | S64: 전기5-23-2 | AA64: 0.17
B65: 00103 | C65: 391115ZZ701Z0003 | D65: LED 면조명 | E65: 기존 | F65: 개 | G65: =내역서!G65 -> 13 | H65: 0 | I65: =내역서!J65 -> 13 | K65: 56900017016 | L65: 내선전공 | M65: 0.221 | N65: 100 | O65: 2.873 | S65: 전기5-25-3 | AA65: 2.873
B66: 00103 | C66: 391115ZZ701Z0006 | D66: LED 파이프펜던트 | E66: 기존 | F66: 개 | G66: =내역서!G66 -> 2 | H66: 0 | I66: =내역서!J66 -> 2 | K66: 56900017016 | L66: 내선전공 | M66: 0.249 | N66: 100 | O66: 0.498 | S66: 전기5-25-3 | AA66: 0.498
B67: 00103 | C67: L001010101000075 | D67: 노 무 비 | E67: 내선전공 | F67: 인 | G67: =IF(H67*I67/100+0.5 <1, TRUNC(H67*I67/100, 3), TRUNC(H67*I67/100+0.5, J67)) -> 13 | H67: =(옵션!$B$12*옵션!$B$43)/100 -> 80 | I67: =SUM(AA57:AA66) -> 16.096 | J67: =옵션!$C$43 -> 0 | AA67: =SUM(AA57:AA66) -> 16.096
H68: =IF(I68<>0,G68-I68,"") -> 
B82: 공종줄 | D82: 1.엘리베이터::1-4.전열설비공사
B83: 00104 | C83: 3913170610035664 | D83: 합성수지제 가요전선관 | E83: CD-난연성 16㎜ | F83: m | G83: =내역서!G83 -> 40 | H83: =IF(I83<>0,G83-I83,"") -> 3 | I83: =내역서!J83 -> 37 | J83: 10 | K83: 56900017016 | L83: 내선전공 | M83: 0.04 | N83: 100 | O83: =IF(I83*M83=0,"",I83*M83*(N83/100)) -> 1.48 | S83: 전기5-1 | AA83: =O83 -> 1.48
B84: 00104 | C84: 3913170620174410 | D84: 1종금속제가요전선관 | E84: 16 mm 일반-비방수 | F84: m | G84: =내역서!G85 -> 170 | H84: 15 | I84: =내역서!J85 -> 155 | J84: 10 | K84: 56900017016 | L84: 내선전공 | M84: 0.044 | N84: 100 | O84: 6.82 | S84: 전기5-1 | AA84: 6.82
B85: 00104 | C85: 3912130810035750 | D85: 아우트렛박스 | E85: 8각 54㎜ | F85: 개 | G85: =내역서!G87 -> 15 | H85: 0 | I85: =내역서!J87 -> 15 | K85: 56900017016 | L85: 내선전공 | M85: 0.12 | N85: 100 | O85: 1.8 | S85: 전기5-3 | AA85: 1.8
B86: 00104 | C86: 3912130610035778 | D86: 스위치박스 | E86: 1 개용 54 mm | F86: 개 | G86: =내역서!G88 -> 15 | H86: 0 | I86: =내역서!J88 -> 15 | K86: 56900017016 | L86: 내선전공 | M86: 0.2 | N86: 100 | O86: 3 | S86: 전기5-3 | AA86: 3
B87: 00104 | C87: 2612162922076728 | D87: 450/750V 내열비닐절연전선 | E87: HFIX 2.25mm(4㎟) | F87: m | G87: =내역서!G90 -> 634 | H87: 57 | I87: =내역서!J90 -> 577 | J87: 10 | K87: 56900017016 | L87: 내선전공 | M87: 0.01 | N87: 100 | O87: 5.77 | S87: 전기5-10 | AA87: 5.77
B88: 00104 | C88: 3912140620170850 | D88: 콘센트 | E88: 매입-접지형, 250V 2구 | F88: 개 | G88: =내역서!G91 -> 15 | H88: 0 | I88: =내역서!J91 -> 15 | K88: 56900017016 | L88: 내선전공 | M88: 0.08 | N88: 100 | O88: 1.2 | S88: 전기5-23-1 | AA88: 1.2
B89: 00104 | C89: 3912161420167114 | D89: 누전차단기(32KGRc) | E89: 2P 30AF 20AT | F89: EA | G89: =내역서!G92 -> 5 | H89: 0 | I89: =내역서!J92 -> 5 | K89: 56900017016 | L89: 내선전공 | M89: 0.133 | N89: 100 | O89: 0.665 | S89: 전기5-19 | AA89: 0.665
B90: 00104 | C90: L001010101000075 | D90: 노 무 비 | E90: 내선전공 | F90: 인 | G90: =IF(H90*I90/100+0.5 <1, TRUNC(H90*I90/100, 3), TRUNC(H90*I90/100+0.5, J90)) -> 17 | H90: =(옵션!$B$12*옵션!$B$44)/100 -> 80 | I90: =SUM(AA83:AA89) -> 20.735 | J90: =옵션!$C$44 -> 0 | AA90: =SUM(AA83:AA89) -> 20.735
H91: =IF(I91<>0,G91-I91,"") -> 
B108: 공종줄 | D108: 2.화장실::2-1.철거공사
B109: 00201 | C109: 391115ZZ701Z0002 | D109: LED 다운라이트 철거 | F109: 개 | G109: =내역서!G109 -> 85 | H109: =IF(I109<>0,G109-I109,"") -> 0 | I109: =내역서!J109 -> 85 | K109: 56900017016 | L109: 내선전공 | M109: 0.155 | N109: 30 | O109: =IF(I109*M109=0,"",I109*M109*(N109/100)) -> 3.9525 | S109: 전기5-25-3 | T109: 철거자재 | AA109: =O109 -> 3.9525
B110: 00201 | C110: 391115ZZ701Z0008 | D110: PVC함 철거 | F110: 면 | G110: =내역서!G110 -> 5 | H110: =IF(I110<>0,G110-I110,"") -> 0 | I110: =내역서!J110 -> 5 | K110: 56900017016 | L110: 내선전공 | M110: 0.18 | N110: 30 | O110: 0.27 | S110: 전기5-4 | T110: 철거자재 | AA110: =O110 -> 0.27
B111: 00201 | C111: 391115ZZ701Z0010 | D111: 전등스위치 철거 | F111: 개 | G111: =내역서!G111 -> 7 | H111: =IF(I111<>0,G111-I111,"") -> 0 | I111: =내역서!J111 -> 7 | K111: 56900017016 | L111: 내선전공 | M111: 0.085 | N111: 30 | O111: 0.1785 | S111: 전기5-23나 | T111: 철거자재 | AA111: =O111 -> 0.1785
B112: 00201 | C112: 391115ZZ701Z0011 | D112: 콘센트 철거 | F112: 개 | G112: =내역서!G112 -> 15 | H112: =IF(I112<>0,G112-I112,"") -> 0 | I112: =내역서!J112 -> 15 | K112: 56900017016 | L112: 내선전공 | M112: 0.08 | N112: 30 | O112: 0.36 | S112: 전기5-23가 | T112: 철거자재 | AA112: =O112 -> 0.36
B113: 00201 | C113: L001010101000075 | D113: 노 무 비 | E113: 내선전공 | F113: 인 | G113: =IF(H113*I113/100+0.5 <1, TRUNC(H113*I113/100, 3), TRUNC(H113*I113/100+0.5, J113)) -> 4 | H113: =(옵션!$B$12*옵션!$B$45)/100 -> 80 | I113: =SUM(AA109:AA112) -> 4.761 | J113: =옵션!$C$45 -> 0 | AA113: =SUM(AA109:AA112) -> 4.761
H114: =IF(I114<>0,G114-I114,"") -> 
B134: 공종줄 | D134: 2.화장실::2-2.전력간선공사
B135: 00202 | C135: 3913170620174415 | D135: 1종금속제가요전선관 | E135: 54 mm 일반-비방수 | F135: m | G135: =내역서!G135 -> 66 | H135: =IF(I135<>0,G135-I135,"") -> 6 | I135: =내역서!J135 -> 60 | J135: 10 | K135: 56900017016 | L135: 내선전공 | M135: 0.136 | N135: 100 | O135: =IF(I135*M135=0,"",I135*M135*(N135/100)) -> 8.16 | S135: 전기5-1 | AA135: =O135 -> 8.16
B136: 00202 | C136: 3913171221650789 | D136: 전선덕트 | E136: 알루미늄 150x100mm | F136: m | G136: =내역서!G136 -> 2 | H136: 0 | I136: =내역서!J136 -> 2 | J136: 5 | K136: 56900017016 | L136: 내선전공 | M136: 0.4 | N136: 70 | O136: 0.56 | S136: 전기5-7 | AA136: =O136 -> 0.56
B137: 00202 | C137: 2612152420683699 | D137: 접지용비닐절연전선(F-GV) | E137: 16㎟ | F137: m | G137: =내역서!G137 -> 99 | H137: 9 | I137: =내역서!J137 -> 90 | J137: 10 | K137: 56900017016 | L137: 내선전공 | M137: 0.007 | N137: 150 | O137: 0.945 | S137: 전기3-38 | AA137: =O137 -> 0.945
B138: 00202 | C138: 2612162920683947 | D138: 폴리에틸렌 난연케이블 | E138: 0.6/1kv F-CV 4C×16㎟ | F138: m | G138: =내역서!G138 -> 94 | H138: 4 | I138: =내역서!J138 -> 90 | J138: 5 | K138: 56900017076 | L138: 저압케이블전공 | M138: 0.0598 | N138: 100 | O138: 5.382 | S138: 전기5-11 | AB138: =O138 -> 5.382
B139: 00202 | C139: 3912161620167029 | D139: 배선용차단기(ABS-54) | E139: 4P 50AF 50AT | F139: EA | G139: =내역서!G139 -> 1 | H139: 0 | I139: =내역서!J139 -> 1 | K139: 56900017016 | L139: 내선전공 | M139: 0.338 | N139: 100 | O139: 0.338 | S139: 전기5-19 | AA139: =O139 -> 0.338
B140: 00202 | C140: 3912143210033787 | D140: 러그단자 | E140: 동관단자 1 HOLE 16 ㎟ | F140: 개 | G140: =내역서!G140 -> 10 | H140: 0 | I140: =내역서!J140 -> 10 | K140: 56900017076 | L140: 저압케이블전공 | M140: 0.081 | N140: 120 | O140: 0.972 | S140: 전기4-37 | AB140: =O140 -> 0.972
B141: 00202 | C141: EAB110213000 | D141: LP-화장실 분전반 | E141: 600Wx700Hx150D | F141: 면 | G141: 1 | H141: 0 | I141: 1 | K141: 56900017016 | L141: 내선전공 | M141: 0.95 | N141: 100 | O141: 0.95 | S141: 전기5-4 | T141: 제 4호 | AA141: =O141 -> 0.95
B142: 00202 | C142: L001010101000075 | D142: 노 무 비 | E142: 내선전공 | F142: 인 | G142: =IF(H142*I142/100+0.5 <1, TRUNC(H142*I142/100, 3), TRUNC(H142*I142/100+0.5, J142)) -> 9 | H142: =(옵션!$B$12*옵션!$B$46)/100 -> 80 | I142: =SUM(AA135:AA141) -> 10.953 | J142: =옵션!$C$46 -> 0 | AA142: =SUM(AA135:AA141) -> 10.953 | AB142: =SUM(AB135:AB141) -> 6.354
B143: 00202 | C143: L001010101000078 | D143: 노 무 비 | E143: 저압케이블전공 | F143: 인 | G143: =IF(H143*I143/100+0.5 <1, TRUNC(H143*I143/100, 3), TRUNC(H143*I143/100+0.5, J143)) -> 5 | H143: =(옵션!$B$12*옵션!$B$46)/100 -> 80 | I143: =SUM(AB135:AB141) -> 6.354 | J143: =옵션!$C$46 -> 0
H144: =IF(I144<>0,G144-I144,"") -> 
B160: 공종줄 | D160: 2.화장실::2-3.전등설비공사
B161: 00203 | C161: 3913170610035664 | D161: 합성수지제 가요전선관 | E161: CD-난연성 16㎜ | F161: m | G161: =내역서!G161 -> 14 | H161: =IF(I161<>0,G161-I161,"") -> 1 | I161: =내역서!J161 -> 13 | J161: 10 | K161: 56900017016 | L161: 내선전공 | M161: 0.04 | N161: 100 | O161: =IF(I161*M161=0,"",I161*M161*(N161/100)) -> 0.52 | S161: 전기5-1 | AA161: =O161 -> 0.52
B162: 00203 | C162: 3913170620174422 | D162: 1종금속제가요전선관 | E162: 16 mm 일반-방수 | F162: m | G162: =내역서!G163 -> 240 | H162: 21 | I162: =내역서!J163 -> 219 | J162: 10 | K162: 56900017016 | L162: 내선전공 | M162: 0.044 | N162: 100 | O162: 9.636 | S162: 전기5-1 | AA162: 9.636
B163: 00203 | C163: 3912130810035753 | D163: 아우트렛박스 | E163: 중형4각 54㎜ | F163: 개 | G163: =내역서!G165 -> 75 | H163: 0 | I163: =내역서!J165 -> 75 | K163: 56900017016 | L163: 내선전공 | M163: 0.12 | N163: 100 | O163: 9 | S163: 전기5-3 | AA163: 9
B164: 00203 | C164: 3912130610035778 | D164: 스위치박스 | E164: 1 개용 54 mm | F164: 개 | G164: =내역서!G166 -> 7 | H164: 0 | I164: =내역서!J166 -> 7 | K164: 56900017016 | L164: 내선전공 | M164: 0.2 | N164: 100 | O164: 1.4 | S164: 전기5-3 | AA164: 1.4
B165: 00203 | C165: 2612162922076727 | D165: 450/750V 내열비닐절연전선 | E165: HFIX 1.78mm(2.5㎟) | F165: m | G165: =내역서!G168 -> 784 | H165: 71 | I165: =내역서!J168 -> 713 | J165: 10 | K165: 56900017016 | L165: 내선전공 | M165: 0.01 | N165: 100 | O165: 7.13 | S165: 전기5-10 | AA165: 7.13
B166: 00203 | C166: 3912998720170517 | D166: 매입스위치 | E166: 250V 1로1구 | F166: 개 | G166: =내역서!G169 -> 7 | H166: 0 | I166: =내역서!J169 -> 7 | K166: 56900017016 | L166: 내선전공 | M166: 0.085 | N166: 100 | O166: 0.595 | S166: 전기5-23-2 | AA166: 0.595
B167: 00203 | C167: 391115ZZ701Z0001 | D167: LED 다운라이트 | E167: 12W | F167: 개 | G167: =내역서!G171 -> 75 | H167: 0 | I167: =내역서!J171 -> 75 | K167: 56900017016 | L167: 내선전공 | M167: 0.155 | N167: 100 | O167: 11.625 | S167: 전기5-25-3 | AA167: 11.625
B168: 00203 | C168: L001010101000075 | D168: 노 무 비 | E168: 내선전공 | F168: 인 | G168: =IF(H168*I168/100+0.5 <1, TRUNC(H168*I168/100, 3), TRUNC(H168*I168/100+0.5, J168)) -> 32 | H168: =(옵션!$B$12*옵션!$B$47)/100 -> 80 | I168: =SUM(AA161:AA167) -> 39.906 | J168: =옵션!$C$47 -> 0 | AA168: =SUM(AA161:AA167) -> 39.906
H169: =IF(I169<>0,G169-I169,"") -> 
B186: 공종줄 | D186: 2.화장실::2-4.전열설비공사
B187: 00204 | C187: 3913170610035664 | D187: 합성수지제 가요전선관 | E187: CD-난연성 16㎜ | F187: m | G187: =내역서!G187 -> 22 | H187: =IF(I187<>0,G187-I187,"") -> 2 | I187: =내역서!J187 -> 20 | J187: 10 | K187: 56900017016 | L187: 내선전공 | M187: 0.04 | N187: 100 | O187: =IF(I187*M187=0,"",I187*M187*(N187/100)) -> 0.8 | S187: 전기5-1 | AA187: =O187 -> 0.8
B188: 00204 | C188: 3913170620174422 | D188: 1종금속제가요전선관 | E188: 16 mm 일반-방수 | F188: m | G188: =내역서!G189 -> 236 | H188: 21 | I188: =내역서!J189 -> 215 | J188: 10 | K188: 56900017016 | L188: 내선전공 | M188: 0.044 | N188: 100 | O188: 9.46 | S188: 전기5-1 | AA188: 9.46
B189: 00204 | C189: 3913170620174424 | D189: 1종금속제가요전선관 | E189: 28 mm 일반-방수 | F189: m | G189: =내역서!G190 -> 52 | H189: 4 | I189: =내역서!J190 -> 48 | J189: 10 | K189: 56900017016 | L189: 내선전공 | M189: 0.072 | N189: 100 | O189: 3.456 | S189: 전기5-1 | AA189: 3.456
B190: 00204 | C190: 3912130810035750 | D190: 아우트렛박스 | E190: 8각 54㎜ | F190: 개 | G190: =내역서!G192 -> 10 | H190: 0 | I190: =내역서!J192 -> 10 | K190: 56900017016 | L190: 내선전공 | M190: 0.12 | N190: 100 | O190: 1.2 | S190: 전기5-3 | AA190: 1.2
B191: 00204 | C191: 3912130610035778 | D191: 스위치박스 | E191: 1 개용 54 mm | F191: 개 | G191: =내역서!G193 -> 10 | H191: 0 | I191: =내역서!J193 -> 10 | K191: 56900017016 | L191: 내선전공 | M191: 0.2 | N191: 100 | O191: 2 | S191: 전기5-3 | AA191: 2
B192: 00204 | C192: 3912130610036792 | D192: PVC BOX 4각 | E192: 4 각 | F192: 개 | G192: =내역서!G194 -> 1 | H192: 0 | I192: =내역서!J194 -> 1 | K192: 56900017016 | L192: 내선전공 | M192: 0.12 | N192: 100 | O192: 0.12 | S192: 전기5-3 | AA192: 0.12
B193: 00204 | C193: 2612162922076728 | D193: 450/750V 내열비닐절연전선 | E193: HFIX 2.25mm(4㎟) | F193: m | G193: =내역서!G196 -> 775 | H193: 70 | I193: =내역서!J196 -> 705 | J193: 10 | K193: 56900017016 | L193: 내선전공 | M193: 0.01 | N193: 100 | O193: 7.05 | S193: 전기5-10 | AA193: 7.05
B194: 00204 | C194: 2612152420683695 | D194: 접지용비닐절연전선(F-GV) | E194: 2.5㎟ | F194: m | G194: =내역서!G197 -> 52 | H194: 4 | I194: =내역서!J197 -> 48 | J194: 10 | K194: 56900017016 | L194: 내선전공 | M194: 0.006 | N194: 150 | O194: 0.432 | S194: 전기3-38 | AA194: 0.432
B195: 00204 | C195: 2612162920683943 | D195: 폴리에틸렌 난연케이블 | E195: 0.6/1kv F-CV 4C×2.5㎟ | F195: m | G195: =내역서!G198 -> 50 | H195: 2 | I195: =내역서!J198 -> 48 | J195: 5 | K195: 56900017076 | L195: 저압케이블전공 | M195: 0.026 | N195: 100 | O195: 1.248 | S195: 전기5-13 | AB195: =O195 -> 1.248
B196: 00204 | C196: 3912140620170834 | D196: 콘센트 | E196: 노출-접지형, 250V 원형 | F196: 개 | G196: =내역서!G199 -> 10 | H196: 0 | I196: =내역서!J199 -> 10 | K196: 56900017016 | L196: 내선전공 | M196: 0.096 | N196: 100 | O196: 0.96 | S196: 전기5-23-1 | AA196: =O196 -> 0.96
B197: 00204 | C197: 3912140621030228 | D197: 방우콘센트 | E197: 매입-접지형, 250V 2구 | F197: 개 | G197: =내역서!G200 -> 10 | H197: 0 | I197: =내역서!J200 -> 10 | K197: 56900017016 | L197: 내선전공 | M197: 0.08 | N197: 100 | O197: 0.8 | S197: 전기5-23-1 | AA197: =O197 -> 0.8
B198: 00204 | C198: 3912161620267304 | D198: 배선용차단기(ABS-34) | E198: 4P 30AF 20AT | F198: EA | G198: =내역서!G201 -> 1 | H198: 0 | I198: =내역서!J201 -> 1 | K198: 56900017016 | L198: 내선전공 | M198: 0.247 | N198: 100 | O198: 0.247 | S198: 전기5-19 | AA198: =O198 -> 0.247
B199: 00204 | C199: L001010101000075 | D199: 노 무 비 | E199: 내선전공 | F199: 인 | G199: =IF(H199*I199/100+0.5 <1, TRUNC(H199*I199/100, 3), TRUNC(H199*I199/100+0.5, J199)) -> 21 | H199: =(옵션!$B$12*옵션!$B$48)/100 -> 80 | I199: =SUM(AA187:AA198) -> 26.525 | J199: =옵션!$C$48 -> 0 | AA199: =SUM(AA187:AA198) -> 26.525 | AB199: =SUM(AB187:AB198) -> 1.248
B200: 00204 | C200: L001010101000078 | D200: 노 무 비 | E200: 저압케이블전공 | F200: 인 | G200: =IF(H200*I200/100+0.5 <1, TRUNC(H200*I200/100, 3), TRUNC(H200*I200/100+0.5, J200)) -> 1 | H200: =(옵션!$B$12*옵션!$B$48)/100 -> 80 | I200: =SUM(AB187:AB198) -> 1.248 | J200: =옵션!$C$48 -> 0

Sheet 일대목차 (hidden)
A1: 총줄수-> | B1: 29 | C1: [ 교육시설(서일관) 승강기 증축공사 및 리모델링 전기공사 ] - 일위대가목차
A2: 번호 | B2: … | C2: 코드 | D2: 명 칭 | E2: 규 격 | F2: 단위 | G2: 수량 | H2: 재료비 | J2: 노무비 | M2: 경비 | O2: 계 | P2: 계 | Q2: 비고
H3: 단가 | I3: 금액 | J3: 수량 | K3: 단가 | L3: 금액 | M3: 단가 | N3: 금액 | O3: 단가
A4: 56953100908 | B4: EAB110220000 | C4: 제 1호 | D4: 벽관통 구멍(코어드릴) | E4: Φ50-벽두께 25cm | F4: 개소 | H4: =일위대가!I8 -> 0 | I4: =H4 -> 0 | K4: =일위대가!L8 -> 0 | L4: =K4 -> 0 | M4: =일위대가!N8 -> 0 | N4: =M4 -> 0 | P4: =I4+L4+N4 -> 0
A5: 56959100801 | B5: EAB110211000 | C5: 제 2호 | D5: 배관용 홈파기 | E5: Φ22이하 | F5: m | H5: =일위대가!I12 -> 0 | I5: =H5 -> 0 | K5: =일위대가!L12 -> 0 | L5: =K5 -> 0 | M5: =일위대가!N12 -> 0 | N5: =M5 -> 0 | P5: =I5+L5+N5 -> 0
A6: 56959100802 | B6: EAB110212000 | C6: 제 3호 | D6: LP-ELEV 분전반 | E6: 600Wx600Hx150D | F6: 면 | H6: =일위대가!I31 -> 0 | I6: =H6 -> 0 | K6: =일위대가!L31 -> 0 | L6: =K6 -> 0 | M6: =일위대가!N31 -> 0 | N6: =M6 -> 0 | P6: =I6+L6+N6 -> 0
A7: 56959100803 | B7: EAB110213000 | C7: 제 4호 | D7: LP-화장실 분전반 | E7: 600Wx700Hx150D | F7: 면 | H7: =일위대가!I49 -> 0 | I7: =H7 -> 0 | K7: =일위대가!L49 -> 0 | L7: =K7 -> 0 | M7: =일위대가!N49 -> 0 | N7: =M7 -> 0 | P7: =I7+L7+N7 -> 0

Sheet 일위대가 (hidden)
A1: 총줄수-> | B1: 55 | D1: [ 교육시설(서일관) 승강기 증축공사 및 리모델링 전기공사 ] - 일위대가표 | W1: 노임 계산 정보 | AA1: 부속재 및 손료
A2: 번호 | B2: 목차코드 | C2: 코드 | D2: 명 칭 | E2: 규 격 | F2: 단위 | G2: 수량 | H2: 재료비 | J2: 노무비 | M2: 경비 | P2: 계 | Q2: 비고 | W2: 노임계 | X2: 전체(%) | Y2: 공종별(%) | Z2: 노임 소수 | AA2: CD배관재 | AB2: 일반배관재 | AC2: 소모재 | AD2: 자재계 | AE2: 노임계
H3: 단가 | I3: 금액 | J3: 수량 | K3: 단가 | L3: 금액 | M3: 단가 | N3: 금액 | O3: 단가 | AD3: 1 | AE3: 1
A4: 56953100908 | B4: 일목줄 | C4: EAB110220000 | D4: [제 1호] 벽관통 구멍(코어드릴) Φ50-벽두께 25cm [개소]
A5: CA565826062 | B5: 제 1호 | C5: ECA565826062 | D5: 코어드릴 | E5: 15.24cm | F5: 시간 | G5: 1.1 | H5: =합산자재!H64 -> 0 | I5: =IF(G5*H5<>0, TRUNC(G5*H5,1),"") ->  | J5: 1.1 | K5: =합산자재!I64 -> 0 | L5: =IF(G5*K5<>0, TRUNC(G5*K5,1),"") ->  | M5: =합산자재!J64 -> 0 | N5: =IF(G5*M5<>0, TRUNC(G5*M5,1),"") ->  | P5: =IF(SUM(I5,L5,N5)<>0,TRUNC(SUM(I5,L5,N5),1),"") ->  | Q5: 종합적산701 | R5: ILD
A6: 56900017041 | B6: 제 1호 | C6: L001010101000002 | D6: 노 무 비 | E6: 보통인부 | F6: 인 | G6: =일위노임!G7 -> 0.2128 | H6: =합산자재!H68 -> 0 | I6: =IF(G6*H6<>0, TRUNC(G6*H6,1),"") ->  | J6: 0.266 | K6: =합산자재!I68 -> 0 | L6: =IF(G6*K6<>0, TRUNC(G6*K6,1),"") ->  | M6: =합산자재!J68 -> 0 | N6: =IF(G6*M6<>0, TRUNC(G6*M6,1),"") ->  | P6: =IF(SUM(I6,L6,N6)<>0,TRUNC(SUM(I6,L6,N6),1),"") ->  | AE6: =L6 -> 
A7: 56900017098 | B7: 제 1호 | C7: L001010101000015 | D7: 노 무 비 | E7: 착암공 | F7: 인 | G7: =일위노임!G8 -> 0.2128 | H7: =합산자재!H69 -> 0 | I7: =IF(G7*H7<>0, TRUNC(G7*H7,1),"") ->  | J7: 0.266 | K7: =합산자재!I69 -> 0 | L7: =IF(G7*K7<>0, TRUNC(G7*K7,1),"") ->  | M7: =합산자재!J69 -> 0 | N7: =IF(G7*M7<>0, TRUNC(G7*M7,1),"") ->  | P7: =IF(SUM(I7,L7,N7)<>0,TRUNC(SUM(I7,L7,N7),1),"") ->  | Z7: 노임계 | AE7: =L7 -> 
B8: 합계줄 | D8: ( 합 계 ) | I8: =TRUNC(SUM(I4:I7)) -> 0 | L8: =TRUNC(SUM(L4:L7)) -> 0 | N8: =TRUNC(SUM(N4:N7)) -> 0 | P8: =IF(SUM(I8,L8,N8)<>0,TRUNC(SUM(I8,L8,N8),1),"") ->  | AE8: =TRUNC(SUM(AE4:AE7)) -> 0
I9: =IF(G9*H9<>0, TRUNC(G9*H9,1),"") ->  | L9: =IF(G9*K9<>0, TRUNC(G9*K9,1),"") ->  | N9: =IF(G9*M9<>0, TRUNC(G9*M9,1),"") ->  | P9: =IF(SUM(I9,L9,N9)<>0,TRUNC(SUM(I9,L9,N9),1),"") -> 
A10: 56959100801 | B10: 일목줄 | C10: EAB110211000 | D10: [제 2호] 배관용 홈파기 Φ22이하 [m]
A11: 56900017041 | B11: 제 2호 | C11: L001010101000002 | D11: 노 무 비 | E11: 보통인부 | F11: 인 | G11: =일위노임!G11 -> 0.064 | H11: =합산자재!H68 -> 0 | I11: =IF(G11*H11<>0, TRUNC(G11*H11,1),"") ->  | J11: 0.08 | K11: =합산자재!I68 -> 0 | L11: =IF(G11*K11<>0, TRUNC(G11*K11,1),"") ->  | M11: =합산자재!J68 -> 0 | N11: =IF(G11*M11<>0, TRUNC(G11*M11,1),"") ->  | P11: =IF(SUM(I11,L11,N11)<>0,TRUNC(SUM(I11,L11,N11),1),"") ->  | Z11: 노임계 | AE11: =L11 -> 
B12: 합계줄 | D12: ( 합 계 ) | I12: =TRUNC(SUM(I10:I11)) -> 0 | L12: =TRUNC(SUM(L10:L11)) -> 0 | N12: =TRUNC(SUM(N10:N11)) -> 0 | P12: =IF(SUM(I12,L12,N12)<>0,TRUNC(SUM(I12,L12,N12),1),"") ->  | AE12: =TRUNC(SUM(AE10:AE11)) -> 0
I13: =IF(G13*H13<>0, TRUNC(G13*H13,1),"") ->  | L13: =IF(G13*K13<>0, TRUNC(G13*K13,1),"") ->  | N13: =IF(G13*M13<>0, TRUNC(G13*M13,1),"") ->  | P13: =IF(SUM(I13,L13,N13)<>0,TRUNC(SUM(I13,L13,N13),1),"") -> 
A14: 56959100802 | B14: 일목줄 | C14: EAB110212000 | D14: [제 3호] LP-ELEV 분전반 600Wx600Hx150D [면]
A15: MM334303456 | B15: 제 3호 | C15: 3912110121654351 | D15: 분전반 외함(ALL SUS) | E15: 600* 600*150 | F15: 면 | G15: 1 | H15: =합산자재!H35 -> 0 | I15: =IF(G15*H15<>0, TRUNC(G15*H15,1),"") ->  | J15: 1 | K15: =합산자재!I35 -> 0 | L15: =IF(G15*K15<>0, TRUNC(G15*K15,1),"") ->  | M15: =합산자재!J35 -> 0 | N15: =IF(G15*M15<>0, TRUNC(G15*M15,1),"") ->  | P15: =IF(SUM(I15,L15,N15)<>0,TRUNC(SUM(I15,L15,N15),1),"") ->  | R15: PNL
A16: MM300009101 | B16: 제 3호 | C16: 3912110420179148 | D16: 아크릴 명판 | E16: 60*350 | F16: EA | G16: 1 | H16: =합산자재!H41 -> 0 | J16: 1 | K16: =합산자재!I41 -> 0 | M16: =합산자재!J41 -> 0 | R16: NP
A17: MM300009107 | B17: 제 3호 | C17: 3912110420179154 | D17: 아크릴 명판 | E17: 20* 50 | F17: EA | G17: 2 | H17: =합산자재!H42 -> 0 | J17: 2 | K17: =합산자재!I42 -> 0 | M17: =합산자재!J42 -> 0 | R17: NP
A18: MM300015105 | B18: 제 3호 | C18: 3912161620167029 | D18: 배선용차단기(ABS-54) | E18: 4P 50AF 50AT | F18: EA | G18: 1 | H18: =합산자재!H45 -> 0 | J18: 1 | K18: =합산자재!I45 -> 0 | M18: =합산자재!J45 -> 0 | R18: NFB
A19: MM599859664 | B19: 제 3호 | C19: 3912161420167136 | D19: 누전차단기(54c) | E19: 4P 50AF | F19: EA | G19: 1 | H19: =합산자재!H47 -> 0 | J19: 1 | K19: =합산자재!I47 -> 0 | M19: =합산자재!J47 -> 0 | R19: NFB
A20: MM300020604 | B20: 제 3호 | C20: 3912161420167114 | D20: 누전차단기(32KGRc) | E20: 2P 30AF 20AT | F20: EA | G20: 1 | H20: =합산자재!H46 -> 0 | J20: 1 | K20: =합산자재!I46 -> 0 | M20: =합산자재!J46 -> 0 | R20: NFB | Z20: 노임계
A21: 61100117503 | B21: 제 3호 | C21: 3912110320178178 | D21: 배전반 부속재 | E21: DOOR HANDLE, PUSH TYPE | F21: 개 | G21: 1 | H21: =합산자재!H37 -> 0 | J21: 1 | K21: =합산자재!I37 -> 0 | M21: =합산자재!J37 -> 0
A22: 61100117555 | B22: 제 3호 | C22: 3912110320178186 | D22: 배전반 부속재 | E22: NAME PLATE, CARD HOLDER | F22: 개 | G22: 1 | H22: =합산자재!H40 -> 0 | J22: 1 | K22: =합산자재!I40 -> 0 | M22: =합산자재!J40 -> 0
A23: 59700677013 | B23: 제 3호 | C23: 3912172120173109 | D23: 베이크라이트판 | E23: 9.0tx1000x1000 | F23: 매 | G23: 1 | H23: =합산자재!H43 -> 0 | J23: 1 | K23: =합산자재!I43 -> 0 | M23: =합산자재!J43 -> 0
A24: 61100117521 | B24: 제 3호 | C24: 3912110320178180 | D24: 배전반 부속재 | E24: NT | F24: 개 | G24: 1 | H24: =합산자재!H39 -> 0 | J24: 1 | K24: =합산자재!I39 -> 0 | M24: =합산자재!J39 -> 0
A25: 61100117511 | B25: 제 3호 | C25: 3912110320178179 | D25: 배전반 부속재 | E25: ET | F25: 개 | G25: 1 | H25: =합산자재!H38 -> 0 | J25: 1 | K25: =합산자재!I38 -> 0 | M25: =합산자재!J38 -> 0
A26: 61500377116 | B26: 제 3호 | C26: 3912143520184926 | D26: 모선접속바(BUS BAR) | E26: 2.0mm x 12mm | F26: m | G26: 0.9 | H26: =합산자재!H48 -> 0 | J26: 0.9 | K26: =합산자재!I48 -> 0 | M26: =합산자재!J48 -> 0
A27: 61500377117 | B27: 제 3호 | C27: 3912143520184927 | D27: 모선접속바(BUS BAR) | E27: 3.0mm x 20mm | F27: m | G27: 2.5 | H27: =합산자재!H49 -> 0 | J27: 2.5 | K27: =합산자재!I49 -> 0 | M27: =합산자재!J49 -> 0
A28: 56900017016 | B28: 제 3호 | C28: L001010101000075 | D28: 노 무 비 | E28: 내선전공 | F28: 인 | G28: =일위노임!G20 -> 0.6472 | H28: =합산자재!H65 -> 0 | J28: 0.809 | K28: =합산자재!I65 -> 0 | M28: =합산자재!J65 -> 0 | AE28: =L28 -> 
A29: 56900017035 | B29: 제 3호 | C29: L001010501000116 | D29: 노 무 비 | E29: 변전전공 | F29: 인 | G29: =일위노임!G21 -> 0.2176 | H29: =합산자재!H67 -> 0 | J29: 0.272 | K29: =합산자재!I67 -> 0 | M29: =합산자재!J67 -> 0 | AE29: =L29 -> 
A30: 56900017041 | B30: 제 3호 | C30: L001010101000002 | D30: 노 무 비 | E30: 보통인부 | F30: 인 | G30: =일위노임!G22 -> 0.1632 | H30: =합산자재!H68 -> 0 | J30: 0.204 | K30: =합산자재!I68 -> 0 | M30: =합산자재!J68 -> 0 | Z30: 노임계 | AE30: =L30 -> 
B31: 합계줄 | D31: ( 합 계 ) | I31: =TRUNC(SUM(I14:I30)) -> 0 | L31: =TRUNC(SUM(L14:L30)) -> 0 | N31: =TRUNC(SUM(N14:N30)) -> 0 | AE31: =TRUNC(SUM(AE14:AE30)) -> 0
I32: =IF(G32*H32<>0, TRUNC(G32*H32,1),"") ->  | L32: =IF(G32*K32<>0, TRUNC(G32*K32,1),"") ->  | N32: =IF(G32*M32<>0, TRUNC(G32*M32,1),"") -> 
A33: 56959100803 | B33: 일목줄 | C33: EAB110213000 | D33: [제 4호] LP-화장실 분전반 600Wx700Hx150D [면]
A34: MM334303457 | B34: 제 4호 | C34: 3912110121654352 | D34: 분전반 외함(ALL SUS) | E34: 600* 700*150 | F34: 면 | G34: 1 | H34: =합산자재!H36 -> 0 | I34: =IF(G34*H34<>0, TRUNC(G34*H34,1),"") ->  | J34: 1 | K34: =합산자재!I36 -> 0 | L34: =IF(G34*K34<>0, TRUNC(G34*K34,1),"") ->  | M34: =합산자재!J36 -> 0 | N34: =IF(G34*M34<>0, TRUNC(G34*M34,1),"") ->  | P34: =IF(SUM(I34,L34,N34)<>0,TRUNC(SUM(I34,L34,N34),1),"") ->  | R34: PNL
A35: MM300009101 | B35: 제 4호 | C35: 3912110420179148 | D35: 아크릴 명판 | E35: 60*350 | F35: EA | G35: 1 | H35: =합산자재!H41 -> 0 | J35: 1 | K35: =합산자재!I41 -> 0 | M35: =합산자재!J41 -> 0 | R35: NP
A36: MM300009107 | B36: 제 4호 | C36: 3912110420179154 | D36: 아크릴 명판 | E36: 20* 50 | F36: EA | G36: 14 | H36: =합산자재!H42 -> 0 | J36: 14 | K36: =합산자재!I42 -> 0 | M36: =합산자재!J42 -> 0 | R36: NP
A37: MM300015105 | B37: 제 4호 | C37: 3912161620167029 | D37: 배선용차단기(ABS-54) | E37: 4P 50AF 50AT | F37: EA | G37: 1 | H37: =합산자재!H45 -> 0 | J37: 1 | K37: =합산자재!I45 -> 0 | M37: =합산자재!J45 -> 0 | R37: NFB
A38: MM300020604 | B38: 제 4호 | C38: 3912161420167114 | D38: 누전차단기(32KGRc) | E38: 2P 30AF 20AT | F38: EA | G38: 14 | H38: =합산자재!H46 -> 0 | J38: 14 | K38: =합산자재!I46 -> 0 | M38: =합산자재!J46 -> 0 | R38: NFB
A39: 61100117503 | B39: 제 4호 | C39: 3912110320178178 | D39: 배전반 부속재 | E39: DOOR HANDLE, PUSH TYPE | F39: 개 | G39: 1 | H39: =합산자재!H37 -> 0 | J39: 1 | K39: =합산자재!I37 -> 0 | M39: =합산자재!J37 -> 0
A40: 61100117555 | B40: 제 4호 | C40: 3912110320178186 | D40: 배전반 부속재 | E40: NAME PLATE, CARD HOLDER | F40: 개 | G40: 1 | H40: =합산자재!H40 -> 0 | J40: 1 | K40: =합산자재!I40 -> 0 | M40: =합산자재!J40 -> 0
A41: 59700677013 | B41: 제 4호 | C41: 3912172120173109 | D41: 베이크라이트판 | E41: 9.0tx1000x1000 | F41: 매 | G41: 1 | H41: =합산자재!H43 -> 0 | J41: 1 | K41: =합산자재!I43 -> 0 | M41: =합산자재!J43 -> 0
A42: 61100117521 | B42: 제 4호 | C42: 3912110320178180 | D42: 배전반 부속재 | E42: NT | F42: 개 | G42: 1 | H42: =합산자재!H39 -> 0 | J42: 1 | K42: =합산자재!I39 -> 0 | M42: =합산자재!J39 -> 0
A43: 61100117511 | B43: 제 4호 | C43: 3912110320178179 | D43: 배전반 부속재 | E43: ET | F43: 개 | G43: 1 | H43: =합산자재!H38 -> 0 | J43: 1 | K43: =합산자재!I38 -> 0 | M43: =합산자재!J38 -> 0
A44: 61500377116 | B44: 제 4호 | C44: 3912143520184926 | D44: 모선접속바(BUS BAR) | E44: 2.0mm x 12mm | F44: m | G44: 4.2 | H44: =합산자재!H48 -> 0 | J44: 4.2 | K44: =합산자재!I48 -> 0 | M44: =합산자재!J48 -> 0
A45: 61500377117 | B45: 제 4호 | C45: 3912143520184927 | D45: 모선접속바(BUS BAR) | E45: 3.0mm x 20mm | F45: m | G45: 1.5 | H45: =합산자재!H49 -> 0 | J45: 1.5 | K45: =합산자재!I49 -> 0 | M45: =합산자재!J49 -> 0
A46: 56900017016 | B46: 제 4호 | C46: L001010101000075 | D46: 노 무 비 | E46: 내선전공 | F46: 인 | G46: =일위노임!G30 -> 1.76 | H46: =합산자재!H65 -> 0 | J46: 2.2 | K46: =합산자재!I65 -> 0 | M46: =합산자재!J65 -> 0 | AE46: =L46 -> 
A47: 56900017035 | B47: 제 4호 | C47: L001010501000116 | D47: 노 무 비 | E47: 변전전공 | F47: 인 | G47: =일위노임!G31 -> 0.3648 | H47: =합산자재!H67 -> 0 | J47: 0.456 | K47: =합산자재!I67 -> 0 | M47: =합산자재!J67 -> 0 | AE47: =L47 -> 
A48: 56900017041 | B48: 제 4호 | C48: L001010101000002 | D48: 노 무 비 | E48: 보통인부 | F48: 인 | G48: =일위노임!G32 -> 0.2736 | H48: =합산자재!H68 -> 0 | J48: 0.342 | K48: =합산자재!I68 -> 0 | M48: =합산자재!J68 -> 0 | AE48: =L48 -> 
B49: 합계줄 | D49: ( 합 계 ) | I49: =TRUNC(SUM(I33:I48)) -> 0 | L49: =TRUNC(SUM(L33:L48)) -> 0 | N49: =TRUNC(SUM(N33:N48)) -> 0 | AE49: =TRUNC(SUM(AE33:AE48)) -> 0

Sheet 일위노임 (hidden)
A1: 총줄수-> | B1: 55 | D1: [ 교육시설(서일관) 승강기 증축공사 및 리모델링 전기공사 ] - 일위노임 산출근거(2025년 하반기 노임) | AA1: 내선전공 | AB1: 변전전공 | AC1: 보통인부 | AD1: 착암공
A2: 번호 | B2: 공종코드 | C2: 코드 | D2: 명 칭 | E2: 규 격 | F2: 단위 | G2: 수량 | K2: 코드 | L2: 공량산출 | P2: 단 위 단 가 산 출 | S2: 품셈근거 | T2: 비고
G3: 결정수량 | H3: 할증 | I3: 산출수량 | J3: 재할% | L3: 명칭 | M3: 품셈 | N3: 할증% | O3: 공량 | P3: 단가 | Q3: 단위단가 | R3: 단위계
B4: 공종줄 | D4: [ 제 1호 ] 벽관통 구멍(코어드릴) Φ50-벽두께 25cm [개소]
B5: 800 | C5: 391115ZZ701Z0013 | D5: 품셈 산출근거 | E5: 벽두께 25cm | F5: 식 | G5: 1 | H5: =IF(I5<>0,G5-I5,"") -> 0 | I5: 1 | K5: 56900017041 | L5: 보통인부 | M5: 0.266 | N5: 100 | O5: =IF(I5*M5=0,"",I5*M5*(N5/100)) -> 0.266 | S5: 전기5-29-1 | AC5: =O5 -> 0.266
B6: 800 | C6: 391115ZZ701Z0013 | G6: 1 | H6: =IF(I6<>0,G6-I6,"") -> 0 | I6: 1 | K6: 56900017098 | L6: 착암공 | M6: 0.266 | N6: 100 | O6: =IF(I6*M6=0,"",I6*M6*(N6/100)) -> 0.266 | S6: 전기5-29-1 | AD6: =O6 -> 0.266
B7: 800 | C7: L001010101000002 | D7: 노 무 비 | E7: 보통인부 | F7: 인 | G7: =IF(H7*I7/100+0.000005 <1, TRUNC(H7*I7/100+0.000005, 옵션!$E$13), TRUNC(H7*I7/100+0.000005, 옵션!$E$13)) -> 0.2128 | H7: =옵션!$B$13 -> 80 | I7: =SUM(AC5:AC6) -> 0.266 | O7: =IF(I7*M7=0,"",I7*M7*(N7/100)) ->  | AC7: =SUM(AC5:AC6) -> 0.266 | AD7: =SUM(AD5:AD6) -> 0.266
B8: 800 | C8: L001010101000015 | D8: 노 무 비 | E8: 착암공 | F8: 인 | G8: =IF(H8*I8/100+0.000005 <1, TRUNC(H8*I8/100+0.000005, 옵션!$E$13), TRUNC(H8*I8/100+0.000005, 옵션!$E$13)) -> 0.2128 | H8: =옵션!$B$13 -> 80 | I8: =SUM(AD5:AD6) -> 0.266 | O8: =IF(I8*M8=0,"",I8*M8*(N8/100)) -> 
B9: 공종줄 | D9: [ 제 2호 ] 배관용 홈파기 Φ22이하 [m]
B10: 800 | C10: 391115ZZ701Z0012 | D10: 품셈 산출근거 | E10: Φ22이하 | F10: 식 | G10: 1 | H10: =IF(I10<>0,G10-I10,"") -> 0 | I10: 1 | K10: 56900017041 | L10: 보통인부 | M10: 0.08 | N10: 100 | O10: =IF(I10*M10=0,"",I10*M10*(N10/100)) -> 0.08 | S10: 전기5-29 | AC10: =O10 -> 0.08
B11: 800 | C11: L001010101000002 | D11: 노 무 비 | E11: 보통인부 | F11: 인 | G11: =IF(H11*I11/100+0.000005 <1, TRUNC(H11*I11/100+0.000005, 옵션!$E$13), TRUNC(H11*I11/100+0.000005, 옵션!$E$13)) -> 0.064 | H11: =옵션!$B$13 -> 80 | I11: =SUM(AC10:AC10) -> 0.08 | O11: =IF(I11*M11=0,"",I11*M11*(N11/100)) ->  | AC11: =SUM(AC10:AC10) -> 0.08
B12: 공종줄 | D12: [ 제 3호 ] LP-ELEV 분전반 600Wx600Hx150D [면]
B13: 800 | C13: 3912161620167029 | D13: 배선용차단기(ABS-54) | E13: 4P 50AF 50AT | F13: EA | G13: 1 | H13: =IF(I13<>0,G13-I13,"") -> 0 | I13: 1 | K13: 56900017016 | L13: 내선전공 | M13: 0.338 | N13: 100 | O13: =IF(I13*M13=0,"",I13*M13*(N13/100)) -> 0.338 | S13: 전기5-19 | AA13: =O13 -> 0.338
B14: 800 | C14: 3912161420167136 | D14: 누전차단기(54c) | E14: 4P 50AF | F14: EA | G14: 1 | H14: 0 | I14: 1 | K14: 56900017016 | L14: 내선전공 | M14: 0.338 | N14: 100 | O14: 0.338 | S14: 전기5-19 | AA14: =O14 -> 0.338
B15: 800 | C15: 3912161420167114 | D15: 누전차단기(32KGRc) | E15: 2P 30AF 20AT | F15: EA | G15: 1 | H15: 0 | I15: 1 | K15: 56900017016 | L15: 내선전공 | M15: 0.133 | N15: 100 | O15: 0.133 | S15: 전기5-19 | AA15: =O15 -> 0.133
B16: 800 | C16: 3912143520184926 | D16: 모선접속바(BUS BAR) | E16: 2.0mm x 12mm | F16: m | G16: 0.9 | H16: 0 | I16: 0.9 | K16: 56900017035 | L16: 변전전공 | M16: 0.08 | N16: 100 | O16: 0.072 | S16: 전기3-21 | AB16: =O16 -> 0.072
B17: 800 | C17: 3912143520184926 | G17: 0.9 | H17: 0 | I17: 0.9 | K17: 56900017041 | L17: 보통인부 | M17: 0.06 | N17: 100 | O17: 0.054 | S17: 전기3-21 | AC17: =O17 -> 0.054
B18: 800 | C18: 3912143520184927 | D18: 모선접속바(BUS BAR) | E18: 3.0mm x 20mm | F18: m | G18: 2.5 | H18: 0 | I18: 2.5 | K18: 56900017035 | L18: 변전전공 | M18: 0.08 | N18: 100 | O18: 0.2 | S18: 전기3-21 | AB18: =O18 -> 0.2
B19: 800 | C19: 3912143520184927 | G19: 2.5 | H19: 0 | I19: 2.5 | K19: 56900017041 | L19: 보통인부 | M19: 0.06 | N19: 100 | O19: 0.15 | S19: 전기3-21 | AC19: =O19 -> 0.15
B20: 800 | C20: L001010101000075 | D20: 노 무 비 | E20: 내선전공 | F20: 인 | G20: =IF(H20*I20/100+0.000005 <1, TRUNC(H20*I20/100+0.000005, 옵션!$E$13), TRUNC(H20*I20/100+0.000005, 옵션!$E$13)) -> 0.6472 | H20: =옵션!$B$13 -> 80 | I20: =SUM(AA13:AA19) -> 0.809 | AA20: =SUM(AA13:AA19) -> 0.809 | AB20: =SUM(AB13:AB19) -> 0.272 | AC20: =SUM(AC13:AC19) -> 0.204
B21: 800 | C21: L001010501000116 | D21: 노 무 비 | E21: 변전전공 | F21: 인 | G21: =IF(H21*I21/100+0.000005 <1, TRUNC(H21*I21/100+0.000005, 옵션!$E$13), TRUNC(H21*I21/100+0.000005, 옵션!$E$13)) -> 0.2176 | H21: =옵션!$B$13 -> 80 | I21: =SUM(AB13:AB19) -> 0.272
B22: 800 | C22: L001010101000002 | D22: 노 무 비 | E22: 보통인부 | F22: 인 | G22: =IF(H22*I22/100+0.000005 <1, TRUNC(H22*I22/100+0.000005, 옵션!$E$13), TRUNC(H22*I22/100+0.000005, 옵션!$E$13)) -> 0.1632 | H22: =옵션!$B$13 -> 80 | I22: =SUM(AC13:AC19) -> 0.204
B23: 공종줄 | D23: [ 제 4호 ] LP-화장실 분전반 600Wx700Hx150D [면]
B24: 800 | C24: 3912161620167029 | D24: 배선용차단기(ABS-54) | E24: 4P 50AF 50AT | F24: EA | G24: 1 | H24: =IF(I24<>0,G24-I24,"") -> 0 | I24: 1 | K24: 56900017016 | L24: 내선전공 | M24: 0.338 | N24: 100 | O24: =IF(I24*M24=0,"",I24*M24*(N24/100)) -> 0.338 | S24: 전기5-19 | AA24: =O24 -> 0.338
B25: 800 | C25: 3912161420167114 | D25: 누전차단기(32KGRc) | E25: 2P 30AF 20AT | F25: EA | G25: 14 | H25: 0 | I25: 14 | K25: 56900017016 | L25: 내선전공 | M25: 0.133 | N25: 100 | O25: 1.862 | S25: 전기5-19 | AA25: =O25 -> 1.862
B26: 800 | C26: 3912143520184926 | D26: 모선접속바(BUS BAR) | E26: 2.0mm x 12mm | F26: m | G26: 4.2 | H26: 0 | I26: 4.2 | K26: 56900017035 | L26: 변전전공 | M26: 0.08 | N26: 100 | O26: 0.336 | S26: 전기3-21 | AB26: =O26 -> 0.336
B27: 800 | C27: 3912143520184926 | G27: 4.2 | H27: 0 | I27: 4.2 | K27: 56900017041 | L27: 보통인부 | M27: 0.06 | N27: 100 | O27: 0.252 | S27: 전기3-21 | AC27: =O27 -> 0.252
B28: 800 | C28: 3912143520184927 | D28: 모선접속바(BUS BAR) | E28: 3.0mm x 20mm | F28: m | G28: 1.5 | H28: 0 | I28: 1.5 | K28: 56900017035 | L28: 변전전공 | M28: 0.08 | N28: 100 | O28: 0.12 | S28: 전기3-21 | AB28: =O28 -> 0.12
B29: 800 | C29: 3912143520184927 | G29: 1.5 | H29: 0 | I29: 1.5 | K29: 56900017041 | L29: 보통인부 | M29: 0.06 | N29: 100 | O29: 0.09 | S29: 전기3-21 | AC29: =O29 -> 0.09
B30: 800 | C30: L001010101000075 | D30: 노 무 비 | E30: 내선전공 | F30: 인 | G30: =IF(H30*I30/100+0.000005 <1, TRUNC(H30*I30/100+0.000005, 옵션!$E$13), TRUNC(H30*I30/100+0.000005, 옵션!$E$13)) -> 1.76 | H30: =옵션!$B$13 -> 80 | I30: =SUM(AA24:AA29) -> 2.2 | AA30: =SUM(AA24:AA29) -> 2.2 | AB30: =SUM(AB24:AB29) -> 0.456 | AC30: =SUM(AC24:AC29) -> 0.342
B31: 800 | C31: L001010501000116 | D31: 노 무 비 | E31: 변전전공 | F31: 인 | G31: =IF(H31*I31/100+0.000005 <1, TRUNC(H31*I31/100+0.000005, 옵션!$E$13), TRUNC(H31*I31/100+0.000005, 옵션!$E$13)) -> 0.3648 | H31: =옵션!$B$13 -> 80 | I31: =SUM(AB24:AB29) -> 0.456
B32: 800 | C32: L001010101000002 | D32: 노 무 비 | E32: 보통인부 | F32: 인 | G32: =IF(H32*I32/100+0.000005 <1, TRUNC(H32*I32/100+0.000005, 옵션!$E$13), TRUNC(H32*I32/100+0.000005, 옵션!$E$13)) -> 0.2736 | H32: =옵션!$B$13 -> 80 | I32: =SUM(AC24:AC29) -> 0.342

Sheet 합산자재 (hidden)
A1: 총줄수-> | B1: 81 | C1: [ 교육시설(서일관) 승강기 증축공사 및 리모델 ] - 합산자재목록
A2: 번호 | B2: … | C2: 코드 | D2: 명 칭 | E2: 규 격 | F2: 단위 | G2: 수량 | H2: 재료비 | I2: 노무비 | J2: 경비 | K2: 지급비 | L2: 계 | M2: 비고
C4: 3913170610035664 | D4: 합성수지제 가요전선관 | E4: CD-난연성 16㎜ | F4: m | H4: =TRUNC(단가조사!G4*옵션!$D$11) -> 0 | L4: =SUM(H4,I4,J4) -> 0
C5: 3913170620174410 | D5: 1종금속제가요전선관 | E5: 16 mm 일반-비방수 | F5: m | H5: =TRUNC(단가조사!G5*옵션!$D$11) -> 0 | L5: 0
C6: 3913170620174414 | D6: 1종금속제가요전선관 | E6: 42 mm 일반-비방수 | F6: m | H6: =TRUNC(단가조사!G6*옵션!$D$11) -> 0 | L6: 0
C7: 3913170620174415 | D7: 1종금속제가요전선관 | E7: 54 mm 일반-비방수 | F7: m | H7: =TRUNC(단가조사!G7*옵션!$D$11) -> 0 | L7: 0
C8: 3913170620174422 | D8: 1종금속제가요전선관 | E8: 16 mm 일반-방수 | F8: m | H8: =TRUNC(단가조사!G8*옵션!$D$11) -> 0 | L8: 0
C9: 3913170620174424 | D9: 1종금속제가요전선관 | E9: 28 mm 일반-방수 | F9: m | H9: =TRUNC(단가조사!G9*옵션!$D$11) -> 0 | L9: 0
C10: 3913170620174434 | D10: 1종금속제가요전선관 | E10: 커넥터, 16 mm 일반-비방수 | F10: 개 | H10: =TRUNC(단가조사!G10*옵션!$D$11) -> 0 | L10: 0
C11: 3913170620174446 | D11: 1종금속제가요전선관 | E11: 커넥터, 16 mm 일반-방수 | F11: 개 | H11: =TRUNC(단가조사!G11*옵션!$D$11) -> 0 | L11: 0
C12: 3912130810035750 | D12: 아우트렛박스 | E12: 8각 54㎜ | F12: 개 | H12: =TRUNC(단가조사!G12*옵션!$D$11) -> 0 | L12: 0
C13: 3912130810035753 | D13: 아우트렛박스 | E13: 중형4각 54㎜ | F13: 개 | H13: =TRUNC(단가조사!G13*옵션!$D$11) -> 0 | L13: 0
C14: 3912130610035778 | D14: 스위치박스 | E14: 1 개용 54 mm | F14: 개 | H14: =TRUNC(단가조사!G14*옵션!$D$11) -> 0 | L14: 0
C15: 3912130610035781 | D15: 스위치박스 | E15: 2 개용 54 mm | F15: 개 | H15: =TRUNC(단가조사!G15*옵션!$D$11) -> 0 | L15: 0
C16: 3912130610036792 | D16: PVC BOX 4각 | E16: 4 각 | F16: 개 | H16: =TRUNC(단가조사!G16*옵션!$D$11) -> 0 | L16: 0
C17: 3912130820174710 | D17: 아우트렛박스 커버 | E17: 커버, 8각, 평형 | F17: 개 | H17: =TRUNC(단가조사!G17*옵션!$D$11) -> 0 | L17: 0
C18: 3912130820174713 | D18: 아우트렛박스 커버 | E18: 커버, 4각, 평형 | F18: 개 | H18: =TRUNC(단가조사!G18*옵션!$D$11) -> 0 | L18: 0
C19: 3913171221650789 | D19: 전선덕트 | E19: 알루미늄 150x100mm | F19: m | H19: =TRUNC(단가조사!G19*옵션!$D$11) -> 0 | L19: 0
C20: 2612162922076727 | D20: 450/750V 내열비닐절연전선 | E20: HFIX 1.78mm(2.5㎟) | F20: m | H20: =TRUNC(단가조사!G20*옵션!$D$11) -> 0 | L20: 0
C21: 2612162922076728 | D21: 450/750V 내열비닐절연전선 | E21: HFIX 2.25mm(4㎟) | F21: m | H21: =TRUNC(단가조사!G21*옵션!$D$11) -> 0 | L21: 0
C22: 2612152420683695 | D22: 접지용비닐절연전선(F-GV) | E22: 2.5㎟ | F22: m | H22: =TRUNC(단가조사!G22*옵션!$D$11) -> 0 | L22: 0
C23: 2612152420683698 | D23: 접지용비닐절연전선(F-GV) | E23: 10㎟ | F23: m | H23: =TRUNC(단가조사!G23*옵션!$D$11) -> 0 | L23: 0
C24: 2612152420683699 | D24: 접지용비닐절연전선(F-GV) | E24: 16㎟ | F24: m | H24: =TRUNC(단가조사!G24*옵션!$D$11) -> 0 | L24: 0
C25: 2612162920683943 | D25: 폴리에틸렌 난연케이블 | E25: 0.6/1kv F-CV 4C×2.5㎟ | F25: m | H25: =TRUNC(단가조사!G25*옵션!$D$11) -> 0 | L25: 0
C26: 2612162920683946 | D26: 폴리에틸렌 난연케이블 | E26: 0.6/1kv F-CV 4C×10㎟ | F26: m | H26: =TRUNC(단가조사!G26*옵션!$D$11) -> 0 | L26: 0
C27: 2612162920683947 | D27: 폴리에틸렌 난연케이블 | E27: 0.6/1kv F-CV 4C×16㎟ | F27: m | H27: =TRUNC(단가조사!G27*옵션!$D$11) -> 0 | L27: 0
C28: 3912998720170517 | D28: 매입스위치 | E28: 250V 1로1구 | F28: 개 | H28: =TRUNC(단가조사!G28*옵션!$D$11) -> 0 | L28: 0
C29: 3912998720170518 | D29: 매입스위치 | E29: 250V 1로2구 | F29: 개 | H29: =TRUNC(단가조사!G29*옵션!$D$11) -> 0 | L29: 0
C30: 3912998720170519 | D30: 매입스위치 | E30: 250V 1로3구 | F30: 개 | H30: =TRUNC(단가조사!G30*옵션!$D$11) -> 0 | L30: 0
C31: 3912998720170520 | D31: 매입스위치 | E31: 250V 1로4구 | F31: 개 | H31: =TRUNC(단가조사!G31*옵션!$D$11) -> 0 | L31: 0
C32: 3912140620170850 | D32: 콘센트 | E32: 매입-접지형, 250V 2구 | F32: 개 | H32: =TRUNC(단가조사!G32*옵션!$D$11) -> 0 | L32: 0
C33: 3912140620170834 | D33: 콘센트 | E33: 노출-접지형, 250V 원형 | F33: 개 | H33: =TRUNC(단가조사!G33*옵션!$D$11) -> 0 | L33: 0
C34: 3912140621030228 | D34: 방우콘센트 | E34: 매입-접지형, 250V 2구 | F34: 개 | H34: =TRUNC(단가조사!G34*옵션!$D$11) -> 0 | L34: 0
C35: 3912110121654351 | D35: 분전반 외함(ALL SUS) | E35: 600* 600*150 | F35: 면 | H35: =TRUNC(단가조사!G35*옵션!$D$11) -> 0 | L35: 0
C36: 3912110121654352 | D36: 분전반 외함(ALL SUS) | E36: 600* 700*150 | F36: 면 | H36: =TRUNC(단가조사!G36*옵션!$D$11) -> 0 | L36: =SUM(H36,I36,J36) -> 0
C37: 3912110320178178 | D37: 배전반 부속재 | E37: DOOR HANDLE, PUSH TYPE | F37: 개 | H37: =TRUNC(단가조사!G37*옵션!$D$11) -> 0 | L37: 0
C38: 3912110320178179 | D38: 배전반 부속재 | E38: ET | F38: 개 | H38: =TRUNC(단가조사!G38*옵션!$D$11) -> 0 | L38: 0
C39: 3912110320178180 | D39: 배전반 부속재 | E39: NT | F39: 개 | H39: =TRUNC(단가조사!G39*옵션!$D$11) -> 0 | L39: 0
C40: 3912110320178186 | D40: 배전반 부속재 | E40: NAME PLATE, CARD HOLDER | F40: 개 | H40: =TRUNC(단가조사!G40*옵션!$D$11) -> 0 | L40: 0
C41: 3912110420179148 | D41: 아크릴 명판 | E41: 60*350 | F41: EA | H41: =TRUNC(단가조사!G41*옵션!$D$11) -> 0 | L41: 0
C42: 3912110420179154 | D42: 아크릴 명판 | E42: 20* 50 | F42: EA | H42: =TRUNC(단가조사!G42*옵션!$D$11) -> 0 | L42: 0
C43: 3912172120173109 | D43: 베이크라이트판 | E43: 9.0tx1000x1000 | F43: 매 | H43: =TRUNC(단가조사!G43*옵션!$D$11) -> 0 | L43: 0
C44: 3912161620267304 | D44: 배선용차단기(ABS-34) | E44: 4P 30AF 20AT | F44: EA | H44: =TRUNC(단가조사!G44*옵션!$D$11) -> 0 | L44: 0
C45: 3912161620167029 | D45: 배선용차단기(ABS-54) | E45: 4P 50AF 50AT | F45: EA | H45: =TRUNC(단가조사!G45*옵션!$D$11) -> 0 | L45: 0
C46: 3912161420167114 | D46: 누전차단기(32KGRc) | E46: 2P 30AF 20AT | F46: EA | H46: =TRUNC(단가조사!G46*옵션!$D$11) -> 0 | L46: 0
C47: 3912161420167136 | D47: 누전차단기(54c) | E47: 4P 50AF | F47: EA | H47: =TRUNC(단가조사!G47*옵션!$D$11) -> 0 | L47: 0
C48: 3912143520184926 | D48: 모선접속바(BUS BAR) | E48: 2.0mm x 12mm | F48: m | H48: =TRUNC(단가조사!G48*옵션!$D$11) -> 0 | L48: 0
C49: 3912143520184927 | D49: 모선접속바(BUS BAR) | E49: 3.0mm x 20mm | F49: m | H49: =TRUNC(단가조사!G49*옵션!$D$11) -> 0 | L49: 0
C50: 3912143210033786 | D50: 러그단자 | E50: 동관단자 1 HOLE 10 ㎟ | F50: 개 | H50: =TRUNC(단가조사!G50*옵션!$D$11) -> 0 | L50: 0
C51: 3912143210033787 | D51: 러그단자 | E51: 동관단자 1 HOLE 16 ㎟ | F51: 개 | H51: =TRUNC(단가조사!G51*옵션!$D$11) -> 0 | L51: 0
C52: 3912143221650908 | D52: 압착단자 | E52: R형동선 나압착 2.5 ㎟ | F52: 개 | H52: =TRUNC(단가조사!G52*옵션!$D$11) -> 0 | L52: 0
C53: 391115ZZ701Z0001 | D53: LED 다운라이트 | E53: 12W | F53: 개 | H53: =TRUNC(단가조사!G53*옵션!$D$11) -> 0 | L53: 0
C54: 391115ZZ701Z0002 | D54: LED 다운라이트 철거 | F54: 개 | H54: =TRUNC(단가조사!G54*옵션!$D$11) -> 0 | L54: 0
C55: 391115ZZ701Z0003 | D55: LED 면조명 | E55: 기존 | F55: 개 | H55: =TRUNC(단가조사!G55*옵션!$D$11) -> 0 | L55: 0
C56: 391115ZZ701Z0004 | D56: LED 면조명 철거 | F56: 개 | H56: =TRUNC(단가조사!G56*옵션!$D$11) -> 0 | L56: 0
C57: 391115ZZ701Z0005 | D57: LED 원형직부등 철거 | F57: 개 | H57: =TRUNC(단가조사!G57*옵션!$D$11) -> 0 | L57: 0
C58: 391115ZZ701Z0006 | D58: LED 파이프펜던트 | E58: 기존 | F58: 개 | H58: =TRUNC(단가조사!G58*옵션!$D$11) -> 0 | L58: 0
C59: 391115ZZ701Z0007 | D59: LED 파이프펜던트 철거 | F59: 개 | H59: =TRUNC(단가조사!G59*옵션!$D$11) -> 0 | L59: 0
C60: 391115ZZ701Z0008 | D60: PVC함 철거 | F60: 면 | H60: =TRUNC(단가조사!G60*옵션!$D$11) -> 0 | L60: 0
C61: 391115ZZ701Z0009 | D61: 기타 전기공사 | E61: 배관, 배선정리 | F61: 식 | H61: =TRUNC(단가조사!G61*옵션!$D$11) -> 0 | L61: 0
C62: 391115ZZ701Z0010 | D62: 전등스위치 철거 | F62: 개 | H62: =TRUNC(단가조사!G62*옵션!$D$11) -> 0 | L62: 0
C63: 391115ZZ701Z0011 | D63: 콘센트 철거 | F63: 개 | H63: =TRUNC(단가조사!G63*옵션!$D$11) -> 0 | L63: 0
C64: ECA565826062 | D64: 코어드릴 | E64: 15.24cm | F64: 시간 | H64: =단가조사!H64 -> 0 | I64: =단가조사!J64 -> 0 | J64: =단가조사!L64 -> 0 | L64: 0 | M64: 종합적산701
C65: L001010101000075 | D65: 노 무 비 | E65: 내선전공 | F65: 인 | I65: =TRUNC(단가조사!G65) -> 0 | L65: 0
C66: L001010101000078 | D66: 노 무 비 | E66: 저압케이블전공 | F66: 인 | I66: =TRUNC(단가조사!G66) -> 0 | L66: 0
C67: L001010501000116 | D67: 노 무 비 | E67: 변전전공 | F67: 인 | I67: =TRUNC(단가조사!G67) -> 0 | L67: 0
C68: L001010101000002 | D68: 노 무 비 | E68: 보통인부 | F68: 인 | I68: =TRUNC(단가조사!G68) -> 0 | L68: =SUM(H68,I68,J68) -> 0
C69: L001010101000015 | D69: 노 무 비 | E69: 착암공 | F69: 인 | I69: =TRUNC(단가조사!G69) -> 0 | L69: 0
L70: 0
L71: 0
L72: 0
L73: 0
L74: 0
L75: 0
L76: 0
L77: 0
L78: 0
L79: 0
L80: 0
L81: 0

Sheet 단가조사
A1: 총줄수-> | B1: 93 | D1: [ 교육시설(서일관) 승강기 증축공사 및 리모델링 전기공사 ] - 단가조사서(1/6단가:2025년10월)
A2: 번호 | B2: 공종코드 | C2: 코드 | D2: 명 칭 | E2: 규 격 | F2: 단위 | G2: 적용단가 | H2: 시설단가 | J2: 거래가격 | L2: 물가정보 | N2: 물가자료 | P2: 조사단가1 | R2: 조사단가2 | T2: 비고
H3: 단가 | I3: 코드 | J3: 단가 | K3: PAGE | L3: 단가 | M3: PAGE | N3: 단가 | O3: PAGE | P3: 단가 | Q3: PAGE | R3: 단가 | S3: PAGE
C4: 3913170610035664 | D4: 합성수지제 가요전선관 | E4: CD-난연성 16㎜ | F4: m
C5: 3913170620174410 | D5: 1종금속제가요전선관 | E5: 16 mm 일반-비방수 | F5: m
C6: 3913170620174414 | D6: 1종금속제가요전선관 | E6: 42 mm 일반-비방수 | F6: m
C7: 3913170620174415 | D7: 1종금속제가요전선관 | E7: 54 mm 일반-비방수 | F7: m
C8: 3913170620174422 | D8: 1종금속제가요전선관 | E8: 16 mm 일반-방수 | F8: m
C9: 3913170620174424 | D9: 1종금속제가요전선관 | E9: 28 mm 일반-방수 | F9: m
C10: 3913170620174434 | D10: 1종금속제가요전선관 | E10: 커넥터, 16 mm 일반-비방수 | F10: 개
C11: 3913170620174446 | D11: 1종금속제가요전선관 | E11: 커넥터, 16 mm 일반-방수 | F11: 개
C12: 3912130810035750 | D12: 아우트렛박스 | E12: 8각 54㎜ | F12: 개
C13: 3912130810035753 | D13: 아우트렛박스 | E13: 중형4각 54㎜ | F13: 개
C14: 3912130610035778 | D14: 스위치박스 | E14: 1 개용 54 mm | F14: 개
C15: 3912130610035781 | D15: 스위치박스 | E15: 2 개용 54 mm | F15: 개
C16: 3912130610036792 | D16: PVC BOX 4각 | E16: 4 각 | F16: 개
C17: 3912130820174710 | D17: 아우트렛박스 커버 | E17: 커버, 8각, 평형 | F17: 개
C18: 3912130820174713 | D18: 아우트렛박스 커버 | E18: 커버, 4각, 평형 | F18: 개
C19: 3913171221650789 | D19: 전선덕트 | E19: 알루미늄 150x100mm | F19: m
C20: 2612162922076727 | D20: 450/750V 내열비닐절연전선 | E20: HFIX 1.78mm(2.5㎟) | F20: m
C21: 2612162922076728 | D21: 450/750V 내열비닐절연전선 | E21: HFIX 2.25mm(4㎟) | F21: m
C22: 2612152420683695 | D22: 접지용비닐절연전선(F-GV) | E22: 2.5㎟ | F22: m
C23: 2612152420683698 | D23: 접지용비닐절연전선(F-GV) | E23: 10㎟ | F23: m
C24: 2612152420683699 | D24: 접지용비닐절연전선(F-GV) | E24: 16㎟ | F24: m
C25: 2612162920683943 | D25: 폴리에틸렌 난연케이블 | E25: 0.6/1kv F-CV 4C×2.5㎟ | F25: m
C26: 2612162920683946 | D26: 폴리에틸렌 난연케이블 | E26: 0.6/1kv F-CV 4C×10㎟ | F26: m
C27: 2612162920683947 | D27: 폴리에틸렌 난연케이블 | E27: 0.6/1kv F-CV 4C×16㎟ | F27: m
C28: 3912998720170517 | D28: 매입스위치 | E28: 250V 1로1구 | F28: 개
C29: 3912998720170518 | D29: 매입스위치 | E29: 250V 1로2구 | F29: 개
C30: 3912998720170519 | D30: 매입스위치 | E30: 250V 1로3구 | F30: 개
C31: 3912998720170520 | D31: 매입스위치 | E31: 250V 1로4구 | F31: 개
C32: 3912140620170850 | D32: 콘센트 | E32: 매입-접지형, 250V 2구 | F32: 개
C33: 3912140620170834 | D33: 콘센트 | E33: 노출-접지형, 250V 원형 | F33: 개
C34: 3912140621030228 | D34: 방우콘센트 | E34: 매입-접지형, 250V 2구 | F34: 개
C35: 3912110121654351 | D35: 분전반 외함(ALL SUS) | E35: 600* 600*150 | F35: 면
C36: 3912110121654352 | D36: 분전반 외함(ALL SUS) | E36: 600* 700*150 | F36: 면
C37: 3912110320178178 | D37: 배전반 부속재 | E37: DOOR HANDLE, PUSH TYPE | F37: 개
C38: 3912110320178179 | D38: 배전반 부속재 | E38: ET | F38: 개
C39: 3912110320178180 | D39: 배전반 부속재 | E39: NT | F39: 개
C40: 3912110320178186 | D40: 배전반 부속재 | E40: NAME PLATE, CARD HOLDER | F40: 개
C41: 3912110420179148 | D41: 아크릴 명판 | E41: 60*350 | F41: EA
C42: 3912110420179154 | D42: 아크릴 명판 | E42: 20* 50 | F42: EA
C43: 3912172120173109 | D43: 베이크라이트판 | E43: 9.0tx1000x1000 | F43: 매
C44: 3912161620267304 | D44: 배선용차단기(ABS-34) | E44: 4P 30AF 20AT | F44: EA
C45: 3912161620167029 | D45: 배선용차단기(ABS-54) | E45: 4P 50AF 50AT | F45: EA
C46: 3912161420167114 | D46: 누전차단기(32KGRc) | E46: 2P 30AF 20AT | F46: EA
C47: 3912161420167136 | D47: 누전차단기(54c) | E47: 4P 50AF | F47: EA
C48: 3912143520184926 | D48: 모선접속바(BUS BAR) | E48: 2.0mm x 12mm | F48: m
C49: 3912143520184927 | D49: 모선접속바(BUS BAR) | E49: 3.0mm x 20mm | F49: m
C50: 3912143210033786 | D50: 러그단자 | E50: 동관단자 1 HOLE 10 ㎟ | F50: 개
C51: 3912143210033787 | D51: 러그단자 | E51: 동관단자 1 HOLE 16 ㎟ | F51: 개
C52: 3912143221650908 | D52: 압착단자 | E52: R형동선 나압착 2.5 ㎟ | F52: 개
C53: 391115ZZ701Z0001 | D53: LED 다운라이트 | E53: 12W | F53: 개
C54: 391115ZZ701Z0002 | D54: LED 다운라이트 철거 | F54: 개
C55: 391115ZZ701Z0003 | D55: LED 면조명 | E55: 기존 | F55: 개
C56: 391115ZZ701Z0004 | D56: LED 면조명 철거 | F56: 개
C57: 391115ZZ701Z0005 | D57: LED 원형직부등 철거 | F57: 개
C58: 391115ZZ701Z0006 | D58: LED 파이프펜던트 | E58: 기존 | F58: 개
C59: 391115ZZ701Z0007 | D59: LED 파이프펜던트 철거 | F59: 개
C60: 391115ZZ701Z0008 | D60: PVC함 철거 | F60: 면
C61: 391115ZZ701Z0009 | D61: 기타 전기공사 | E61: 배관, 배선정리 | F61: 식
C62: 391115ZZ701Z0010 | D62: 전등스위치 철거 | F62: 개
C63: 391115ZZ701Z0011 | D63: 콘센트 철거 | F63: 개
C64: ECA565826062 | D64: 코어드릴 | E64: 15.24cm | F64: 시간
C65: L001010101000075 | D65: 노 무 비 | E65: 내선전공 | F65: 인
C66: L001010101000078 | D66: 노 무 비 | E66: 저압케이블전공 | F66: 인
C67: L001010501000116 | D67: 노 무 비 | E67: 변전전공 | F67: 인
C68: L001010101000002 | D68: 노 무 비 | E68: 보통인부 | F68: 인
C69: L001010101000015 | D69: 노 무 비 | E69: 착암공 | F69: 인

Sheet 목차 (hidden)
A1: 총줄수-> | B1: 32 | D1: [ 교육시설(서일관) 승강기 증축공사 및 리모델링 전기공사 ]
A2: 번호 | B2: 공종코드 | C2: … | D2: 구 분 | E2: 내 용 | F2: 단위 | G2: 수량 | H2: 비 고
D4: 전체 집계표* | E4: 1-1.철거공사 | F4: 식 | G4: 1 | H4: 전체집계표* - 1
D5: 전체 집계표* | E5: 1-2.전력간선공사 | F5: 식 | G5: 1 | H5: 전체집계표* - 38
D6: 전체 집계표* | E6: 1-3.전등설비공사 | F6: 식 | G6: 1 | H6: 전체집계표* - 75
D7: 전체 집계표* | E7: 1-4.전열설비공사 | F7: 식 | G7: 1 | H7: 전체집계표* - 112
D8: 전체 집계표* | E8: 2-1.철거공사 | F8: 식 | G8: 1 | H8: 전체집계표* - 149
D9: 전체 집계표* | E9: 2-2.전력간선공사 | F9: 식 | G9: 1 | H9: 전체집계표* - 186
D10: 전체 집계표* | E10: 2-3.전등설비공사 | F10: 식 | G10: 1 | H10: 전체집계표* - 223
D11: 전체 집계표* | E11: 2-4.전열설비공사 | F11: 식 | G11: 1 | H11: 전체집계표* - 260
D12: 기본 산출서 | E12: 1.엘리베이터 | F12: 식 | G12: 1
D13: 기본 산출서* | E13: 1-1.철거공사 | F13: 식 | G13: 1 | H13: 기본산출서* - 1
D14: 기본 산출서* | E14: 1-2.전력간선공사 | F14: 식 | G14: 1 | H14: 기본산출서* - 47
D15: 기본 산출서* | E15: 1-3.전등설비공사 | F15: 식 | G15: 1 | H15: 기본산출서* - 93
D16: 기본 산출서* | E16: 1-4.전열설비공사 | F16: 식 | G16: 1 | H16: 기본산출서* - 185
D17: 기본 산출서 | E17: 2.화장실 | F17: 식 | G17: 1
D18: 기본 산출서* | E18: 2-1.철거공사 | F18: 식 | G18: 1 | H18: 기본산출서* - 231
D19: 기본 산출서* | E19: 2-2.전력간선공사 | F19: 식 | G19: 1 | H19: 기본산출서* - 277
D20: 기본 산출서* | E20: 2-3.전등설비공사 | F20: 식 | G20: 1 | H20: 기본산출서* - 323
D21: 기본 산출서* | E21: 2-4.전열설비공사 | F21: 식 | G21: 1 | H21: 기본산출서* - 369
D22: 목록별 산출서 | E22: 1.엘리베이터 | F22: 식 | G22: 1
D23: 목록별 산출서* | E23: 1-1.철거공사 | F23: 식 | G23: 1 | H23: 목록별산출서* - 4
D24: 목록별 산출서* | E24: 1-2.전력간선공사 | F24: 식 | G24: 1 | H24: 목록별산출서* - 46
D25: 목록별 산출서* | E25: 1-3.전등설비공사 | F25: 식 | G25: 1 | H25: 목록별산출서* - 88
D26: 목록별 산출서* | E26: 1-4.전열설비공사 | F26: 식 | G26: 1 | H26: 목록별산출서* - 172
D27: 목록별 산출서 | E27: 2.화장실 | F27: 식 | G27: 1
D28: 목록별 산출서* | E28: 2-1.철거공사 | F28: 식 | G28: 1 | H28: 목록별산출서* - 214
D29: 목록별 산출서* | E29: 2-2.전력간선공사 | F29: 식 | G29: 1 | H29: 목록별산출서* - 256
D30: 목록별 산출서* | E30: 2-3.전등설비공사 | F30: 식 | G30: 1 | H30: 목록별산출서* - 298
D31: 목록별 산출서* | E31: 2-4.전열설비공사 | F31: 식 | G31: 1 | H31: 목록별산출서* - 340

Sheet 산출집계 (hidden)
A1: 총줄수-> | B1: 296 | C1: 2 | D1: 1.엘리베이터::1-1.철거공사
D3: 명 칭 | E3: 규 격 | F3: 단위 | H3: 계 | I3: 할증(%) | J3: 소계
D5: LED 면조명 철거 | E5: (철거(30%)) | F5: 개 | G5: 철거(30%) | H5: =IF(I5<>0,IF(TRUNC(J5*(I5+100)/100,0)<>0,TRUNC(J5*(I5+100)/100,0), ),IF(J5<>0,J5, )) -> 17 | J5: 17
D6: LED 원형직부등 철거 | E6: (철거(30%)) | F6: 개 | G6: 철거(30%) | H6: 1 | J6: 1
D7: LED 파이프펜던트 철거 | E7: (철거(30%)) | F7: 개 | G7: 철거(30%) | H7: 2 | J7: 2
D8: 기타 전기공사 | E8: 배관, 배선정리(산출계상) | F8: 식 | G8: 산출계상 | H8: 7 | J8: 7
D9: 전등스위치 철거 | E9: (철거(30%)) | F9: 개 | G9: 철거(30%) | H9: 8 | J9: 8
D10: 콘센트 철거 | E10: (철거(30%)) | F10: 개 | G10: 철거(30%) | H10: 4 | J10: 4
B38: 공종줄 | D38: 1.엘리베이터::1-2.전력간선공사
D40: 명 칭 | E40: 규 격 | F40: 단위 | H40: 계 | I40: 할증(%) | J40: 소계
D42: 1종금속제가요전선관 | E42: 42 mm 일반-비방수 | F42: M | H42: =IF(I42<>0,IF(TRUNC(J42*(I42+100)/100,0)<>0,TRUNC(J42*(I42+100)/100,0), ),IF(J42<>0,J42, )) -> 3 | I42: 10 | J42: =TRUNC(기본산출서!F92,0) -> 3
D43: 1종금속제가요전선관 | E43: 54 mm 일반-비방수 | F43: M | H43: 55 | I43: 10 | J43: =TRUNC(기본산출서!G92,0) -> 50
D44: 접지용비닐절연전선(F-GV) | E44: 10㎟ | F44: M | H44: 3 | I44: 10 | J44: =TRUNC(기본산출서!H92,0) -> 3
D45: 접지용비닐절연전선(F-GV) | E45: 16㎟ | F45: M | H45: 55 | I45: 10 | J45: =TRUNC(기본산출서!I92,0) -> 50
D46: 폴리에틸렌 난연케이블 | E46: 0.6/1kv F-CV 4C×10㎟ | F46: M | H46: 3 | I46: 5 | J46: =TRUNC(기본산출서!J92,0) -> 3
D47: 폴리에틸렌 난연케이블 | E47: 0.6/1kv F-CV 4C×16㎟ | F47: M | H47: 52 | I47: 5 | J47: =TRUNC(기본산출서!K92,0) -> 50
D48: 배선용차단기(ABS-54) | E48: 4P 50AF 50AT | F48: EA | H48: 1 | J48: =IF(AND(TRUNC(기본산출서!L92,1)>0,TRUNC(기본산출서!L92,1)<1),1,TRUNC(기본산출서!L92+0.5,0)) -> 1
D49: 러그단자 | E49: 동관단자 1 HOLE 10 ㎟ | F49: 개 | H49: 10 | J49: =IF(AND(TRUNC(기본산출서!M92,1)>0,TRUNC(기본산출서!M92,1)<1),1,TRUNC(기본산출서!M92+0.5,0)) -> 10
D50: 러그단자 | E50: 동관단자 1 HOLE 16 ㎟ | F50: 개 | H50: 10 | J50: =IF(AND(TRUNC(기본산출서!N92,1)>0,TRUNC(기본산출서!N92,1)<1),1,TRUNC(기본산출서!N92+0.5,0)) -> 10
D51: LP-ELEV 분전반 | E51: 600Wx600Hx150D | F51: 면 | H51: 1 | J51: =TRUNC(기본산출서!O92,0) -> 1
B75: 공종줄 | D75: 1.엘리베이터::1-3.전등설비공사
D77: 명 칭 | E77: 규 격 | F77: 단위 | H77: 계 | I77: 할증(%) | J77: 소계
D79: 1종금속제가요전선관 | E79: 16 mm 일반-비방수 | F79: M | H79: =IF(I79<>0,IF(TRUNC(J79*(I79+100)/100,0)<>0,TRUNC(J79*(I79+100)/100,0), ),IF(J79<>0,J79, )) -> 159 | I79: 10 | J79: =TRUNC(기본산출서!F184,0) -> 145
D80: 스위치박스 | E80: 1 개용 54 mm | F80: 개 | H80: 5 | J80: =IF(AND(TRUNC(기본산출서!G184,1)>0,TRUNC(기본산출서!G184,1)<1),1,TRUNC(기본산출서!G184+0.5,0)) -> 5
D81: 스위치박스 | E81: 2 개용 54 mm | F81: 개 | H81: 2 | J81: =IF(AND(TRUNC(기본산출서!H184,1)>0,TRUNC(기본산출서!H184,1)<1),1,TRUNC(기본산출서!H184+0.5,0)) -> 2
D82: 450/750V 내열비닐절연전선 | E82: HFIX 1.78mm(2.5㎟) | F82: M | H82: 478 | I82: 10 | J82: =TRUNC(기본산출서!I184,0) -> 435
D83: 매입스위치 | E83: 250V 1로1구 | F83: 개 | H83: 1 | J83: =IF(AND(TRUNC(기본산출서!J184,1)>0,TRUNC(기본산출서!J184,1)<1),1,TRUNC(기본산출서!J184+0.5,0)) -> 1
D84: 매입스위치 | E84: 250V 1로2구 | F84: 개 | H84: 1 | J84: =IF(AND(TRUNC(기본산출서!K184,1)>0,TRUNC(기본산출서!K184,1)<1),1,TRUNC(기본산출서!K184+0.5,0)) -> 1
D85: 매입스위치 | E85: 250V 1로3구 | F85: 개 | H85: 3 | J85: =IF(AND(TRUNC(기본산출서!L184,1)>0,TRUNC(기본산출서!L184,1)<1),1,TRUNC(기본산출서!L184+0.5,0)) -> 3
D86: 매입스위치 | E86: 250V 1로4구 | F86: 개 | H86: 2 | J86: =IF(AND(TRUNC(기본산출서!M184,1)>0,TRUNC(기본산출서!M184,1)<1),1,TRUNC(기본산출서!M184+0.5,0)) -> 2
D87: LED 면조명 | E87: 기존 | F87: 개 | H87: 13 | J87: =IF(AND(TRUNC(기본산출서!N184,1)>0,TRUNC(기본산출서!N184,1)<1),1,TRUNC(기본산출서!N184+0.5,0)) -> 13
D88: LED 파이프펜던트 | E88: 기존 | F88: 개 | H88: 2 | J88: =IF(AND(TRUNC(기본산출서!O184,1)>0,TRUNC(기본산출서!O184,1)<1),1,TRUNC(기본산출서!O184+0.5,0)) -> 2
B112: 공종줄 | D112: 1.엘리베이터::1-4.전열설비공사
D114: 명 칭 | E114: 규 격 | F114: 단위 | H114: 계 | I114: 할증(%) | J114: 소계
D116: 합성수지제 가요전선관 | E116: CD-난연성 16㎜ | F116: M | H116: =IF(I116<>0,IF(TRUNC(J116*(I116+100)/100,0)<>0,TRUNC(J116*(I116+100)/100,0), ),IF(J116<>0,J116, )) -> 40 | I116: 10 | J116: =TRUNC(기본산출서!F230,0) -> 37
D117: 1종금속제가요전선관 | E117: 16 mm 일반-비방수 | F117: M | H117: 170 | I117: 10 | J117: =TRUNC(기본산출서!G230,0) -> 155
D118: 1종금속제가요전선관 | E118: 커넥터, 16 mm 일반-비방수 | F118: 개 | H118: 30 | J118: =IF(AND(TRUNC(기본산출서!H230,1)>0,TRUNC(기본산출서!H230,1)<1),1,TRUNC(기본산출서!H230+0.5,0)) -> 30
D119: 아우트렛박스 | E119: 8각 54㎜ | F119: 개 | H119: 15 | J119: =IF(AND(TRUNC(기본산출서!I230,1)>0,TRUNC(기본산출서!I230,1)<1),1,TRUNC(기본산출서!I230+0.5,0)) -> 15
D120: 스위치박스 | E120: 1 개용 54 mm | F120: 개 | H120: 15 | J120: =IF(AND(TRUNC(기본산출서!J230,1)>0,TRUNC(기본산출서!J230,1)<1),1,TRUNC(기본산출서!J230+0.5,0)) -> 15
D121: 아우트렛박스 커버 | E121: 커버, 8각, 평형 | F121: 개 | H121: 15 | J121: =IF(AND(TRUNC(기본산출서!K230,1)>0,TRUNC(기본산출서!K230,1)<1),1,TRUNC(기본산출서!K230+0.5,0)) -> 15
D122: 450/750V 내열비닐절연전선 | E122: HFIX 2.25mm(4㎟) | F122: M | H122: 634 | I122: 10 | J122: =TRUNC(기본산출서!L230,0) -> 577
D123: 콘센트 | E123: 매입-접지형, 250V 2구 | F123: 개 | H123: 15 | J123: =IF(AND(TRUNC(기본산출서!M230,1)>0,TRUNC(기본산출서!M230,1)<1),1,TRUNC(기본산출서!M230+0.5,0)) -> 15
D124: 누전차단기(32KGRc) | E124: 2P 30AF 20AT | F124: EA | H124: 5 | J124: =IF(AND(TRUNC(기본산출서!N230,1)>0,TRUNC(기본산출서!N230,1)<1),1,TRUNC(기본산출서!N230+0.5,0)) -> 5
D125: 배관용 홈파기 | E125: Φ22이하 | F125: M | H125: 37 | J125: =TRUNC(기본산출서!O230,0) -> 37
D126: 벽관통 구멍(코어드릴) | E126: Φ50-벽두께 25cm | F126: 개소 | H126: 5 | J126: =IF(AND(TRUNC(기본산출서!P230,1)>0,TRUNC(기본산출서!P230,1)<1),1,TRUNC(기본산출서!P230+0.5,0)) -> 5
B149: 공종줄 | D149: 2.화장실::2-1.철거공사
D151: 명 칭 | E151: 규 격 | F151: 단위 | H151: 계 | I151: 할증(%) | J151: 소계
D153: LED 다운라이트 철거 | E153: (철거(30%)) | F153: 개 | G153: 철거(30%) | H153: =IF(I153<>0,IF(TRUNC(J153*(I153+100)/100,0)<>0,TRUNC(J153*(I153+100)/100,0), ),IF(J153<>0,J153, )) -> 85 | J153: 85
D154: PVC함 철거 | E154: (철거(30%)) | F154: 면 | G154: 철거(30%) | H154: =IF(I154<>0,IF(TRUNC(J154*(I154+100)/100,0)<>0,TRUNC(J154*(I154+100)/100,0), ),IF(J154<>0,J154, )) -> 5 | J154: 5
D155: 전등스위치 철거 | E155: (철거(30%)) | F155: 개 | G155: 철거(30%) | H155: =IF(I155<>0,IF(TRUNC(J155*(I155+100)/100,0)<>0,TRUNC(J155*(I155+100)/100,0), ),IF(J155<>0,J155, )) -> 7 | J155: 7
D156: 콘센트 철거 | E156: (철거(30%)) | F156: 개 | G156: 철거(30%) | H156: =IF(I156<>0,IF(TRUNC(J156*(I156+100)/100,0)<>0,TRUNC(J156*(I156+100)/100,0), ),IF(J156<>0,J156, )) -> 15 | J156: 15
B186: 공종줄 | D186: 2.화장실::2-2.전력간선공사
D188: 명 칭 | E188: 규 격 | F188: 단위 | H188: 계 | I188: 할증(%) | J188: 소계
D190: 1종금속제가요전선관 | E190: 54 mm 일반-비방수 | F190: M | H190: =IF(I190<>0,IF(TRUNC(J190*(I190+100)/100,0)<>0,TRUNC(J190*(I190+100)/100,0), ),IF(J190<>0,J190, )) -> 66 | I190: 10 | J190: =TRUNC(기본산출서!F322,0) -> 60
D191: 전선덕트 | E191: 알루미늄 150x100mm | F191: M | H191: 2 | I191: 5 | J191: =TRUNC(기본산출서!G322,0) -> 2
D192: 접지용비닐절연전선(F-GV) | E192: 16㎟ | F192: M | H192: 99 | I192: 10 | J192: =TRUNC(기본산출서!H322,0) -> 90
D193: 폴리에틸렌 난연케이블 | E193: 0.6/1kv F-CV 4C×16㎟ | F193: M | H193: 94 | I193: 5 | J193: =TRUNC(기본산출서!I322,0) -> 90
D194: 배선용차단기(ABS-54) | E194: 4P 50AF 50AT | F194: EA | H194: 1 | J194: =IF(AND(TRUNC(기본산출서!J322,1)>0,TRUNC(기본산출서!J322,1)<1),1,TRUNC(기본산출서!J322+0.5,0)) -> 1
D195: 러그단자 | E195: 동관단자 1 HOLE 16 ㎟ | F195: 개 | H195: 10 | J195: =IF(AND(TRUNC(기본산출서!K322,1)>0,TRUNC(기본산출서!K322,1)<1),1,TRUNC(기본산출서!K322+0.5,0)) -> 10
D196: 벽관통 구멍(코어드릴) | E196: Φ50-벽두께 25cm | F196: 개소 | H196: 1 | J196: =IF(AND(TRUNC(기본산출서!L322,1)>0,TRUNC(기본산출서!L322,1)<1),1,TRUNC(기본산출서!L322+0.5,0)) -> 1
D197: LP-화장실 분전반 | E197: 600Wx700Hx150D | F197: 면 | H197: 1 | J197: =TRUNC(기본산출서!M322,0) -> 1
B223: 공종줄 | D223: 2.화장실::2-3.전등설비공사
D225: 명 칭 | E225: 규 격 | F225: 단위 | H225: 계 | I225: 할증(%) | J225: 소계
D227: 합성수지제 가요전선관 | E227: CD-난연성 16㎜ | F227: M | H227: =IF(I227<>0,IF(TRUNC(J227*(I227+100)/100,0)<>0,TRUNC(J227*(I227+100)/100,0), ),IF(J227<>0,J227, )) -> 14 | I227: 10 | J227: =TRUNC(기본산출서!F368,0) -> 13
D228: 1종금속제가요전선관 | E228: 16 mm 일반-방수 | F228: M | H228: 240 | I228: 10 | J228: =TRUNC(기본산출서!G368,0) -> 219
D229: 1종금속제가요전선관 | E229: 커넥터, 16 mm 일반-방수 | F229: 개 | H229: 150 | J229: =IF(AND(TRUNC(기본산출서!H368,1)>0,TRUNC(기본산출서!H368,1)<1),1,TRUNC(기본산출서!H368+0.5,0)) -> 150
D230: 아우트렛박스 | E230: 중형4각 54㎜ | F230: 개 | H230: 75 | J230: =IF(AND(TRUNC(기본산출서!I368,1)>0,TRUNC(기본산출서!I368,1)<1),1,TRUNC(기본산출서!I368+0.5,0)) -> 75
D231: 스위치박스 | E231: 1 개용 54 mm | F231: 개 | H231: 7 | J231: =IF(AND(TRUNC(기본산출서!J368,1)>0,TRUNC(기본산출서!J368,1)<1),1,TRUNC(기본산출서!J368+0.5,0)) -> 7
D232: 아우트렛박스 커버 | E232: 커버, 4각, 평형 | F232: 개 | H232: 75 | J232: =IF(AND(TRUNC(기본산출서!K368,1)>0,TRUNC(기본산출서!K368,1)<1),1,TRUNC(기본산출서!K368+0.5,0)) -> 75
D233: 450/750V 내열비닐절연전선 | E233: HFIX 1.78mm(2.5㎟) | F233: M | H233: 784 | I233: 10 | J233: =TRUNC(기본산출서!L368,0) -> 713
D234: 매입스위치 | E234: 250V 1로1구 | F234: 개 | H234: 7 | J234: =IF(AND(TRUNC(기본산출서!M368,1)>0,TRUNC(기본산출서!M368,1)<1),1,TRUNC(기본산출서!M368+0.5,0)) -> 7
D235: 배관용 홈파기 | E235: Φ22이하 | F235: M | H235: 9 | J235: =TRUNC(기본산출서!N368,0) -> 9
D236: LED 다운라이트 | E236: 12W | F236: 개 | H236: 75 | J236: =IF(AND(TRUNC(기본산출서!O368,1)>0,TRUNC(기본산출서!O368,1)<1),1,TRUNC(기본산출서!O368+0.5,0)) -> 75
B260: 공종줄 | D260: 2.화장실::2-4.전열설비공사
D262: 명 칭 | E262: 규 격 | F262: 단위 | H262: 계 | I262: 할증(%) | J262: 소계
D264: 합성수지제 가요전선관 | E264: CD-난연성 16㎜ | F264: M | H264: =IF(I264<>0,IF(TRUNC(J264*(I264+100)/100,0)<>0,TRUNC(J264*(I264+100)/100,0), ),IF(J264<>0,J264, )) -> 22 | I264: 10 | J264: =TRUNC(기본산출서!F552,0) -> 20
D265: 1종금속제가요전선관 | E265: 16 mm 일반-방수 | F265: M | H265: 236 | I265: 10 | J265: =TRUNC(기본산출서!G552,0) -> 215
D266: 1종금속제가요전선관 | E266: 28 mm 일반-방수 | F266: M | H266: 52 | I266: 10 | J266: =TRUNC(기본산출서!H552,0) -> 48
D267: 1종금속제가요전선관 | E267: 커넥터, 16 mm 일반-방수 | F267: 개 | H267: 20 | J267: =IF(AND(TRUNC(기본산출서!I552,1)>0,TRUNC(기본산출서!I552,1)<1),1,TRUNC(기본산출서!I552+0.5,0)) -> 20
D268: 아우트렛박스 | E268: 8각 54㎜ | F268: 개 | H268: 10 | J268: =IF(AND(TRUNC(기본산출서!J552,1)>0,TRUNC(기본산출서!J552,1)<1),1,TRUNC(기본산출서!J552+0.5,0)) -> 10
D269: 스위치박스 | E269: 1 개용 54 mm | F269: 개 | H269: 10 | J269: =IF(AND(TRUNC(기본산출서!K552,1)>0,TRUNC(기본산출서!K552,1)<1),1,TRUNC(기본산출서!K552+0.5,0)) -> 10
D270: PVC BOX 4각 | E270: 4 각 | F270: 개 | H270: 1 | J270: =IF(AND(TRUNC(기본산출서!L552,1)>0,TRUNC(기본산출서!L552,1)<1),1,TRUNC(기본산출서!L552+0.5,0)) -> 1
D271: 아우트렛박스 커버 | E271: 커버, 8각, 평형 | F271: 개 | H271: 10 | J271: =IF(AND(TRUNC(기본산출서!M552,1)>0,TRUNC(기본산출서!M552,1)<1),1,TRUNC(기본산출서!M552+0.5,0)) -> 10
D272: 450/750V 내열비닐절연전선 | E272: HFIX 2.25mm(4㎟) | F272: M | H272: 775 | I272: 10 | J272: =TRUNC(기본산출서!N552,0) -> 705
D273: 접지용비닐절연전선(F-GV) | E273: 2.5㎟ | F273: M | H273: 52 | I273: 10 | J273: =TRUNC(기본산출서!O552,0) -> 48
D274: 폴리에틸렌 난연케이블 | E274: 0.6/1kv F-CV 4C×2.5㎟ | F274: M | H274: 50 | I274: 5 | J274: =TRUNC(기본산출서!P552,0) -> 48
D275: 콘센트 | E275: 노출-접지형, 250V 원형 | F275: 개 | H275: 10 | J275: =IF(AND(TRUNC(기본산출서!Q552,1)>0,TRUNC(기본산출서!Q552,1)<1),1,TRUNC(기본산출서!Q552+0.5,0)) -> 10
D276: 방우콘센트 | E276: 매입-접지형, 250V 2구 | F276: 개 | H276: 10 | J276: =IF(AND(TRUNC(기본산출서!R552,1)>0,TRUNC(기본산출서!R552,1)<1),1,TRUNC(기본산출서!R552+0.5,0)) -> 10
D277: 배선용차단기(ABS-34) | E277: 4P 30AF 20AT | F277: EA | H277: 1 | J277: =IF(AND(TRUNC(기본산출서!S552,1)>0,TRUNC(기본산출서!S552,1)<1),1,TRUNC(기본산출서!S552+0.5,0)) -> 1
D278: 압착단자 | E278: R형동선 나압착 2.5 ㎟ | F278: 개 | H278: 5 | J278: =IF(AND(TRUNC(기본산출서!T552,1)>0,TRUNC(기본산출서!T552,1)<1),1,TRUNC(기본산출서!T552+0.5,0)) -> 5
D279: 배관용 홈파기 | E279: Φ22이하 | F279: M | H279: 20 | J279: =TRUNC(기본산출서!U552,0) -> 20
D280: 벽관통 구멍(코어드릴) | E280: Φ50-벽두께 25cm | F280: 개소 | H280: 10 | J280: =IF(AND(TRUNC(기본산출서!V552,1)>0,TRUNC(기본산출서!V552,1)<1),1,TRUNC(기본산출서!V552+0.5,0)) -> 10

Sheet 기본산출서 (hidden)
A1: 총줄수-> | B1: 552 | C1: 1.엘리베이터::1-1.철거공사
B2: 2.0
C3: No | D3: 산 출 목 록 / 산 출 수 식 | E3: 단위/계 | F3: LED면조명철거철거(30%) | G3: LED원형직부등철거철거(30%) | H3: LED파이프펜던트철거철거(30%) | I3: 기타전기공사산출계상 | J3: 전등스위치철거철거(30%) | K3: 콘센트철거철거(30%)
D5: LED 면조명 철거 | F5: 1
C6: 1 | D6: =목록별산출서!E5 -> 2+1+1+2+4+4+3 | E6: =IF(egTextCal(D6)<>0, egTextCal(D6),"") -> 17 | F6: =IF(E6*F5<>0,E6*F5, ) -> 17 | CA6: =F6 -> 17
D7: LED 파이프펜던트 철거 | H7: 1
C8: 2 | D8: =목록별산출서!E6 -> 2 | E8: =IF(egTextCal(D8)<>0, egTextCal(D8),"") -> 2 | H8: =IF(E8*H7<>0,E8*H7, ) -> 2 | CC8: =H8 -> 2
D9: LED 원형직부등 철거 | G9: 1
C10: 3 | D10: =목록별산출서!E7 -> 1 | E10: =IF(egTextCal(D10)<>0, egTextCal(D10),"") -> 1 | G10: =IF(E10*G9<>0,E10*G9, ) -> 1 | CB10: =G10 -> 1
D11: 전등스위치 철거 | J11: 1
C12: 4 | D12: =목록별산출서!E8 -> 1+1+1+2+2+1 | E12: =IF(egTextCal(D12)<>0, egTextCal(D12),"") -> 8 | J12: =IF(E12*J11<>0,E12*J11, ) -> 8 | CE12: =J12 -> 8
D13: 콘센트 철거 | K13: 1
C14: 5 | D14: =목록별산출서!E9 -> 2+2 | E14: =IF(egTextCal(D14)<>0, egTextCal(D14),"") -> 4 | K14: =IF(E14*K13<>0,E14*K13, ) -> 4 | CF14: =K14 -> 4
D15: 기타 전기공사 | I15: 1
C16: 6 | D16: =목록별산출서!E10 -> 7 | E16: =IF(egTextCal(D16)<>0, egTextCal(D16),"") -> 7 | I16: =IF(E16*I15<>0,E16*I15, ) -> 7 | CD16: =I16 -> 7
C18: 7
C20: 8
C22: 9
C24: 10
C26: 11
C28: 12
C30: 13
C32: 14
C34: 15
C36: 16
C38: 17
C40: 18
C42: 19
C44: 20
B45: 산출계 | D45: 소계 | E45: 식 | F45: =SUM(CA6:CA44) -> 17 | G45: 1 | H45: 2 | I45: 7 | J45: 8 | K45: 4
C46: 21 | D46: 소계*(1)[공종]개소 | E46: 1 | F46: =E46*F45 -> 17 | G46: =E46*G45 -> 1 | H46: =E46*H45 -> 2 | I46: =E46*I45 -> 7 | J46: =E46*J45 -> 8 | K46: =E46*K45 -> 4
B47: 공종줄 | C47: 1.엘리베이터::1-2.전력간선공사
F48: 1종가요 | G48: 1종가요 | H48: 접지전선 | I48: 접지전선 | J48: 케이블 | K48: 케이블 | L48: MCCBABS | M48: 러그단자 | N48: 러그단자 | CA48: 1종가요 | CB48: 1종가요 | CC48: 접지전선 | CD48: 접지전선 | CE48: 케이블 | CF48: 케이블 | CG48: MCCBABS | CH48: 러그단자 | CI48: 러그단자
C49: No | D49: 산 출 목 록 / 산 출 수 식 | E49: 단위/계 | F49: 전선관 | G49: 전선관 | H49: F-GV | I49: F-GV | J49: F-CV | K49: F-CV | L49: 4P50AF | M49: 동1홀 | N49: 동1홀 | O49: LP-ELEV분전반 | CA49: 전선관 | CB49: 전선관 | CC49: F-GV | CD49: F-GV | CE49: F-CV | CF49: F-CV | CG49: 4P50AF | CH49: 동1홀 | CI49: 동1홀 | CJ49: LP-ELEV분전반
F50: 일반42c | G50: 일반54c | H50: 10_㎟ | I50: 16_㎟ | J50: 10_㎟/4c | K50: 16_㎟/4c | L50: 50AT | M50: 10㎟ | N50: 16㎟ | CA50: 일반42c | CB50: 일반54c | CC50: 10_㎟ | CD50: 16_㎟ | CE50: 10_㎟/4c | CF50: 16_㎟/4c | CG50: 50AT | CH50: 10㎟ | CI50: 16㎟
D51: 배선용차단기(ABS-54) 4P 50AF 50AT | L51: 1
C52: 1 | D52: =목록별산출서!E47 -> 1 | E52: =IF(egTextCal(D52)<>0, egTextCal(D52),"") -> 1 | L52: =IF(E52*L51<>0,E52*L51, ) -> 1 | CG52: =L52 -> 1
D53: F-CV 4C×16㎟, F-GV 16SQ (FLEX 54C) | G53: 1 | I53: 1 | K53: 1
C54: 2 | D54: =목록별산출서!E48 -> 15+5+5+5+5+5+(10) | E54: =IF(egTextCal(D54)<>0, egTextCal(D54),"") -> 50 | G54: =IF(E54*G53<>0,E54*G53, ) -> 50 | I54: =IF(E54*I53<>0,E54*I53, ) -> 50 | K54: =IF(E54*K53<>0,E54*K53, ) -> 50 | CB54: =G54 -> 50 | CD54: =I54 -> 50 | CF54: =K54 -> 50
D55: 러그단자 동관단자 1 HOLE 16 ㎟ | N55: 1
C56: 3 | D56: =목록별산출서!E51 -> (4+1)*2 | E56: =IF(egTextCal(D56)<>0, egTextCal(D56),"") -> 10 | N56: =IF(E56*N55<>0,E56*N55, ) -> 10 | CI56: =N56 -> 10
D57: LP-ELEV 분전반 | O57: 1
C58: 4 | D58: =목록별산출서!E52 -> 1 | E58: =IF(egTextCal(D58)<>0, egTextCal(D58),"") -> 1 | O58: =IF(E58*O57<>0,E58*O57, ) -> 1 | CJ58: =O58 -> 1
C60: 5
D61: F-CV 4C×10㎟, F-GV 10SQ (FLEX 42C) | F61: 1 | H61: 1 | J61: 1
C62: 6 | D62: =목록별산출서!E54 -> 3 | E62: =IF(egTextCal(D62)<>0, egTextCal(D62),"") -> 3 | F62: =IF(E62*F61<>0,E62*F61, ) -> 3 | H62: =IF(E62*H61<>0,E62*H61, ) -> 3 | J62: =IF(E62*J61<>0,E62*J61, ) -> 3 | CA62: =F62 -> 3 | CC62: =H62 -> 3 | CE62: =J62 -> 3
D63: 러그단자 동관단자 1 HOLE 10 ㎟ | M63: 1
C64: 7 | D64: =목록별산출서!E57 -> (4+1)*2 | E64: =IF(egTextCal(D64)<>0, egTextCal(D64),"") -> 10 | M64: =IF(E64*M63<>0,E64*M63, ) -> 10 | CH64: =M64 -> 10
C66: 8
C68: 9
C70: 10
C72: 11
C74: 12
C76: 13
C78: 14
C80: 15
C82: 16
C84: 17
C86: 18
C88: 19
C90: 20
B91: 산출계 | D91: 소계 | E91: 식 | F91: =SUM(CA52:CA90) -> 3 | G91: 50 | H91: 3 | I91: 50 | J91: 3 | K91: 50 | L91: 1 | M91: 10 | N91: 10 | O91: 1
C92: 21 | D92: 소계*(1)[공종]개소 | E92: 1 | F92: =E92*F91 -> 3 | G92: =E92*G91 -> 50 | H92: =E92*H91 -> 3 | I92: =E92*I91 -> 50 | J92: =E92*J91 -> 3 | K92: =E92*K91 -> 50 | L92: =E92*L91 -> 1 | M92: =E92*M91 -> 10 | N92: =E92*N91 -> 10 | O92: =E92*O91 -> 1
B93: 공종줄 | C93: 1.엘리베이터::1-3.전등설비공사
F94: 1종가요 | G94: 스위치 | H94: 스위치 | I94: 전선 | J94: 매입 | K94: 매입 | L94: 매입 | M94: 매입 | CA94: 1종가요 | CB94: 스위치 | CC94: 스위치 | CD94: 전선 | CE94: 매입 | CF94: 매입 | CG94: 매입 | CH94: 매입
C95: No | D95: 산 출 목 록 / 산 출 수 식 | E95: 단위/계 | F95: 전선관 | G95: 1구박스 | H95: 2구박스 | I95: HFIX | J95: 스위치 | K95: 스위치 | L95: 스위치 | M95: 스위치 | N95: LED면조명 | O95: LED파이프펜던트 | CA95: 전선관 | CB95: 1구박스 | CC95: 2구박스 | CD95: HFIX | CE95: 스위치 | CF95: 스위치 | CG95: 스위치 | CH95: 스위치 | CI95: LED면조명 | CJ95: LED파이프펜던트
F96: 일반16c | G96: 54mm | H96: 54mm | I96: 1.78mm | J96: 단로1구 | K96: 단로2구 | L96: 단로3구 | M96: 단로4구 | CA96: 일반16c | CB96: 54mm | CC96: 54mm | CD96: 1.78mm | CE96: 단로1구 | CF96: 단로2구 | CG96: 단로3구 | CH96: 단로4구
D97: 2층
C98: 1 | E98: =IF(egTextCal(D98)<>0, egTextCal(D98),"") -> 
D99: HFIX 1.78mm(2.5㎟), 3L (FLEX 16C) | F99: 1 | I99: 3
C100: 2 | D100: =목록별산출서!E90 -> 5+5+5+(10) | E100: =IF(egTextCal(D100)<>0, egTextCal(D100),"") -> 25 | F100: =IF(E100*F99<>0,E100*F99, ) -> 25 | I100: =IF(E100*I99<>0,E100*I99, ) -> 75 | CA100: =F100 -> 25 | CD100: =I100 -> 75
D101: LED 파이프펜던트 | O101: 1
C102: 3 | D102: =목록별산출서!E92 -> 2 | E102: =IF(egTextCal(D102)<>0, egTextCal(D102),"") -> 2 | O102: =IF(E102*O101<>0,E102*O101, ) -> 2 | CJ102: =O102 -> 2
D103: 매입스위치 250V 1로4구 | H103: 1 | M103: 1
C104: 4 | D104: =목록별산출서!E93 -> 1 | E104: =IF(egTextCal(D104)<>0, egTextCal(D104),"") -> 1 | H104: =IF(E104*H103<>0,E104*H103, ) -> 1 | M104: =IF(E104*M103<>0,E104*M103, ) -> 1 | CC104: =H104 -> 1 | CH104: =M104 -> 1
C106: 5
C108: 6
D109: 3층
C110: 7 | E110: =IF(egTextCal(D110)<>0, egTextCal(D110),"") -> 
D111: HFIX 1.78mm(2.5㎟), 3L (FLEX 16C) | F111: 1 | I111: 3
C112: 8 | D112: =목록별산출서!E98 -> 5+5+5+(10) | E112: =IF(egTextCal(D112)<>0, egTextCal(D112),"") -> 25 | F112: =IF(E112*F111<>0,E112*F111, ) -> 25 | I112: =IF(E112*I111<>0,E112*I111, ) -> 75 | CA112: =F112 -> 25 | CD112: =I112 -> 75
D113: LED 면조명 | N113: 1
C114: 9 | D114: =목록별산출서!E100 -> 2 | E114: =IF(egTextCal(D114)<>0, egTextCal(D114),"") -> 2 | N114: =IF(E114*N113<>0,E114*N113, ) -> 2 | CI114: =N114 -> 2
D115: 매입스위치 250V 1로3구 | G115: 1 | L115: 1
C116: 10 | D116: =목록별산출서!E101 -> 1 | E116: =IF(egTextCal(D116)<>0, egTextCal(D116),"") -> 1 | G116: =IF(E116*G115<>0,E116*G115, ) -> 1 | L116: =IF(E116*L115<>0,E116*L115, ) -> 1 | CB116: =G116 -> 1 | CG116: =L116 -> 1
C118: 11
C120: 12
D121: 4층
C122: 13 | E122: =IF(egTextCal(D122)<>0, egTextCal(D122),"") -> 
D123: HFIX 1.78mm(2.5㎟), 3L (FLEX 16C) | F123: 1 | I123: 3
C124: 14 | D124: =목록별산출서!E106 -> 5+5+5+5+5+5+(10) | E124: =IF(egTextCal(D124)<>0, egTextCal(D124),"") -> 40 | F124: =IF(E124*F123<>0,E124*F123, ) -> 40 | I124: =IF(E124*I123<>0,E124*I123, ) -> 120 | CA124: =F124 -> 40 | CD124: =I124 -> 120
D125: LED 면조명 | N125: 1
C126: 15 | D126: =목록별산출서!E108 -> 4 | E126: =IF(egTextCal(D126)<>0, egTextCal(D126),"") -> 4 | N126: =IF(E126*N125<>0,E126*N125, ) -> 4 | CI126: =N126 -> 4
D127: 매입스위치 250V 1로2구 | G127: 1 | K127: 1
C128: 16 | D128: =목록별산출서!E109 -> 1 | E128: =IF(egTextCal(D128)<>0, egTextCal(D128),"") -> 1 | G128: =IF(E128*G127<>0,E128*G127, ) -> 1 | K128: =IF(E128*K127<>0,E128*K127, ) -> 1 | CB128: =G128 -> 1 | CF128: =K128 -> 1
D129: 매입스위치 250V 1로4구 | H129: 1 | M129: 1
C130: 17 | D130: =목록별산출서!E111 -> 1 | E130: =IF(egTextCal(D130)<>0, egTextCal(D130),"") -> 1 | H130: =IF(E130*H129<>0,E130*H129, ) -> 1 | M130: =IF(E130*M129<>0,E130*M129, ) -> 1 | CC130: =H130 -> 1 | CH130: =M130 -> 1
C132: 18
C134: 19
D135: 5층
C136: 20 | E136: =IF(egTextCal(D136)<>0, egTextCal(D136),"") -> 
D137: HFIX 1.78mm(2.5㎟), 3L (FLEX 16C) | F137: 1 | I137: 3
C138: 21 | D138: =목록별산출서!E116 -> 5+5+5+5+5+5+(10) | E138: =IF(egTextCal(D138)<>0, egTextCal(D138),"") -> 40 | F138: =IF(E138*F137<>0,E138*F137, ) -> 40 | I138: =IF(E138*I137<>0,E138*I137, ) -> 120 | CA138: =F138 -> 40 | CD138: =I138 -> 120
F140: 1종가요 | G140: 스위치 | H140: 스위치 | I140: 전선 | J140: 매입 | K140: 매입 | L140: 매입 | M140: 매입
C141: No | D141: 산 출 목 록 / 산 출 수 식 | E141: 단위/계 | F141: 전선관 | G141: 1구박스 | H141: 2구박스 | I141: HFIX | J141: 스위치 | K141: 스위치 | L141: 스위치 | M141: 스위치 | N141: LED면조명 | O141: LED파이프펜던트
F142: 일반16c | G142: 54mm | H142: 54mm | I142: 1.78mm | J142: 단로1구 | K142: 단로2구 | L142: 단로3구 | M142: 단로4구
D143: LED 면조명 | N143: 1
C144: 1 | D144: =목록별산출서!E118 -> 4 | E144: =IF(egTextCal(D144)<>0, egTextCal(D144),"") -> 4 | N144: =IF(E144*N143<>0,E144*N143, ) -> 4 | CI144: =N144 -> 4
D145: 매입스위치 250V 1로1구 | G145: 1 | J145: 1
C146: 2 | D146: =목록별산출서!E119 -> 1 | E146: =IF(egTextCal(D146)<>0, egTextCal(D146),"") -> 1 | G146: =IF(E146*G145<>0,E146*G145, ) -> 1 | J146: =IF(E146*J145<>0,E146*J145, ) -> 1 | CB146: =G146 -> 1 | CE146: =J146 -> 1
D147: 매입스위치 250V 1로3구 | G147: 1 | L147: 1
C148: 3 | D148: =목록별산출서!E121 -> 1 | E148: =IF(egTextCal(D148)<>0, egTextCal(D148),"") -> 1 | G148: =IF(E148*G147<>0,E148*G147, ) -> 1 | L148: =IF(E148*L147<>0,E148*L147, ) -> 1 | CB148: =G148 -> 1 | CG148: =L148 -> 1
C150: 4
C152: 5
D153: 6층
C154: 6 | E154: =IF(egTextCal(D154)<>0, egTextCal(D154),"") -> 
D155: HFIX 1.78mm(2.5㎟), 3L (FLEX 16C) | F155: 1 | I155: 3
C156: 7 | D156: =목록별산출서!E126 -> 5+(10) | E156: =IF(egTextCal(D156)<>0, egTextCal(D156),"") -> 15 | F156: =IF(E156*F155<>0,E156*F155, ) -> 15 | I156: =IF(E156*I155<>0,E156*I155, ) -> 45 | CA156: =F156 -> 15 | CD156: =I156 -> 45
D157: LED 면조명 | N157: 1
C158: 8 | D158: =목록별산출서!E128 -> 3 | E158: =IF(egTextCal(D158)<>0, egTextCal(D158),"") -> 3 | N158: =IF(E158*N157<>0,E158*N157, ) -> 3 | CI158: =N158 -> 3
D159: 매입스위치 250V 1로3구 | G159: 1 | L159: 1
C160: 9 | D160: =목록별산출서!E129 -> 1 | E160: =IF(egTextCal(D160)<>0, egTextCal(D160),"") -> 1 | G160: =IF(E160*G159<>0,E160*G159, ) -> 1 | L160: =IF(E160*L159<>0,E160*L159, ) -> 1 | CB160: =G160 -> 1 | CG160: =L160 -> 1
C162: 10
C164: 11
C166: 12
C168: 13
C170: 14
C172: 15
C174: 16
C176: 17
C178: 18
C180: 19
C182: 20
B183: 산출계 | D183: 소계 | E183: 식 | F183: =SUM(CA98:CA182) -> 145 | G183: 5 | H183: 2 | I183: 435 | J183: 1 | K183: 1 | L183: 3 | M183: 2 | N183: 13 | O183: 2
C184: 21 | D184: 소계*(1)[공종]개소 | E184: 1 | F184: =E184*F183 -> 145 | G184: =E184*G183 -> 5 | H184: =E184*H183 -> 2 | I184: =E184*I183 -> 435 | J184: =E184*J183 -> 1 | K184: =E184*K183 -> 1 | L184: =E184*L183 -> 3 | M184: =E184*M183 -> 2 | N184: =E184*N183 -> 13 | O184: =E184*O183 -> 2
B185: 공종줄 | C185: 1.엘리베이터::1-4.전열설비공사
F186: 전선관 | G186: 1종가요 | H186: 1종가요 | I186: 아우트렛 | J186: 스위치 | K186: 박스커버 | L186: 전선 | M186: 콘센트 | N186: ELB2P | O186: 홈파기 | P186: 벽관통 | CA186: 전선관 | CB186: 1종가요 | CC186: 1종가요 | CD186: 아우트렛 | CE186: 스위치 | CF186: 박스커버 | CG186: 전선 | CH186: 콘센트 | CI186: ELB2P | CJ186: 홈파기 | CK186: 벽관통
C187: No | D187: 산 출 목 록 / 산 출 수 식 | E187: 단위/계 | F187: (KS) | G187: 전선관 | H187: 커넥터 | I187: 8각박스 | J187: 1구박스 | K187: 8각 | L187: HFIX | M187: 매입2구E | N187: 30AF | P187: 코어Φ50 | CA187: (KS) | CB187: 전선관 | CC187: 커넥터 | CD187: 8각박스 | CE187: 1구박스 | CF187: 8각 | CG187: HFIX | CH187: 매입2구E | CI187: 30AF | CK187: 코어Φ50
F188: CD16c | G188: 일반16c | H188: 일반16c | I188: 54㎜ | J188: 54mm | K188: 평형 | L188: 2.25mm | M188: 250V | N188: 20AT | O188: Φ22 | P188: 25cm | CA188: CD16c | CB188: 일반16c | CC188: 일반16c | CD188: 54㎜ | CE188: 54mm | CF188: 평형 | CG188: 2.25mm | CH188: 250V | CI188: 20AT | CJ188: Φ22 | CK188: 25cm
D189: 누전차단기(32KGRc) 2P 30AF 20AT | N189: 1
C190: 1 | D190: =목록별산출서!E173 -> 5 | E190: =IF(egTextCal(D190)<>0, egTextCal(D190),"") -> 5 | N190: =IF(E190*N189<>0,E190*N189, ) -> 5 | CI190: =N190 -> 5
D191: 벽관통 구멍 Φ50-벽두께 25cm | P191: 1
C192: 2 | D192: =목록별산출서!E174 -> 5 | E192: =IF(egTextCal(D192)<>0, egTextCal(D192),"") -> 5 | P192: =IF(E192*P191<>0,E192*P191, ) -> 5 | CK192: =P192 -> 5
C194: 3
D195: FLEX 16C (HFIX 4sqx2,E4sq) | G195: 1 | L195: 3
C196: 4 | D196: =목록별산출서!E176 -> 25*5+(30) | E196: =IF(egTextCal(D196)<>0, egTextCal(D196),"") -> 155 | G196: =IF(E196*G195<>0,E196*G195, ) -> 155 | L196: =IF(E196*L195<>0,E196*L195, ) -> 465 | CB196: =G196 -> 155 | CG196: =L196 -> 465
D197: 난연CD 16C (HFIX 4sqx2,E4sq) | F197: 1 | L197: 3
C198: 5 | D198: =목록별산출서!E178 -> (2.5*3)*5 | E198: =IF(egTextCal(D198)<>0, egTextCal(D198),"") -> 37.5 | F198: =IF(E198*F197<>0,E198*F197, ) -> 37.5 | L198: =IF(E198*L197<>0,E198*L197, ) -> 112.5 | CA198: =F198 -> 37.5 | CG198: =L198 -> 112.5
D199: 벽관통 홈파기 Φ22이하 | O199: 1
C200: 6 | D200: =목록별산출서!E180 -> (2.5*3)*5 | E200: =IF(egTextCal(D200)<>0, egTextCal(D200),"") -> 37.5 | O200: =IF(E200*O199<>0,E200*O199, ) -> 37.5 | CJ200: =O200 -> 37.5
D201: 아우트렛박스 8각 54㎜ | H201: 2 | I201: 1 | K201: 1
C202: 7 | D202: =목록별산출서!E181 -> 3*5 | E202: =IF(egTextCal(D202)<>0, egTextCal(D202),"") -> 15 | H202: =IF(E202*H201<>0,E202*H201, ) -> 30 | I202: =IF(E202*I201<>0,E202*I201, ) -> 15 | K202: =IF(E202*K201<>0,E202*K201, ) -> 15 | CC202: =H202 -> 30 | CD202: =I202 -> 15 | CF202: =K202 -> 15
D203: 콘센트 매입-접지형,250V 2구 | J203: 1 | M203: 1
C204: 8 | D204: =목록별산출서!E184 -> 3*5 | E204: =IF(egTextCal(D204)<>0, egTextCal(D204),"") -> 15 | J204: =IF(E204*J203<>0,E204*J203, ) -> 15 | M204: =IF(E204*M203<>0,E204*M203, ) -> 15 | CE204: =J204 -> 15 | CH204: =M204 -> 15
C206: 9
C208: 10
C210: 11
C212: 12
C214: 13
C216: 14
C218: 15
C220: 16
C222: 17
C224: 18
C226: 19
C228: 20
B229: 산출계 | D229: 소계 | E229: 식 | F229: =SUM(CA190:CA228) -> 37.5 | G229: 155 | H229: 30 | I229: 15 | J229: 15 | K229: 15 | L229: 577.5 | M229: 15 | N229: 5 | O229: 37.5 | P229: 5
C230: 21 | D230: 소계*(1)[공종]개소 | E230: 1 | F230: =E230*F229 -> 37.5 | G230: =E230*G229 -> 155 | H230: =E230*H229 -> 30 | I230: =E230*I229 -> 15 | J230: =E230*J229 -> 15 | K230: =E230*K229 -> 15 | L230: =E230*L229 -> 577.5 | M230: =E230*M229 -> 15 | N230: =E230*N229 -> 5 | O230: =E230*O229 -> 37.5 | P230: =E230*P229 -> 5
B231: 공종줄 | C231: 2.화장실::2-1.철거공사
C233: No | D233: 산 출 목 록 / 산 출 수 식 | E233: 단위/계 | F233: LED다운라이트철거철거(30%) | G233: PVC함철거철거(30%) | H233: 전등스위치철거철거(30%) | I233: 콘센트철거철거(30%) | CA233: LED다운라이트철거철거(30%) | CB233: PVC함철거철거(30%) | CC233: 전등스위치철거철거(30%) | CD233: 콘센트철거철거(30%)
D235: LED 다운라이트 철거 | F235: 1
C236: 1 | D236: =목록별산출서!E215 -> 85 | E236: =IF(egTextCal(D236)<>0, egTextCal(D236),"") -> 85 | F236: =IF(E236*F235<>0,E236*F235, ) -> 85 | CA236: =F236 -> 85
D237: 전등스위치 철거 | H237: 1
C238: 2 | D238: =목록별산출서!E216 -> 7 | E238: =IF(egTextCal(D238)<>0, egTextCal(D238),"") -> 7 | H238: =IF(E238*H237<>0,E238*H237, ) -> 7 | CC238: =H238 -> 7
D239: 콘센트 철거 | I239: 1
C240: 3 | D240: =목록별산출서!E217 -> 15 | E240: =IF(egTextCal(D240)<>0, egTextCal(D240),"") -> 15 | I240: =IF(E240*I239<>0,E240*I239, ) -> 15 | CD240: =I240 -> 15
D241: PVC함 철거 | G241: 1
C242: 4 | D242: =목록별산출서!E218 -> 5 | E242: =IF(egTextCal(D242)<>0, egTextCal(D242),"") -> 5 | G242: =IF(E242*G241<>0,E242*G241, ) -> 5 | CB242: =G242 -> 5
C244: 5
C246: 6
C248: 7
C250: 8
C252: 9
C254: 10
C256: 11
C258: 12
C260: 13
C262: 14
C264: 15
C266: 16
C268: 17
C270: 18
C272: 19
C274: 20
B275: 산출계 | D275: 소계 | E275: 식 | F275: =SUM(CA236:CA274) -> 85 | G275: =SUM(CB236:CB274) -> 5 | H275: =SUM(CC236:CC274) -> 7 | I275: =SUM(CD236:CD274) -> 15
C276: 21 | D276: 소계*(1)[공종]개소 | E276: 1 | F276: =E276*F275 -> 85 | G276: =E276*G275 -> 5 | H276: =E276*H275 -> 7 | I276: =E276*I275 -> 15
B277: 공종줄 | C277: 2.화장실::2-2.전력간선공사
F278: 1종가요 | G278: AL덕트 | H278: 접지전선 | I278: 케이블 | J278: MCCBABS | K278: 러그단자 | L278: 벽관통 | CA278: 1종가요 | CB278: AL덕트 | CC278: 접지전선 | CD278: 케이블 | CE278: MCCBABS | CF278: 러그단자 | CG278: 벽관통
C279: No | D279: 산 출 목 록 / 산 출 수 식 | E279: 단위/계 | F279: 전선관 | H279: F-GV | I279: F-CV | J279: 4P50AF | K279: 동1홀 | L279: 코어Φ50 | M279: LP-화장실분전반 | CA279: 전선관 | CC279: F-GV | CD279: F-CV | CE279: 4P50AF | CF279: 동1홀 | CG279: 코어Φ50 | CH279: LP-화장실분전반
F280: 일반54c | G280: 150x100 | H280: 16_㎟ | I280: 16_㎟/4c | J280: 50AT | K280: 16㎟ | L280: 25cm | CA280: 일반54c | CB280: 150x100 | CC280: 16_㎟ | CD280: 16_㎟/4c | CE280: 50AT | CF280: 16㎟ | CG280: 25cm
... 224 more rows

Sheet 목록별산출서 (hidden)
A1: 총줄수-> | B1: 465 | C1: 64Bit용 | D1: [ 교육시설(서일관) 승강기 증축공사 및 리모델링 전기공사 ]
D2: 산 출 목 록 | E2: 산 출 수 식 | F2: 줄 | G2: 수식계 | H2: 코드 | I2: 명칭 | J2: 규격 | K2: 단위 | L2: 단위수식 | M2: 단위계 | N2: 계
F3: 수
B4: 공종줄 | C4: 1 | D4: 1.엘리베이터::1-1.철거공사
A5: P0101 | B5: LED 면조명 철거 | D5: LED 면조명 철거 | E5: 2+1+1+2+4+4+3 | F5: - | G5: =IF(egTextCal(E5)<>0, egTextCal(E5), ) -> 17 | H5: MM041720642 | I5: LED 면조명 철거 | K5: 개 | L5: 1 | M5: =IF(egTextCal(L5)<>0, egTextCal(L5), ) -> 1 | N5: =SUM(G5:G5)*M5 -> 17
A6: P0101 | B6: LED 파이프펜던트 철거 | D6: LED 파이프펜던트 철거 | E6: 2 | F6: - | G6: =IF(egTextCal(E6)<>0, egTextCal(E6), ) -> 2 | H6: MM041720651 | I6: LED 파이프펜던트 철거 | K6: 개 | L6: 1 | M6: =IF(egTextCal(L6)<>0, egTextCal(L6), ) -> 1 | N6: 2
A7: P0101 | B7: LED 원형직부등 철거 | D7: LED 원형직부등 철거 | E7: 1 | F7: - | G7: =IF(egTextCal(E7)<>0, egTextCal(E7), ) -> 1 | H7: MM041720653 | I7: LED 원형직부등 철거 | K7: 개 | L7: 1 | M7: =IF(egTextCal(L7)<>0, egTextCal(L7), ) -> 1 | N7: 1
A8: P0101 | B8: 전등스위치 철거 | D8: 전등스위치 철거 | E8: 1+1+1+2+2+1 | F8: - | G8: =IF(egTextCal(E8)<>0, egTextCal(E8), ) -> 8 | H8: MM041720657 | I8: 전등스위치 철거 | K8: 개 | L8: 1 | M8: =IF(egTextCal(L8)<>0, egTextCal(L8), ) -> 1 | N8: 8
A9: P0101 | B9: 콘센트 철거 | D9: 콘센트 철거 | E9: 2+2 | F9: - | G9: =IF(egTextCal(E9)<>0, egTextCal(E9), ) -> 4 | H9: MM041720659 | I9: 콘센트 철거 | K9: 개 | L9: 1 | M9: =IF(egTextCal(L9)<>0, egTextCal(L9), ) -> 1 | N9: 4
A10: P0101 | B10: 기타 전기공사 | D10: 기타 전기공사 | E10: 7 | F10: - | G10: =IF(egTextCal(E10)<>0, egTextCal(E10), ) -> 7 | H10: MM041720663 | I10: 기타 전기공사 | J10: 배관, 배선정리 | K10: 식 | L10: 1 | M10: =IF(egTextCal(L10)<>0, egTextCal(L10), ) -> 1 | N10: 7
A11: P0101
A12: P0101
A13: P0101
A14: P0101
A15: P0101
A16: P0101
A17: P0101
A18: P0101
A19: P0101
A20: P0101
A21: P0101
A22: P0101
A23: P0101
A24: P0101
A25: P0101
A26: P0101
A27: P0101
A28: P0101
A29: P0101
A30: P0101
A31: P0101
A32: P0101
A33: P0101
A34: P0101
A35: P0101
A36: P0101
A37: P0101
A38: P0101
A39: P0101
A40: P0101
A41: P0101
A42: P0101
A43: P0101
A44: P0101
A45: P0101
B46: 공종줄 | C46: 1 | D46: 1.엘리베이터::1-2.전력간선공사
A47: P0102 | B47: MCCB ABS + 4P 50AF + 50AT | D47: 배선용차단기(ABS-54) 4P 50AF 50AT | E47: 1 | F47: - | G47: =IF(egTextCal(E47)<>0, egTextCal(E47), ) -> 1 | H47: MM300015105 | I47: 배선용차단기(ABS-54) | J47: 4P 50AF 50AT | K47: EA | L47: 1 | M47: =IF(egTextCal(L47)<>0, egTextCal(L47), ) -> 1 | N47: =SUM(G47:G47)*M47 -> 1
A48: P0102 | B48: 케이블 + F-CV + 16_㎟/4c | D48: F-CV 4C×16㎟, F-GV 16SQ (FLEX 54C) | E48: 15+5+5+5+5+5+(10) | F48: 1 | G48: =IF(egTextCal(E48)<>0, egTextCal(E48), ) -> 50 | H48: E1450287565 | I48: 폴리에틸렌 난연케이블 | J48: 0.6/1kv F-CV 4C×16㎟ | K48: M | L48: 1 | M48: =IF(egTextCal(L48)<>0, egTextCal(L48), ) -> 1 | N48: =SUM(G48:G50)*M48 -> 50
A49: P0102 | B49: 접지전선 + F-GV + 16_㎟ | F49: 2 | H49: E1450927205 | I49: 접지용비닐절연전선(F-GV) | J49: 16㎟ | K49: M | L49: 1 | M49: =IF(egTextCal(L49)<>0, egTextCal(L49), ) -> 1 | N49: =SUM(G48:G50)*M49 -> 50
A50: P0102 | B50: 1종 가요 + 전선관 + 일반54c | F50: 3 | H50: 59753017008 | I50: 1종금속제가요전선관 | J50: 54 mm 일반-비방수 | K50: M | L50: 1 | M50: =IF(egTextCal(L50)<>0, egTextCal(L50), ) -> 1 | N50: =SUM(G48:G50)*M50 -> 50
A51: P0102 | B51: 러그단자 + 동1홀 + 16 ㎟ | D51: 러그단자 동관단자 1 HOLE 16 ㎟ | E51: (4+1)*2 | F51: - | G51: =IF(egTextCal(E51)<>0, egTextCal(E51), ) -> 10 | H51: E9400177002 | I51: 러그단자 | J51: 동관단자 1 HOLE 16 ㎟ | K51: 개 | L51: 1 | M51: =IF(egTextCal(L51)<>0, egTextCal(L51), ) -> 1 | N51: =SUM(G51:G51)*M51 -> 10
A52: P0102 | B52: LP-ELEV 분전반 | D52: LP-ELEV 분전반 | E52: 1 | F52: - | G52: =IF(egTextCal(E52)<>0, egTextCal(E52), ) -> 1 | H52: MM041720669 | I52: LP-ELEV 분전반 | J52: 600Wx600Hx150D | K52: 면 | L52: 1 | M52: =IF(egTextCal(L52)<>0, egTextCal(L52), ) -> 1 | N52: =SUM(G52:G52)*M52 -> 1
A53: P0102 | F53: -
A54: P0102 | B54: 케이블 + F-CV + 10_㎟/4c | D54: F-CV 4C×10㎟, F-GV 10SQ (FLEX 42C) | E54: 3 | F54: 1 | G54: =IF(egTextCal(E54)<>0, egTextCal(E54), ) -> 3 | H54: E1450287564 | I54: 폴리에틸렌 난연케이블 | J54: 0.6/1kv F-CV 4C×10㎟ | K54: M | L54: 1 | M54: =IF(egTextCal(L54)<>0, egTextCal(L54), ) -> 1 | N54: =SUM(G54:G56)*M54 -> 3
A55: P0102 | B55: 접지전선 + F-GV + 10_㎟ | F55: 2 | H55: E1450927204 | I55: 접지용비닐절연전선(F-GV) | J55: 10㎟ | K55: M | L55: 1 | M55: =IF(egTextCal(L55)<>0, egTextCal(L55), ) -> 1 | N55: =SUM(G54:G56)*M55 -> 3
A56: P0102 | B56: 1종 가요 + 전선관 + 일반42c | F56: 3 | H56: 59753017007 | I56: 1종금속제가요전선관 | J56: 42 mm 일반-비방수 | K56: M | L56: 1 | M56: =IF(egTextCal(L56)<>0, egTextCal(L56), ) -> 1 | N56: =SUM(G54:G56)*M56 -> 3
A57: P0102 | B57: 러그단자 + 동1홀 + 10 ㎟ | D57: 러그단자 동관단자 1 HOLE 10 ㎟ | E57: (4+1)*2 | F57: - | G57: =IF(egTextCal(E57)<>0, egTextCal(E57), ) -> 10 | H57: E9400177001 | I57: 러그단자 | J57: 동관단자 1 HOLE 10 ㎟ | K57: 개 | L57: 1 | M57: =IF(egTextCal(L57)<>0, egTextCal(L57), ) -> 1 | N57: =SUM(G57:G57)*M57 -> 10
A58: P0102
A59: P0102
A60: P0102
A61: P0102
A62: P0102
A63: P0102
A64: P0102
A65: P0102
A66: P0102
A67: P0102
A68: P0102
A69: P0102
A70: P0102
A71: P0102
A72: P0102
A73: P0102
A74: P0102
A75: P0102
A76: P0102
A77: P0102
A78: P0102
A79: P0102
A80: P0102
A81: P0102
A82: P0102
A83: P0102
A84: P0102
A85: P0102
A86: P0102
A87: P0102
B88: 공종줄 | C88: 1 | D88: 1.엘리베이터::1-3.전등설비공사
A89: P0103 | D89: 2층 | F89: -
A90: P0103 | B90: 전선 + HFIX + 1.78mm | D90: HFIX 1.78mm(2.5㎟), 3L (FLEX 16C) | E90: 5+5+5+(10) | F90: 1 | G90: =IF(egTextCal(E90)<>0, egTextCal(E90), ) -> 25 | H90: MM481669624 | I90: 450/750V 내열비닐절연전선 | J90: HFIX 1.78mm(2.5㎟) | K90: M | L90: 2+1 | M90: =IF(egTextCal(L90)<>0, egTextCal(L90), ) -> 3 | N90: =SUM(G90:G91)*M90 -> 75
A91: P0103 | B91: 1종 가요 + 전선관 + 일반16c | F91: 2 | H91: 59753017003 | I91: 1종금속제가요전선관 | J91: 16 mm 일반-비방수 | K91: M | L91: 1 | M91: =IF(egTextCal(L91)<>0, egTextCal(L91), ) -> 1 | N91: =SUM(G90:G91)*M91 -> 25
A92: P0103 | B92: LED 파이프펜던트 | D92: LED 파이프펜던트 | E92: 2 | F92: - | G92: =IF(egTextCal(E92)<>0, egTextCal(E92), ) -> 2 | H92: MM041720674 | I92: LED 파이프펜던트 | J92: 기존 | K92: 개 | L92: 1 | M92: =IF(egTextCal(L92)<>0, egTextCal(L92), ) -> 1 | N92: =SUM(G92:G92)*M92 -> 2
A93: P0103 | B93: 매입 + 스위치 + 단로 4구 | D93: 매입스위치 250V 1로4구 | E93: 1 | F93: 1 | G93: =IF(egTextCal(E93)<>0, egTextCal(E93), ) -> 1 | H93: 59301517004 | I93: 매입스위치 | J93: 250V 1로4구 | K93: 개 | L93: 1 | M93: =IF(egTextCal(L93)<>0, egTextCal(L93), ) -> 1 | N93: =SUM(G93:G94)*M93 -> 1
A94: P0103 | B94: 스위치 + 2구 박스 + 54mm | F94: 2 | H94: 59753777111 | I94: 스위치박스 | J94: 2 개용 54 mm | K94: 개 | L94: 1 | M94: =IF(egTextCal(L94)<>0, egTextCal(L94), ) -> 1 | N94: =SUM(G93:G94)*M94 -> 1
A95: P0103 | F95: -
A96: P0103 | F96: -
A97: P0103 | D97: 3층 | F97: -
A98: P0103 | B98: 전선 + HFIX + 1.78mm | D98: HFIX 1.78mm(2.5㎟), 3L (FLEX 16C) | E98: 5+5+5+(10) | F98: 1 | G98: =IF(egTextCal(E98)<>0, egTextCal(E98), ) -> 25 | H98: MM481669624 | I98: 450/750V 내열비닐절연전선 | J98: HFIX 1.78mm(2.5㎟) | K98: M | L98: 2+1 | M98: =IF(egTextCal(L98)<>0, egTextCal(L98), ) -> 3 | N98: =SUM(G98:G99)*M98 -> 75
A99: P0103 | B99: 1종 가요 + 전선관 + 일반16c | F99: 2 | H99: 59753017003 | I99: 1종금속제가요전선관 | J99: 16 mm 일반-비방수 | K99: M | L99: 1 | M99: =IF(egTextCal(L99)<>0, egTextCal(L99), ) -> 1 | N99: =SUM(G98:G99)*M99 -> 25
A100: P0103 | B100: LED 면조명 | D100: LED 면조명 | E100: 2 | F100: - | G100: =IF(egTextCal(E100)<>0, egTextCal(E100), ) -> 2 | H100: MM041720685 | I100: LED 면조명 | J100: 기존 | K100: 개 | L100: 1 | M100: =IF(egTextCal(L100)<>0, egTextCal(L100), ) -> 1 | N100: =SUM(G100:G100)*M100 -> 2
A101: P0103 | B101: 매입 + 스위치 + 단로 3구 | D101: 매입스위치 250V 1로3구 | E101: 1 | F101: 1 | G101: =IF(egTextCal(E101)<>0, egTextCal(E101), ) -> 1 | H101: 59301517003 | I101: 매입스위치 | J101: 250V 1로3구 | K101: 개 | L101: 1 | M101: =IF(egTextCal(L101)<>0, egTextCal(L101), ) -> 1 | N101: =SUM(G101:G102)*M101 -> 1
A102: P0103 | B102: 스위치 + 1구 박스 + 54mm | F102: 2 | H102: 59753777102 | I102: 스위치박스 | J102: 1 개용 54 mm | K102: 개 | L102: 1 | M102: =IF(egTextCal(L102)<>0, egTextCal(L102), ) -> 1 | N102: =SUM(G101:G102)*M102 -> 1
A103: P0103 | F103: -
A104: P0103 | F104: -
A105: P0103 | D105: 4층 | F105: -
A106: P0103 | B106: 전선 + HFIX + 1.78mm | D106: HFIX 1.78mm(2.5㎟), 3L (FLEX 16C) | E106: 5+5+5+5+5+5+(10) | F106: 1 | G106: =IF(egTextCal(E106)<>0, egTextCal(E106), ) -> 40 | H106: MM481669624 | I106: 450/750V 내열비닐절연전선 | J106: HFIX 1.78mm(2.5㎟) | K106: M | L106: 2+1 | M106: =IF(egTextCal(L106)<>0, egTextCal(L106), ) -> 3 | N106: =SUM(G106:G107)*M106 -> 120
A107: P0103 | B107: 1종 가요 + 전선관 + 일반16c | F107: 2 | H107: 59753017003 | I107: 1종금속제가요전선관 | J107: 16 mm 일반-비방수 | K107: M | L107: 1 | M107: =IF(egTextCal(L107)<>0, egTextCal(L107), ) -> 1 | N107: =SUM(G106:G107)*M107 -> 40
A108: P0103 | B108: LED 면조명 | D108: LED 면조명 | E108: 4 | F108: - | G108: =IF(egTextCal(E108)<>0, egTextCal(E108), ) -> 4 | H108: MM041720685 | I108: LED 면조명 | J108: 기존 | K108: 개 | L108: 1 | M108: =IF(egTextCal(L108)<>0, egTextCal(L108), ) -> 1 | N108: =SUM(G108:G108)*M108 -> 4
A109: P0103 | B109: 매입 + 스위치 + 단로 2구 | D109: 매입스위치 250V 1로2구 | E109: 1 | F109: 1 | G109: =IF(egTextCal(E109)<>0, egTextCal(E109), ) -> 1 | H109: 59301517002 | I109: 매입스위치 | J109: 250V 1로2구 | K109: 개 | L109: 1 | M109: =IF(egTextCal(L109)<>0, egTextCal(L109), ) -> 1 | N109: =SUM(G109:G110)*M109 -> 1
A110: P0103 | B110: 스위치 + 1구 박스 + 54mm | F110: 2 | H110: 59753777102 | I110: 스위치박스 | J110: 1 개용 54 mm | K110: 개 | L110: 1 | M110: =IF(egTextCal(L110)<>0, egTextCal(L110), ) -> 1 | N110: =SUM(G109:G110)*M110 -> 1
A111: P0103 | B111: 매입 + 스위치 + 단로 4구 | D111: 매입스위치 250V 1로4구 | E111: 1 | F111: 1 | G111: =IF(egTextCal(E111)<>0, egTextCal(E111), ) -> 1 | H111: 59301517004 | I111: 매입스위치 | J111: 250V 1로4구 | K111: 개 | L111: 1 | M111: =IF(egTextCal(L111)<>0, egTextCal(L111), ) -> 1 | N111: =SUM(G111:G112)*M111 -> 1
A112: P0103 | B112: 스위치 + 2구 박스 + 54mm | F112: 2 | H112: 59753777111 | I112: 스위치박스 | J112: 2 개용 54 mm | K112: 개 | L112: 1 | M112: =IF(egTextCal(L112)<>0, egTextCal(L112), ) -> 1 | N112: =SUM(G111:G112)*M112 -> 1
A113: P0103 | F113: -
A114: P0103 | F114: -
A115: P0103 | D115: 5층 | F115: -
A116: P0103 | B116: 전선 + HFIX + 1.78mm | D116: HFIX 1.78mm(2.5㎟), 3L (FLEX 16C) | E116: 5+5+5+5+5+5+(10) | F116: 1 | G116: =IF(egTextCal(E116)<>0, egTextCal(E116), ) -> 40 | H116: MM481669624 | I116: 450/750V 내열비닐절연전선 | J116: HFIX 1.78mm(2.5㎟) | K116: M | L116: 2+1 | M116: =IF(egTextCal(L116)<>0, egTextCal(L116), ) -> 3 | N116: =SUM(G116:G117)*M116 -> 120
A117: P0103 | B117: 1종 가요 + 전선관 + 일반16c | F117: 2 | H117: 59753017003 | I117: 1종금속제가요전선관 | J117: 16 mm 일반-비방수 | K117: M | L117: 1 | M117: =IF(egTextCal(L117)<>0, egTextCal(L117), ) -> 1 | N117: =SUM(G116:G117)*M117 -> 40
A118: P0103 | B118: LED 면조명 | D118: LED 면조명 | E118: 4 | F118: - | G118: =IF(egTextCal(E118)<>0, egTextCal(E118), ) -> 4 | H118: MM041720685 | I118: LED 면조명 | J118: 기존 | K118: 개 | L118: 1 | M118: =IF(egTextCal(L118)<>0, egTextCal(L118), ) -> 1 | N118: =SUM(G118:G118)*M118 -> 4
A119: P0103 | B119: 매입 + 스위치 + 단로 1구 | D119: 매입스위치 250V 1로1구 | E119: 1 | F119: 1 | G119: =IF(egTextCal(E119)<>0, egTextCal(E119), ) -> 1 | H119: 59301517001 | I119: 매입스위치 | J119: 250V 1로1구 | K119: 개 | L119: 1 | M119: =IF(egTextCal(L119)<>0, egTextCal(L119), ) -> 1 | N119: =SUM(G119:G120)*M119 -> 1
A120: P0103 | B120: 스위치 + 1구 박스 + 54mm | F120: 2 | H120: 59753777102 | I120: 스위치박스 | J120: 1 개용 54 mm | K120: 개 | L120: 1 | M120: =IF(egTextCal(L120)<>0, egTextCal(L120), ) -> 1 | N120: =SUM(G119:G120)*M120 -> 1
A121: P0103 | B121: 매입 + 스위치 + 단로 3구 | D121: 매입스위치 250V 1로3구 | E121: 1 | F121: 1 | G121: =IF(egTextCal(E121)<>0, egTextCal(E121), ) -> 1 | H121: 59301517003 | I121: 매입스위치 | J121: 250V 1로3구 | K121: 개 | L121: 1 | M121: =IF(egTextCal(L121)<>0, egTextCal(L121), ) -> 1 | N121: =SUM(G121:G122)*M121 -> 1
A122: P0103 | B122: 스위치 + 1구 박스 + 54mm | F122: 2 | H122: 59753777102 | I122: 스위치박스 | J122: 1 개용 54 mm | K122: 개 | L122: 1 | M122: =IF(egTextCal(L122)<>0, egTextCal(L122), ) -> 1 | N122: =SUM(G121:G122)*M122 -> 1
A123: P0103 | F123: -
A124: P0103 | F124: -
A125: P0103 | D125: 6층 | F125: -
A126: P0103 | B126: 전선 + HFIX + 1.78mm | D126: HFIX 1.78mm(2.5㎟), 3L (FLEX 16C) | E126: 5+(10) | F126: 1 | G126: =IF(egTextCal(E126)<>0, egTextCal(E126), ) -> 15 | H126: MM481669624 | I126: 450/750V 내열비닐절연전선 | J126: HFIX 1.78mm(2.5㎟) | K126: M | L126: 2+1 | M126: =IF(egTextCal(L126)<>0, egTextCal(L126), ) -> 3 | N126: =SUM(G126:G127)*M126 -> 45
A127: P0103 | B127: 1종 가요 + 전선관 + 일반16c | F127: 2 | H127: 59753017003 | I127: 1종금속제가요전선관 | J127: 16 mm 일반-비방수 | K127: M | L127: 1 | M127: =IF(egTextCal(L127)<>0, egTextCal(L127), ) -> 1 | N127: =SUM(G126:G127)*M127 -> 15
A128: P0103 | B128: LED 면조명 | D128: LED 면조명 | E128: 3 | F128: - | G128: =IF(egTextCal(E128)<>0, egTextCal(E128), ) -> 3 | H128: MM041720685 | I128: LED 면조명 | J128: 기존 | K128: 개 | L128: 1 | M128: =IF(egTextCal(L128)<>0, egTextCal(L128), ) -> 1 | N128: =SUM(G128:G128)*M128 -> 3
A129: P0103 | B129: 매입 + 스위치 + 단로 3구 | C129: 1 | D129: 매입스위치 250V 1로3구 | E129: 1 | F129: 1 | G129: =IF(egTextCal(E129)<>0, egTextCal(E129), ) -> 1 | H129: 59301517003 | I129: 매입스위치 | J129: 250V 1로3구 | K129: 개 | L129: 1 | M129: =IF(egTextCal(L129)<>0, egTextCal(L129), ) -> 1 | N129: =SUM(G129:G130)*M129 -> 1
A130: P0103 | B130: 스위치 + 1구 박스 + 54mm | C130: ◀앞 장에서 연결 | F130: 2 | H130: 59753777102 | I130: 스위치박스 | J130: 1 개용 54 mm | K130: 개 | L130: 1 | M130: =IF(egTextCal(L130)<>0, egTextCal(L130), ) -> 1 | N130: =SUM(G129:G130)*M130 -> 1
A131: P0103
A132: P0103
A133: P0103
A134: P0103
A135: P0103
A136: P0103
A137: P0103
A138: P0103
A139: P0103
A140: P0103
A141: P0103
A142: P0103
A143: P0103
A144: P0103
A145: P0103
A146: P0103
A147: P0103
A148: P0103
A149: P0103
A150: P0103
A151: P0103
A152: P0103
A153: P0103
A154: P0103
A155: P0103
A156: P0103
A157: P0103
A158: P0103
A159: P0103
A160: P0103
A161: P0103
A162: P0103
A163: P0103
A164: P0103
A165: P0103
A166: P0103
A167: P0103
A168: P0103
A169: P0103
A170: P0103
A171: P0103
B172: 공종줄 | C172: 1 | D172: 1.엘리베이터::1-4.전열설비공사
A173: P0104 | B173: ELB 2P + 30AF + 20AT | D173: 누전차단기(32KGRc) 2P 30AF 20AT | E173: 5 | F173: - | G173: =IF(egTextCal(E173)<>0, egTextCal(E173), ) -> 5 | H173: MM300020604 | I173: 누전차단기(32KGRc) | J173: 2P 30AF 20AT | K173: EA | L173: 1 | M173: =IF(egTextCal(L173)<>0, egTextCal(L173), ) -> 1 | N173: =SUM(G173:G173)*M173 -> 5
A174: P0104 | B174: 벽관통 + 코어Φ50 + 25cm | D174: 벽관통 구멍 Φ50-벽두께 25cm | E174: 5 | F174: - | G174: =IF(egTextCal(E174)<>0, egTextCal(E174), ) -> 5 | H174: 56953100908 | I174: 벽관통 구멍(코어드릴) | J174: Φ50-벽두께 25cm | K174: 개소 | L174: 1 | M174: =IF(egTextCal(L174)<>0, egTextCal(L174), ) -> 1 | N174: =SUM(G174:G174)*M174 -> 5
A175: P0104 | F175: -
A176: P0104 | B176: 전선 + HFIX + 2.25mm | D176: FLEX 16C (HFIX 4sqx2,E4sq) | E176: 25*5+(30) | F176: 1 | G176: =IF(egTextCal(E176)<>0, egTextCal(E176), ) -> 155 | H176: E1450667003 | I176: 450/750V 내열비닐절연전선 | J176: HFIX 2.25mm(4㎟) | K176: M | L176: 2+1 | M176: =IF(egTextCal(L176)<>0, egTextCal(L176), ) -> 3 | N176: =SUM(G176:G177)*M176 -> 465
A177: P0104 | B177: 1종 가요 + 전선관 + 일반16c | F177: 2 | H177: 59753017003 | I177: 1종금속제가요전선관 | J177: 16 mm 일반-비방수 | K177: M | L177: 1 | M177: =IF(egTextCal(L177)<>0, egTextCal(L177), ) -> 1 | N177: =SUM(G176:G177)*M177 -> 155
A178: P0104 | B178: 전선관 + (KS) + CD 16c | D178: 난연CD 16C (HFIX 4sqx2,E4sq) | E178: (2.5*3)*5 | F178: 1 | G178: =IF(egTextCal(E178)<>0, egTextCal(E178), ) -> 37.5 | H178: 59753097002 | I178: 합성수지제 가요전선관 | J178: CD-난연성 16㎜ | K178: M | L178: 1 | M178: =IF(egTextCal(L178)<>0, egTextCal(L178), ) -> 1 | N178: =SUM(G178:G179)*M178 -> 37.5
A179: P0104 | B179: 전선 + HFIX + 2.25mm | F179: 2 | H179: E1450667003 | I179: 450/750V 내열비닐절연전선 | J179: HFIX 2.25mm(4㎟) | K179: M | L179: 2+1 | M179: =IF(egTextCal(L179)<>0, egTextCal(L179), ) -> 3 | N179: =SUM(G178:G179)*M179 -> 112.5
A180: P0104 | B180: 홈파기 + Φ22 | D180: 벽관통 홈파기 Φ22이하 | E180: (2.5*3)*5 | F180: - | G180: =IF(egTextCal(E180)<>0, egTextCal(E180), ) -> 37.5 | H180: 56959100801 | I180: 배관용 홈파기 | J180: Φ22이하 | K180: M | L180: 1 | M180: =IF(egTextCal(L180)<>0, egTextCal(L180), ) -> 1 | N180: =SUM(G180:G180)*M180 -> 37.5
A181: P0104 | B181: 아우트렛 + 8각 박스 + 54㎜ | D181: 아우트렛박스 8각 54㎜ | E181: 3*5 | F181: 1 | G181: =IF(egTextCal(E181)<>0, egTextCal(E181), ) -> 15 | H181: 59753767011 | I181: 아우트렛박스 | J181: 8각 54㎜ | K181: 개 | L181: 1 | M181: =IF(egTextCal(L181)<>0, egTextCal(L181), ) -> 1 | N181: =SUM(G181:G183)*M181 -> 15
A182: P0104 | B182: 박스커버 + 8 각 + 평형 | F182: 2 | H182: 59753767201 | I182: 아우트렛박스 커버 | J182: 커버, 8각, 평형 | K182: 개 | L182: 1 | M182: =IF(egTextCal(L182)<>0, egTextCal(L182), ) -> 1 | N182: =SUM(G181:G183)*M182 -> 15
A183: P0104 | B183: 1종 가요 + 커넥터 + 일반16c | F183: 3 | H183: 59753017043 | I183: 1종금속제가요전선관 | J183: 커넥터, 16 mm 일반-비방수 | K183: 개 | L183: 2 | M183: =IF(egTextCal(L183)<>0, egTextCal(L183), ) -> 2 | N183: =SUM(G181:G183)*M183 -> 30
A184: P0104 | B184: 콘센트 + 매입2구E + 250V | D184: 콘센트 매입-접지형,250V 2구 | E184: 3*5 | F184: 1 | G184: =IF(egTextCal(E184)<>0, egTextCal(E184), ) -> 15 | H184: 59350317206 | I184: 콘센트 | J184: 매입-접지형, 250V 2구 | K184: 개 | L184: 1 | M184: =IF(egTextCal(L184)<>0, egTextCal(L184), ) -> 1 | N184: =SUM(G184:G185)*M184 -> 15
A185: P0104 | B185: 스위치 + 1구 박스 + 54mm | F185: 2 | H185: 59753777102 | I185: 스위치박스 | J185: 1 개용 54 mm | K185: 개 | L185: 1 | M185: =IF(egTextCal(L185)<>0, egTextCal(L185), ) -> 1 | N185: =SUM(G184:G185)*M185 -> 15
A186: P0104
A187: P0104
A188: P0104
A189: P0104
A190: P0104
A191: P0104
A192: P0104
A193: P0104
A194: P0104
A195: P0104
A196: P0104
A197: P0104
A198: P0104
A199: P0104
A200: P0104
... 265 more rows

Sheet 옵션 (hidden)
B1: 재료비 | C1: 노무비 | D1: 경비 | F1: 계
A2: 총 급 액 | B2: =총괄표!I29 -> 0 | C2: =총괄표!L29 -> 0 | D2: =총괄표!N29 -> 0 | F2: =SUM(B2,C2,D2) -> 0
A3: 관급 자재비 | F3: =SUM(B3,C3,D3) -> 0 | H3: 금액조정이 안되나요?
H6: 이지테크에서 변환할 때 2번 옵션을 지정하여 다시 해보세요
H9: 시트를 삭제할 때 에러가 뜨면 1번 옵션으로 하면 됩니다.
B10: 적용율(%) | C10: 끝자리 | D10: 적용율(%)/100 | E10: 일위대가소수
A11: 전체자재 적용율(%)(공종/일위대가) | B11: 100 | C11: 1 | D11: =$B$11/100 -> 1
A12: 전체노임 적용율(%)(공종) | B12: 80 | C12: 1 | D12: =$B$12/100 -> 0.8 | E12: 2 | H12: 2번 옵션으로 변환했을 때에는 결과값이 다를 수 있습니다.
A13: 전체노임 적용율(%)(일위대가) | B13: 80 | C13: 1 | D13: =$B$13/100 -> 0.8 | E13: 5
A20: *(그룹별 자재 단가 추가 할증)* | B20: 적용율(%) | D20: 적용율(%)/100
A21: Cable(CAB) 할증(%) | B21: =B11 -> 100 | D21: =$B$21/100 -> 1
A22: Wire (WIR) 할증(%) | B22: =B11 -> 100 | D22: =$B$22/100 -> 1
A23: Pipe (PIP) 할증(%) | B23: =B11 -> 100 | D23: =$B$23/100 -> 1
A24: 제 4그룹 할증(%) | B24: =B11 -> 100 | D24: =$B$24/100 -> 1
A25: 제 5그룹 할증(%) | B25: =B11 -> 100 | D25: =$B$25/100 -> 1
A30: *(그룹별 노임 추가 할증)* | B30: 적용율(%) | C30: 자동부속재(전기) | D30: 자동부속재(통신)
A31: 배관부속재(%) | B31: 15 | C31: 15 | D31: 20
A32: CD관부속재(%) | B32: 40 | C32: 40 | D32: 40
A33: 소모잡자재(%) | B33: 2 | H33: 본 파일은 이지테크에서 2번 옵션으로 만들었습니다.
A34: 방폭할증(%)
A35: 고소할증(%) | B35: 2
A36: 공구손료(%) | B36: 3
A40: *(공종별 노임 적용율(%))* | B40: 적용율(%) | C40: 소수자릿수
A41: 1-1.철거공사 | B41: 100 | C41: 0
A42: 1-2.전력간선공사 | B42: 100 | C42: 0
A43: 1-3.전등설비공사 | B43: 100 | C43: 0
A44: 1-4.전열설비공사 | B44: 100 | C44: 0
A45: 2-1.철거공사 | B45: 100 | C45: 0
A46: 2-2.전력간선공사 | B46: 100 | C46: 0
A47: 2-3.전등설비공사 | B47: 100 | C47: 0
A48: 2-4.전열설비공사 | B48: 100 | C48: 0

Sheet 사용설명 (hidden)
B1: ** 반드시 다음 사항을 숙지하신 다음 수정 작업을 하십시오 **
A2: 1. | B2: 산출 양식은 공식이 연결되어 있지 않습니다.
B3: 수정 작업은 본 프로그램에서 하신 후 다시 작성(엑셀파일) 하십시오.
A4: 2. | B4: 본 파일의 내용을 인쇄할 경우, 미리보기를 통하여 페이지 절선을 확인 후 인쇄하십시오.
A5: 3. | B5: 페이지 절선이 맞지 않으면 다음을 참고하십시오.
B17: a. 해당시트의 셀 전체를 선택합니다.
B18: b. 행높이를 적절히 가감하면 페이지 절선을 맞출 수 있습니다.
